Workbook

Sheet Narrative Summary
A1: beginning of sheet 1-Narrative Summary
A2: DEPARTMENT OF HOUSING AND COMMUNITY DEVELOPMENT DIVISION OF STATE FINANCIAL ASSISTANCE STATE GRANT MANAGEMENT 651 Bannon Street, 8th Floor Sacramento, CA 95811 LHTFSGM@HCD.CA.GOV
A8: LOCAL HOUSING TRUST FUND (LHTF) PROGRAM
A9: Annual Report
A10: Narrative Summary
A11: Last Revised 7/1/2025 | L11: Please Select
A12: HCD Contract Number: | B12: 23-LHTFCOM-18007 | E12: Grantee Name: | F12: Alameda Affordable Housing Corporation | L12: 7/1/24 - 6/30/25
A13: Preparer Name and Title: | B13: Sylvia Martinez, Director of Housing Development | E13: Preparer Phone Number: | F13: (510) 747-4343 | L13: 7/1/25 - 6/30/26
A14: Preparer Email: | B14: smartinez@alamedahsg.org | E14: Reporting Period: | F14: 7/1/24 - 6/30/25 | L14: 7/1/26 - 6/30/27
L15: 7/1/27 - 6/30/28
A16: The Department reserves the right to request other forms or reports as may be necessary or required to verify the information provided in this Annual Report | L16: 7/1/28 - 6/30/29
A17: 1. Please summarize the work undertaken or completed in the reporting period, including the number, type, and unit count of Eligible Projects receiving Program Funds, pursuant to Guidelines §112(a)(1) | L17: 7/1/29 - 6/30/30
A18: From July 1, 2024 through June 30, 2025, the Alameda Affordable Housing Corporation (AAHC) utilized Program Funds for the North Housing Senior Apartments (Linnet Corner) project. Linnet Corner is a new construction of a single, four (4) story residential building, with 64 units. The 64 units will include 40 studio units and 23 one-bedroom units targeting seniors aged 62 and over. There will also be one two-bedroom dedicated as a manager’s unit. Affordability levels will range between 30% and 40% of the Area Median Income (AMI) The project will also have 25% or 16 units serving formerly homeless/homeless senior veterans. Amenities will include a community room, dedicated property management and service provider offices, shared parking, a laundry room, a resident garden, and roof terrace. Throughout the entirety the reporting period, Linnet Corner was under construction. Construction activities during the reporting period include: rough and structural framing; roof, flooring, and window installation; plumbing, electrical, heatpump, and waterline installation; pavement and completion of a shared parking lot; exterior and interior painting; cabinet installation; building and unit meter energization; landscaping; and soil offhaul. The remaining LHTF funds were used on hard costs including erosion control, vertical construction of the building, finishes, and mechincal and electrical items. As of June 30, 2025, construction is approximately 91% complete. Additionally, Linnet Corner entered into contracts with a variety of vendors, including an interior furnishings vendor, and received a $200,000 grant from the Home Depot Foundation for construction costs. Lastly, Linnet Corner has been undergoing lease-up activities during the reporting period. A public lottery for 23 studio units was opened from April 4 - April 18 and received 2,200 applications and as of June 30, 2025, 1 has been approved for move-in. Outreach efforts for both the public lottery and units reserved for veterans have included social media campaigns and lease-up presentations at City Board Meetings and community organizations in Alameda and extensive in-person outreach with various veterans organizations such as Swords, the Veterans Affairs, etc. 16 units that are a mix of studios and one-bedrooms will be leased through the County's Coordinated Entry System. As of June 30, 2025, 5 applicants have been received and 1 has been approved for move-in. 24 units that are a mix of studios and one-bedrooms will be filled through AHA’s existing Project-Based Voucher (PBV) waitlist. As of June 30, 2025, no applicants have been approved for move-in. | L18: 7/1/30 - 6/30/31
L19: 7/1/31 - 6/30/32
L20: 7/1/32 - 6/30/33
L21: 7/1/33 - 6/30/34
L22: 7/1/34 - 6/30/35
A30: 2. Please summarize the activities planned to be undertaken in the next reporting period, pursuant to Guidelines §112(a)(2)
A31: During the next reporting period, the Project will finish construction, lease-up and move tenants in, and participate in community outreach. The Project is expected to receive its temporary certificate of occupancy (TCO) at the end of September 2025. By 6/30/2026, the Project will have been Placed-In-Service.
A43: 3. Please describe any problems encountered in Program implementation. Include a description of the solution and when it will be implemented, pursuant to Guidelines §112(a)(3)
A44: Linnet Corner does not anticipate any future problems in Program implementation and anticipates the project will be completed according to the above timeline.
A58: 4. Please describe how the problems referenced in question #3 above may impact the ability to complete or fulfill obligations under the Standard Agreement, pursuant to Guidelines §112(a)(4)
A59: The problems referenced in question #3 will not impact our ability to fulfill obligations under the Standard Agreement for Linnet Corner.
A73: 5. Please describe additional revenue generated from program funding (e.g. loan repayments, interest, fees) in this reporting period and how revenue was generated pursuant to Guidelines §109 (b). Please provide a description of how your estimate of households to be assisted was determined
A74: No additional revenue has been generated from program funding to date.
A75: 5a. Program Reuse Income Earned this Reporting Period: | C75: 0 | D75: 5b. Program Reuse Income Expended this Reporting Period: | G75: 0
A76: 5c. Current Balance of Reuse Income: | C76: 0 | D76: 5d. Approximate Number of Households to be Assisted with this Period's Reuse Income: | G76: 0
A77: 6. Please outline the steps for completing your public noticing and hearing process. Attach required documentation of the website posting and any relevant records of the public hearing, pursuant to Guidelines §108(c)
A78: The Housing Authority of the City of Alameda's (AHA) website (https://www.alamedahsg.org/about-us/alameda-affordable-housing-corporation/) contains the information for our public hearings and notices. We held our annual public hearing on March 19, 2025 within the Alameda Affordable Housing Corporation Board of Commisioners Meeting. The meeting was advertised for 30 days on AHA's website and through social media and received written comments until 5:00 PM on 3/19/25. The agenda for the meeting was published 72 hours in advance. Additionally, there was time for public comment at the meeting. The meeting packet can be found at this link on AHA's website: https://www.alamedahsg.org/meetings/?month=3&yr=. The minutes for this meeting can be found in the same location. The Alameda Affordable Housing Corporation is subject to the Brown Act. The relevant section of the Brown Act, as applied to a public agency like AHA whose board is not elected, provides that a nonprofit is covered by the Act if both of the following are true (Government Code Section 54952(c)(1)(B)): a) Test 1: The nonprofit board of directors includes one member of the AHA Board of Commissioners appointed (or elected or selected) by the AHA Board to the nonprofit board as a full voting member; and b) Test 2: The nonprofit receives funds from AHA. AAHC's nonprofit Board includes an AHA commissioner and receives funds from AHA and thus is subject to the Brown Act.
A92: 7. Please share any success stories you've had from HCD LHTF-funded projects
A93: During the reporting period, ICD had two LHTF-funded projects (North Housing PSH-I and Linnet Corner) in construction, with both over 90% complete as of 6/30/25. Both projects were ahead of schedule, exceeding expectations for the pace of the project. A third LHTF-funded project, North Housing PSH-II, has submitted competitive applications to numerous funding sources, such as the SuperNOFA, first round 4% tax-credits and first and second round 9% tax-credits. PSH-II has conditionally received an award of approximately $700,000 in City of Alameda HOME funding and a loan of $500,000 from the Housing Authority of the City of Alameda.
A94: 8. Please describe how you are adhering to Housing First Practices, if applicable to any projects funded with LHTF Program Funds
A95: Linnet Corner will have 16 formerly homeless veteran units which will be furnished with basic furniture in them. Additionally, basic home essentials will be provided at move-in. All veteran units will be selected/referred through the Alameda County Coordinated Entry System in partnership with the SF VA Medical Center. CES referrals are in partnership with San Francisco VA Medical Center or AHA’s Moving-to-Work (MTW) owner referral activities. PBV referrals are actively being selected from AHA's existing waiting list, and a lottery was held for non-PBV units and non-Housing First units.
A96: 9. We attest that the Ongoing Revenues identified in the LHTF application based on the definitions below are still ongoing as of the signature date of this annual report | H96: Yes
A97: Ongoing Revenue Definitions: - Existing Housing Trust Fund Sources: public or private source(s) of revenue totaling at least an average of $100,000 per year for three years after the date of the Program Award - New Housing Trust Fund Sources: sufficient public or private source(s) of revenue to pay for the Trust Fund's operating costs for a minimum of five years after the date of the Program Award Note: Ongoing Revenues may not include one-time donations such as land donations or large bequests.
A98: 10. We attest that the Local Housing Trust Fund is currently in operation per Guidelines §108(b) - Grantee must continue the operation of the Local Housing Trust Fund for at least five years after the Program Funds award date | H98: Yes
A99: 11. Additional Notes - Provide any additional comments in the section below (including if there is a No for cells H96 through H98)
A100: N/A
A101: Summary of cumulative number of units produced based on the total assistance funded with LHTF Program Funds under this contract. Data taken from information input into project-specific tabs. If numbers below appear inaccurate, check information on the corresponding project tab
A102: Rental Housing Projects (including Permanent Supportive Housing)
A103: Total number of units for Extremely Low Income (up to 30% AMI) | B103: 19 | C103: Total number of units for Lower Income (up to 60% AMI) | D103: 44 | E103: Total number of units for Lower Income (up to 80% AMI) | F103: =SUMIF('Project Data'!$H$2:$H$11,"*Rental*",'Project Data'!W$2:W$11) -> 0 | G103: Total number of units for Moderate Income (up to 120% AMI) | H103: =SUMIF('Project Data'!$H$2:$H$11,"*Rental*",'Project Data'!Z$2:Z$11) -> 0
A104: Emergency Shelter or Transitional Housing
A105: Total number of units for Extremely Low Income (up to 30% AMI) | B105: =SUMIF('Project Data'!$H$2:$H$11,"*Emergency*",'Project Data'!Q$2:Q$11) -> 0 | C105: Total number of units for Lower Income (up to 60% AMI) | D105: =SUMIF('Project Data'!$H$2:$H$11,"*Emergency*",'Project Data'!T$2:T$11) -> 0 | E105: Total number of units for Lower Income (up to 80% AMI) | F105: =SUMIF('Project Data'!$H$2:$H$11,"*Emergency*",'Project Data'!W$2:W$11) -> 0 | G105: Total number of units for Moderate Income (up to 120% AMI) | H105: =SUMIF('Project Data'!$H$2:$H$11,"*Emergency*",'Project Data'!Z$2:Z$11) -> 0
A106: Homeownership Projects
A107: Total number of units for Extremely Low Income (up to 30% AMI) | B107: =SUMIF('Project Data'!$H$2:$H$11,"*Homeownership*",'Project Data'!Q$2:Q$11) -> 0 | C107: Total number of units for Lower Income (up to 60% AMI) | D107: =SUMIF('Project Data'!$H$2:$H$11,"*Homeownership*",'Project Data'!T$2:T$11) -> 0 | E107: Total number of units for Lower Income (up to 80% AMI) | F107: =SUMIF('Project Data'!$H$2:$H$11,"*Homeownership*",'Project Data'!W$2:W$11) -> 0 | G107: Total number of units for Moderate Income (up to 120% AMI) | H107: =SUMIF('Project Data'!$H$2:$H$11,"*Homeownership*",'Project Data'!Z$2:Z$11) -> 0
A108: ADU/JADU
A109: Total number of units for Extremely Low Income (up to 30% AMI) | B109: =SUMIF('Project Data'!$H$2:$H$11,"*ADU/JADU*",'Project Data'!Q$2:Q$11) -> 0 | C109: Total number of units for Lower Income (up to 60% AMI) | D109: =SUMIF('Project Data'!$H$2:$H$11,"*ADU/JADU*",'Project Data'!T$2:T$11) -> 0 | E109: Total number of units for Lower Income (up to 80% AMI) | F109: =SUMIF('Project Data'!$H$2:$H$11,"*ADU/JADU*",'Project Data'!W$2:W$11) -> 0 | G109: Total number of units for Moderate Income (up to 120% AMI) | H109: =SUMIF('Project Data'!$H$2:$H$11,"*ADU/JADU*",'Project Data'!Z$2:Z$11) -> 0

Sheet Financial Summary
A1: beginning of sheet 3 - Financial Summary
A2: LOCAL HOUSING TRUST FUND (LHTF) PROGRAM Annual Report Financial Summary
A3: Grantee: | B3: ='Narrative Summary'!F12 -> Alameda Affordable Housing Corporation | E3: HCD Contract Number: | F3: ='Narrative Summary'!B12 -> 23-LHTFCOM-18007 | I3: Reporting Period: | J3: ='Narrative Summary'!F14 -> 7/1/24 - 6/30/25
A4: Total Amount of Program Funds Awarded: | B4: Maximum Allowable Program Funds for Admin: | C4: Program Funds Expended on Admin to date: | D4: Matching Funds Expended on Admin to date: | E4: Total Amount of Program Funds expended to date: | F4: Percent of Program Funds expended to date: | G4: Remaining Balance of Program Funds: | H4: Percent of Program Funds Not Expended: | I4: Percent of Program Funds Committed: | J4: Total Amount of Match Funds on deposit: | K4: Amount of Match expended to date:
A5: 1000000 | B5: =0.05*A5 -> 50000 | C5: 0 | D5: 0 | E5: =I20+L20+O20+C5 -> 1000000 | F5: =IFERROR(E5/A5,"") -> 1 | G5: =A5-E5 -> 0 | H5: =IFERROR(G5/A5,"") -> 0 | I5: =IFERROR((E20+F20)/A5,"") -> 1 | J5: =G20+H20 -> 2438000 | K5: =D5+J20+M20+P20 -> 2438000
A7: Project(s) Names **Please list all projects awarded from this allocation of LHTF including completed projects** | B7: Project Type (per Guidelines §101 (g)) | C7: Type of Loan | D7: Loan Status | E7: Total Amount of Program Funds Committed **Excluding Admin** | F7: Amount of Program Funds Committed to Admin | G7: Amount of Matching Funds Required to be On Deposit **Excluding Admin** | H7: Amount of Matching Funds Required to be On Deposit for Admin | I7: Amount of Funds Expended on Extremely Low-Income (ELI) Households (up to 30% AMI) to Date. **Must be at least 30% of expended funds** | K7: Percent of Committed Program Funds Expended on ELI Households (see LHTF Final Guidelines §105 (c)) | L7: Amount of Funds Expended on Lower-Income Households (up to 80% AMI) to Date | N7: Percent of Committed Program Funds Expended on Lower Income Households (see LHTF Final Guidelines §105 (e)) | O7: Amount of Funds Expended on Moderate-Income Households (up to 120% AMI) to Date. **Must not exceed 20% of expended funds** | Q7: Percent of Committed Program Funds Expended on Moderate Income Households (see LHTF Final Guidelines §105 (d)) | R7: Amount Committed but Unexpended
I8: LHTF Program Funds | J8: Matching Funds | L8: LHTF Program Funds | M8: Matching Funds | O8: LHTF Program Funds | P8: Matching Funds
A9: Select One
A10: Linnet Corner | B10: Rental Housing Project with Mixed Permanent Supportive Housing Units | C10: Both Const/Perm | D10: Closed | E10: 1000000 | F10: 0 | G10: 2438000 | I10: 300000 | J10: 731400 | K10: =IFERROR(I10/E10,"") -> 0.3 | L10: 700000 | M10: 1706600 | N10: =IFERROR(L10/E10,"") -> 0.7 | O10: 0 | P10: 0 | Q10: =IFERROR(O10/E10,"") -> 0 | R10: =E10-I10-L10-O10 -> 0
A11: Project 2 | B11: Select One | C11: Select One | D11: Select One | K11: =IFERROR(I11/E11,"") ->  | N11: =IFERROR(L11/E11,"") ->  | R11: 0
A12: Project 3 | B12: Select One | C12: Select One | D12: Select One | R12: 0
A13: Project 4 | B13: Select One | C13: Select One | D13: Select One | R13: 0
A14: Project 5 | B14: Select One | C14: Select One | D14: Select One | R14: 0
A15: Project 6 | B15: Select One | C15: Select One | D15: Select One | R15: 0
A16: Project 7 | B16: Select One | C16: Select One | D16: Select One | R16: 0
A17: Project 8 | B17: Select One | C17: Select One | D17: Select One | R17: 0
A18: Project 9 | B18: Select One | C18: Select One | D18: Select One | R18: 0
A19: Project 10 | B19: Select One | C19: Select One | D19: Select One | R19: 0
D20: Project Totals | E20: =SUM(E10:E19) -> 1000000 | F20: =SUM(F10:F19) -> 0 | G20: 2438000 | H20: 0 | I20: 300000 | J20: 731400 | K20: =I20/E20 -> 0.3 | L20: =SUM(L10:L19) -> 700000 | M20: =SUM(M10:M19) -> 1706600 | N20: =L20/E20 -> 0.7 | O20: =SUM(O10:O19) -> 0 | P20: =SUM(P10:P19) -> 0 | Q20: =(O20/E20) -> 0 | R20: 0
A21: Additional Comments

Sheet Linnet Corner
B1: beginning of project details worksheet | I1: Non-LHTF Units | J1: =D103 -> 1
B2: LOCAL HOUSING TRUST FUND (LHTF) PROGRAM | J2: Non-Residential Sources: | K2: =D119 -> 1 | L2: =E119 -> 655806.24
B3: Annual Report Project Worksheet | J3: Residential Sources: | K3: =D120 -> 0 | L3: =E120 -> 0
B4: Grantee Name: | C4: ='Narrative Summary'!F12 -> Alameda Affordable Housing Corporation | E4: Contract Number: | F4: ='Narrative Summary'!B12 -> 23-LHTFCOM-18007 | J4: Category | K4: Number of Units | L4: LHTF Expended | M4: Matching Funds Expended | N4: ELI | O4: LI - 60% | P4: LI - 80% | Q4: Mod
B5: Reporting Period: | C5: ='Narrative Summary'!F14 -> 7/1/24 - 6/30/25 | J5: Single Family Residences | K5: =COUNTIF(Units142[#All],"Single Family Residence") -> 0 | L5: =SUMIF(Units142[Unit Size],"Single Family Residence",Units142[Amount of LHTF Program Funds Expended in Reporting Period]) -> 0 | M5: =SUMIF(Units142[Unit Size],"Single Family Residence",Units142[Amount of LHTF Matching Funds Expended in Reporting Period]) -> 0 | N5: =COUNTIFS(Units142[Unit Size],"Single Family Residence",Units142[Income Level Restriction ],"Extremely Low Income (up to 30% AMI)") -> 0 | O5: =COUNTIFS(Units142[Unit Size],"Single Family Residence",Units142[Income Level Restriction ],"Lower Income (up to 60% AMI)") -> 0 | P5: =COUNTIFS(Units142[Unit Size],"Single Family Residence",Units142[Income Level Restriction ],"Lower Income (up to 80% AMI)") -> 0 | Q5: =COUNTIFS(Units142[Unit Size],"Single Family Residence",Units142[Income Level Restriction ],"Moderate Income (up to 120% AMI)") -> 0 | S5: Non-LHTF Units
B6: 1. Instructions | J6: Emergency Shelters | K6: =COUNTIF(Units142[#All],"Emergency Shelter") -> 0 | L6: =SUMIF(Units142[Unit Size],"Emergency Shelter",Units142[Amount of LHTF Program Funds Expended in Reporting Period]) -> 0 | M6: =SUMIF(Units142[Unit Size],"Emergency Shelter",Units142[Amount of LHTF Matching Funds Expended in Reporting Period]) -> 0 | N6: =COUNTIFS(Units142[Unit Size],"Emergency Shelter",Units142[Income Level Restriction ],"Extremely Low Income (up to 30% AMI)") -> 0 | O6: =COUNTIFS(Units142[Unit Size],"Emergency Shelter",Units142[Income Level Restriction ],"Lower Income (up to 60% AMI)") -> 0 | P6: =COUNTIFS(Units142[Unit Size],"Emergency Shelter",Units142[Income Level Restriction ],"Lower Income (up to 80% AMI)") -> 0 | Q6: =COUNTIFS(Units142[Unit Size],"Emergency Shelter",Units142[Income Level Restriction ],"Moderate Income (up to 120% AMI)") -> 0 | S6: =D103 -> 1
B7: Please Read in full before you fill out this page: 1. Please ensure macros are enabled by clicking "Enable Content" on the yellow bar above or going to File-Options-Trust Center-Trust Center Settings, select Macro Settings from the left-hand menu and enable macros. 2. Before entering any information, copy this sheet (enter "CTRL-SHIFT-Q") to create a new blank Project Details form for each active LHTF-funded project on which you are reporting. (i.e. if you have five different projects to report, enter CTRL-SHIFT-Q four times to create four additional reporting templates for a total of five sheets). Please note that text input into the cell for Project Name (cell C9) will autofill the tab name at the bottom of each worksheet. If the sheet name does not change, select the name in C9 and press Return/Enter 3. Select your project name from the drop-down menu in Cell C9. Tab through the form and enter information for the individual project as prompted on each sheet. 4. If you copy this sheet after filling in the information, you may get a "Runtime Error." If you do, click "end" and select the name of the next project on the copied sheet (Cell C9) and press "enter" or the return key. 5. When a project is completed or loan closed, attach appropriate documentation with this report as prompted. Once you have certified project completion on an annual report, you do not need to include project details on the completed project on subsequent report forms. You will continue to list all projects, including those completed, on the Financial Summary form (Tab 2). 6. DO NOT COPY OR MOVE WORKSHEETS FROM PRIOR ANNUAL REPORTS INTO THIS WORKBOOK. You can copy/paste prior data into the appropriate cells to streamline input, but copying an entire worksheet into this workbook from an external source will damage the workbook and will result in having to fill this form out again. | J7: Studios | K7: =COUNTIF(Units142[#All],"Studio") -> 40 | L7: =SUMIF(Units142[Unit Size],"Studio",Units142[Amount of LHTF Program Funds Expended in Reporting Period]) -> 170789.56 | M7: =SUMIF(Units142[Unit Size],"Studio",Units142[Amount of LHTF Matching Funds Expended in Reporting Period]) -> 416384.91 | N7: =COUNTIFS(Units142[Unit Size],"Studio",Units142[Income Level Restriction ],"Extremely Low Income (up to 30% AMI)") -> 11 | O7: =COUNTIFS(Units142[Unit Size],"Studio",Units142[Income Level Restriction ],"Lower Income (up to 60% AMI)") -> 29 | P7: =COUNTIFS(Units142[Unit Size],"Studio",Units142[Income Level Restriction ],"Lower Income (up to 80% AMI)") -> 0 | Q7: =COUNTIFS(Units142[Unit Size],"Studio",Units142[Income Level Restriction ],"Moderate Income (up to 120% AMI)") -> 0
B8: 2. Project Summary | J8: 1 BR | K8: =COUNTIF(Units142[#All],"One-bedroom") -> 23 | L8: =SUMIF(Units142[Unit Size],"One-bedroom",Units142[Amount of LHTF Program Funds Expended in Reporting Period]) -> 98203.98 | M8: =SUMIF(Units142[Unit Size],"One-bedroom",Units142[Amount of LHTF Matching Funds Expended in Reporting Period]) -> 239421.33 | N8: =COUNTIFS(Units142[Unit Size],"One-Bedroom",Units142[Income Level Restriction ],"Extremely Low Income (up to 30% AMI)") -> 8 | O8: =COUNTIFS(Units142[Unit Size],"One-Bedroom",Units142[Income Level Restriction ],"Lower Income (up to 60% AMI)") -> 15 | P8: =COUNTIFS(Units142[Unit Size],"One-Bedroom",Units142[Income Level Restriction ],"Lower Income (up to 80% AMI)") -> 0 | Q8: =COUNTIFS(Units142[Unit Size],"One-Bedroom",Units142[Income Level Restriction ],"Moderate Income (up to 120% AMI)") -> 0
B9: Project Name: | C9: Linnet Corner | D9: Project Address: | E9: 2000 Lakehurst Circle, Alameda, CA 94501 | F9: 2000 Lakehurst Circle, Alameda, CA 94501 | J9: 2 BR | K9: =COUNTIF(Units142[#All],"Two-bedroom") -> 0 | L9: =SUMIF(Units142[Unit Size],"two-bedroom",Units142[Amount of LHTF Program Funds Expended in Reporting Period]) -> 0 | M9: =SUMIF(Units142[Unit Size],"two-bedroom",Units142[Amount of LHTF Matching Funds Expended in Reporting Period]) -> 0 | N9: =COUNTIFS(Units142[Unit Size],"Two-Bedroom",Units142[Income Level Restriction ],"Extremely Low Income (up to 30% AMI)") -> 0 | O9: =COUNTIFS(Units142[Unit Size],"Two-Bedroom",Units142[Income Level Restriction ],"Lower Income (up to 60% AMI)") -> 0 | P9: =COUNTIFS(Units142[Unit Size],"Two-Bedroom",Units142[Income Level Restriction ],"Lower Income (up to 80% AMI)") -> 0 | Q9: =COUNTIFS(Units142[Unit Size],"Two-Bedroom",Units142[Income Level Restriction ],"Moderate Income (up to 120% AMI)") -> 0
B10: Developer Name: | C10: Island City Development | D10: Developer Contact Name and Title: | E10: Paris Howze, Project Manager | F10: Paris Howze, Project Manager | J10: 3 BR | K10: =COUNTIF(Units142[#All],"Three-bedroom") -> 0 | L10: =SUMIF(Units142[Unit Size],"three-bedroom",Units142[Amount of LHTF Program Funds Expended in Reporting Period]) -> 0 | M10: =SUMIF(Units142[Unit Size],"three-bedroom",Units142[Amount of LHTF Matching Funds Expended in Reporting Period]) -> 0 | N10: =COUNTIFS(Units142[Unit Size],"Three-Bedroom",Units142[Income Level Restriction ],"Extremely Low Income (up to 30% AMI)") -> 0 | O10: =COUNTIFS(Units142[Unit Size],"Three-Bedroom",Units142[Income Level Restriction ],"Lower Income (up to 60% AMI)") -> 0 | P10: =COUNTIFS(Units142[Unit Size],"Three-Bedroom",Units142[Income Level Restriction ],"Lower Income (up to 80% AMI)") -> 0 | Q10: =COUNTIFS(Units142[Unit Size],"Three-Bedroom",Units142[Income Level Restriction ],"Moderate Income (up to 120% AMI)") -> 0
B11: Project Type: | C11: Rental Housing Project with Mixed Permanent Supportive Housing Units | D11: Project Activity: | E11: New Construction | F11: New Construction | J11: 4 BR | K11: =COUNTIF(Units142[#All],"Four-bedroom") -> 0 | L11: =SUMIF(Units142[Unit Size],"four-bedroom",Units142[Amount of LHTF Program Funds Expended in Reporting Period]) -> 0 | M11: =SUMIF(Units142[Unit Size],"four-bedroom",Units142[Amount of LHTF Matching Funds Expended in Reporting Period]) -> 0 | N11: =COUNTIFS(Units142[Unit Size],"Four-Bedroom",Units142[Income Level Restriction ],"Extremely Low Income (up to 30% AMI)") -> 0 | O11: =COUNTIFS(Units142[Unit Size],"Four-Bedroom",Units142[Income Level Restriction ],"Lower Income (up to 60% AMI)") -> 0 | P11: =COUNTIFS(Units142[Unit Size],"Four-Bedroom",Units142[Income Level Restriction ],"Lower Income (up to 80% AMI)") -> 0 | Q11: =COUNTIFS(Units142[Unit Size],"Four-Bedroom",Units142[Income Level Restriction ],"Moderate Income (up to 120% AMI)") -> 0
B12: Project Status: | C12: Under Construction | D12: Date of Completion (if applicable): | E12: N/A | F12: N/A | J12: Total | K12: =SUM(K5:K11) -> 63 | L12: =SUM(L5:L11) -> 268993.54 | M12: =SUM(M5:M11) -> 655806.24 | N12: =SUM(N5:N11) -> 19 | O12: =SUM(O5:O11) -> 44 | P12: 0 | Q12: 0
B13: Date Certificate of Occupancy Issued: | C13: TBD | D13: Expiration Date of Affordability Covenant: (Term must be for a minimum of 55 years from the date Certificate of Occupancy Issued): | E13: TBD | F13: 65425 | J13: ELI | K13: =SUM(OR(COUNTIFS(Units142[Income Level Restriction ],"Extremely Low Income (up to 30% ami)",Units142[Amount of LHTF Program Funds Expended in Reporting Period],">0"),(COUNTIFS(Units142[Income Level Restriction ],"Extremely Low Income (up to 30% ami)",Units142[Amount of LHTF Program Funds Expended to Date],">0")))) -> 1 | L13: =SUMIF(Units142[Income Level Restriction ],"Extremely Low Income (up to 30% ami)",Units142[Amount of LHTF Program Funds Expended in Reporting Period]) -> 81125.06 | M13: =SUMIF(Units142[Income Level Restriction ],"Extremely Low Income (up to 30% ami)",Units142[Amount of LHTF Matching Funds Expended in Reporting Period]) -> 197782.78 | N13: =(L13+M13)/($L$17+$M$17) -> 0.301587269
B14: =_xlfn.IFS(C12="Select One", "",C12="Under Construction","",C12="Trust Fund Loan Committed","",C12="Construction Completed","Please include a Certificate of Occupancy with your submission of this report. Type yes to confirm you are submitting it with this report, or type no if not:",C12="Permanent Loan Closed","Please list which appropriate evidence of completion is attached to this report:") ->  | J14: LI-60% | K14: =SUM(OR(COUNTIFS(Units142[Income Level Restriction ],"Lower Income (up to 60% AMI)",Units142[Amount of LHTF Program Funds Expended in Reporting Period],">0"),(COUNTIFS(Units142[Income Level Restriction ],"Lower Income (up to 60% AMI)",Units142[Amount of LHTF Program Funds Expended to Date],">0")))) -> 1 | L14: =SUMIF(Units142[Income Level Restriction ],"Lower Income (up to 60% ami)",Units142[Amount of LHTF Program Funds Expended in Reporting Period]) -> 187868.48 | M14: =SUMIF(Units142[Income Level Restriction ],"Lower Income (up to 60% ami)",Units142[Amount of LHTF Matching Funds Expended in Reporting Period]) -> 458023.46 | N14: =(L14+L15+M14+M15)/($L$17+$M$17) -> 0.698412731 | O14: =M14+M15 -> 458023.46
B15: 3. LHTF Funded Units Information | J15: LI-80% | K15: =SUM(OR(COUNTIFS(Units142[Income Level Restriction ],"Lower Income (up to 80% AMI)",Units142[Amount of LHTF Program Funds Expended in Reporting Period],">0"),(COUNTIFS(Units142[Income Level Restriction ],"Lower Income (up to 80% AMI)",Units142[Amount of LHTF Program Funds Expended to Date],">0")))) -> 0 | L15: =SUMIF(Units142[Income Level Restriction ],"Lower Income (up to 80% ami)",Units142[Amount of LHTF Program Funds Expended in Reporting Period]) -> 0 | M15: =SUMIF(Units142[Income Level Restriction ],"Lower Income (up to 80% ami)",Units142[Amount of LHTF Matching Funds Expended in Reporting Period]) -> 0
B16: Please fill out the table with information regarding LHTF-funded units in this project, pursuant to §112 (c) of the guidelines. For as many LHTF-funded units as are in this project, add the same number of rows by clicking the "Add Row" button or using the key command CTRL-SHIFT-R. Only include units that are funded by LHTF program and/or Matching Funds. | J16: Mod | K16: =SUM(OR(COUNTIFS(Units142[Income Level Restriction ],"Moderate Income (up to 120% ami)",Units142[Amount of LHTF Program Funds Expended in Reporting Period],">0"),(COUNTIFS(Units142[Income Level Restriction ],"Moderate Income (up to 120% ami)",Units142[Amount of LHTF Program Funds Expended to Date],">0")))) -> 0 | L16: =SUMIF(Units142[Income Level Restriction ],"Moderate Income (up to 120% ami)",Units142[Amount of LHTF Program Funds Expended in Reporting Period]) -> 0 | M16: =SUMIF(Units142[Income Level Restriction ],"Moderate Income (up to 120% ami)",Units142[Amount of LHTF Matching Funds Expended in Reporting Period]) -> 0 | N16: =(L16+M16)/($L$17+$M$17) -> 0
B17: Unit Number | C17: Unit Size | D17: Income Level Restriction | E17: Amount of LHTF Program Funds Expended in Reporting Period | F17: Amount of LHTF Matching Funds Expended in Reporting Period | G17: Amount of LHTF Program Funds Expended to Date | H17: Amount of Matching Funds Expended to Date | I17: Mod | J17: Total | K17: =SUM(K13:K16) -> 2 | L17: =SUM(L13:L16) -> 268993.54 | M17: =SUM(M13:M16) -> 655806.24 | N17: =SUM(N13:N16) -> 1
B18: 101 | C18: Studio | D18: Extremely Low Income (up to 30% AMI) | E18: 4269.74 | F18: 10409.62 | G18: 15873.02 | H18: 38698.4127 | BM18: ;
B19: 103 | C19: Studio | D19: Extremely Low Income (up to 30% AMI) | E19: 4269.74 | F19: 10409.62 | G19: 15873.02 | H19: 38698.4127
B20: 105 | C20: Studio | D20: Extremely Low Income (up to 30% AMI) | E20: 4269.74 | F20: 10409.62 | G20: 15873.02 | H20: 38698.4127
B21: 107 | C21: Studio | D21: Extremely Low Income (up to 30% AMI) | E21: 4269.74 | F21: 10409.62 | G21: 15873.02 | H21: 38698.4127
B22: 109 | C22: One-bedroom | D22: Extremely Low Income (up to 30% AMI) | E22: 4269.74 | F22: 10409.62 | G22: 15873.02 | H22: 38698.4127
B23: 111 | C23: Studio | D23: Extremely Low Income (up to 30% AMI) | E23: 4269.74 | F23: 10409.62 | G23: 15873.02 | H23: 38698.4127
B24: 113 | C24: One-bedroom | D24: Extremely Low Income (up to 30% AMI) | E24: 4269.74 | F24: 10409.62 | G24: 15873.02 | H24: 38698.4127
B25: 115 | C25: One-bedroom | D25: Extremely Low Income (up to 30% AMI) | E25: 4269.74 | F25: 10409.62 | G25: 15873.02 | H25: 38698.4127
B26: 117 | C26: Studio | D26: Lower Income (up to 60% AMI) | E26: 4269.74 | F26: 10409.62 | G26: 15873.02 | H26: 38698.4127
B27: 119 | C27: Studio | D27: Extremely Low Income (up to 30% AMI) | E27: 4269.74 | F27: 10409.62 | G27: 15873.02 | H27: 38698.4127
B28: 121 | C28: Studio | D28: Extremely Low Income (up to 30% AMI) | E28: 4269.74 | F28: 10409.62 | G28: 15873.02 | H28: 38698.4127
B29: 201 | C29: Studio | D29: Lower Income (up to 60% AMI) | E29: 4269.74 | F29: 10409.62 | G29: 15873.02 | H29: 38698.4127
B30: 202 | C30: Studio | D30: Extremely Low Income (up to 30% AMI) | E30: 4269.74 | F30: 10409.62 | G30: 15873.02 | H30: 38698.4127
B31: 203 | C31: Studio | D31: Lower Income (up to 60% AMI) | E31: 4269.74 | F31: 10409.62 | G31: 15873.02 | H31: 38698.4127
B32: 204 | C32: One-bedroom | D32: Extremely Low Income (up to 30% AMI) | E32: 4269.74 | F32: 10409.62 | G32: 15873.02 | H32: 38698.4127
B33: 205 | C33: Studio | D33: Lower Income (up to 60% AMI) | E33: 4269.74 | F33: 10409.62 | G33: 15873.02 | H33: 38698.4127
B34: 206 | C34: One-bedroom | D34: Extremely Low Income (up to 30% AMI) | E34: 4269.74 | F34: 10409.62 | G34: 15873.02 | H34: 38698.4127
B35: 207 | C35: Studio | D35: Extremely Low Income (up to 30% AMI) | E35: 4269.74 | F35: 10409.62 | G35: 15873.02 | H35: 38698.4127
B36: 208 | C36: One-bedroom | D36: Extremely Low Income (up to 30% AMI) | E36: 4269.74 | F36: 10409.62 | G36: 15873.02 | H36: 38698.4127
B37: 209 | C37: One-bedroom | D37: Extremely Low Income (up to 30% AMI) | E37: 4269.74 | F37: 10409.62 | G37: 15873.02 | H37: 38698.4127
B38: 211 | C38: Studio | D38: Lower Income (up to 60% AMI) | E38: 4269.74 | F38: 10409.62 | G38: 15873.02 | H38: 38698.4127
B39: 213 | C39: One-bedroom | D39: Extremely Low Income (up to 30% AMI) | E39: 4269.74 | F39: 10409.62 | G39: 15873.02 | H39: 38698.4127
B40: 215 | C40: One-bedroom | D40: Lower Income (up to 60% AMI) | E40: 4269.74 | F40: 10409.62 | G40: 15873.02 | H40: 38698.4127
B41: 217 | C41: Studio | D41: Extremely Low Income (up to 30% AMI) | E41: 4269.74 | F41: 10409.62 | G41: 15873.02 | H41: 38698.4127
B42: 219 | C42: Studio | D42: Lower Income (up to 60% AMI) | E42: 4269.74 | F42: 10409.62 | G42: 15873.02 | H42: 38698.4127
B43: 221 | C43: Studio | D43: Extremely Low Income (up to 30% AMI) | E43: 4269.74 | F43: 10409.62 | G43: 15873.02 | H43: 38698.4127
B44: 223 | C44: One-bedroom | D44: Lower Income (up to 60% AMI) | E44: 4269.74 | F44: 10409.62 | G44: 15873.02 | H44: 38698.4127
B45: 225 | C45: One-bedroom | D45: Lower Income (up to 60% AMI) | E45: 4269.74 | F45: 10409.62 | G45: 15873.02 | H45: 38698.4127
B46: 227 | C46: Studio | D46: Lower Income (up to 60% AMI) | E46: 4269.74 | F46: 10409.62 | G46: 15873.02 | H46: 38698.4127
B47: 301 | C47: Studio | D47: Lower Income (up to 60% AMI) | E47: 4269.74 | F47: 10409.62 | G47: 15873.02 | H47: 38698.4127
B48: 302 | C48: Studio | D48: Lower Income (up to 60% AMI) | E48: 4269.74 | F48: 10409.62 | G48: 15873.02 | H48: 38698.4127
B49: 303 | C49: Studio | D49: Lower Income (up to 60% AMI) | E49: 4269.74 | F49: 10409.62 | G49: 15873.02 | H49: 38698.4127
B50: 304 | C50: One-bedroom | D50: Lower Income (up to 60% AMI) | E50: 4269.74 | F50: 10409.62 | G50: 15873.02 | H50: 38698.4127
B51: 305 | C51: Studio | D51: Lower Income (up to 60% AMI) | E51: 4269.74 | F51: 10409.62 | G51: 15873.02 | H51: 38698.4127
B52: 306 | C52: Studio | D52: Lower Income (up to 60% AMI) | E52: 4269.74 | F52: 10409.62 | G52: 15873.02 | H52: 38698.4127
B53: 307 | C53: Studio | D53: Lower Income (up to 60% AMI) | E53: 4269.74 | F53: 10409.62 | G53: 15873.02 | H53: 38698.4127
B54: 308 | C54: Studio | D54: Lower Income (up to 60% AMI) | E54: 4269.74 | F54: 10409.62 | G54: 15873.02 | H54: 38698.4127
B55: 309 | C55: One-bedroom | D55: Lower Income (up to 60% AMI) | E55: 4269.74 | F55: 10409.62 | G55: 15873.01 | H55: 38698.4127
B56: 311 | C56: Studio | D56: Lower Income (up to 60% AMI) | E56: 4269.74 | F56: 10409.62 | G56: 15873.01 | H56: 38698.4127
B57: 313 | C57: One-bedroom | D57: Lower Income (up to 60% AMI) | E57: 4269.74 | F57: 10409.62 | G57: 15873.01 | H57: 38698.4127
B58: 315 | C58: One-bedroom | D58: Lower Income (up to 60% AMI) | E58: 4269.74 | F58: 10409.62 | G58: 15873.01 | H58: 38698.4127
B59: 317 | C59: Studio | D59: Lower Income (up to 60% AMI) | E59: 4269.74 | F59: 10409.62 | G59: 15873.01 | H59: 38698.4127
B60: 319 | C60: Studio | D60: Lower Income (up to 60% AMI) | E60: 4269.74 | F60: 10409.62 | G60: 15873.01 | H60: 38698.4127
B61: 321 | C61: Studio | D61: Lower Income (up to 60% AMI) | E61: 4269.74 | F61: 10409.62 | G61: 15873.01 | H61: 38698.4127
B62: 323 | C62: One-bedroom | D62: Lower Income (up to 60% AMI) | E62: 4269.74 | F62: 10409.62 | G62: 15873.01 | H62: 38698.4127
B63: 325 | C63: One-bedroom | D63: Lower Income (up to 60% AMI) | E63: 4269.74 | F63: 10409.63 | G63: 15873.01 | H63: 38698.4127
B64: 327 | C64: Studio | D64: Lower Income (up to 60% AMI) | E64: 4269.74 | F64: 10409.63 | G64: 15873.01 | H64: 38698.4127
B65: 401 | C65: Studio | D65: Lower Income (up to 60% AMI) | E65: 4269.74 | F65: 10409.63 | G65: 15873.01 | H65: 38698.4127
B66: 403 | C66: Studio | D66: Lower Income (up to 60% AMI) | E66: 4269.74 | F66: 10409.63 | G66: 15873.01 | H66: 38698.4127
B67: 405 | C67: Studio | D67: Lower Income (up to 60% AMI) | E67: 4269.74 | F67: 10409.63 | G67: 15873.01 | H67: 38698.4127
B68: 406 | C68: Studio | D68: Lower Income (up to 60% AMI) | E68: 4269.74 | F68: 10409.63 | G68: 15873.01 | H68: 38698.4127
B69: 407 | C69: Studio | D69: Lower Income (up to 60% AMI) | E69: 4269.74 | F69: 10409.63 | G69: 15873.01 | H69: 38698.4127
B70: 408 | C70: One-bedroom | D70: Lower Income (up to 60% AMI) | E70: 4269.74 | F70: 10409.63 | G70: 15873.01 | H70: 38698.4127
B71: 409 | C71: One-bedroom | D71: Lower Income (up to 60% AMI) | E71: 4269.74 | F71: 10409.63 | G71: 15873.01 | H71: 38698.4127
B72: 411 | C72: Studio | D72: Lower Income (up to 60% AMI) | E72: 4269.74 | F72: 10409.63 | G72: 15873.01 | H72: 38698.4127
B73: 413 | C73: One-bedroom | D73: Lower Income (up to 60% AMI) | E73: 4269.73 | F73: 10409.63 | G73: 15873.01 | H73: 38698.4127
B74: 415 | C74: One-bedroom | D74: Lower Income (up to 60% AMI) | E74: 4269.73 | F74: 10409.63 | G74: 15873.01 | H74: 38698.4127
B75: 417 | C75: Studio | D75: Lower Income (up to 60% AMI) | E75: 4269.73 | F75: 10409.63 | G75: 15873.01 | H75: 38698.4127
B76: 419 | C76: Studio | D76: Lower Income (up to 60% AMI) | E76: 4269.73 | F76: 10409.63 | G76: 15873.01 | H76: 38698.4127
B77: 421 | C77: Studio | D77: Lower Income (up to 60% AMI) | E77: 4269.73 | F77: 10409.63 | G77: 15873.01 | H77: 38698.4127
B78: 423 | C78: One-bedroom | D78: Lower Income (up to 60% AMI) | E78: 4269.73 | F78: 10409.63 | G78: 15873.01 | H78: 38698.4127
B79: 425 | C79: One-bedroom | D79: Lower Income (up to 60% AMI) | E79: 4269.73 | F79: 10409.63 | G79: 15873.01 | H79: 38698.4127
B80: 427 | C80: Studio | D80: Lower Income (up to 60% AMI) | E80: 4269.73 | F80: 10409.63 | G80: 15873.01 | H80: 38698.4127
C81: Select One | D81: Select One | E81: 0 | F81: 0 | H81: 0
C82: Select One | D82: Select One | E82: 0 | F82: 0 | H82: 0
C83: Select One | D83: Select One | E83: 0 | F83: 0 | H83: 0
B84: Total: | C84: =SUBTOTAL(3,Units142[Unit Number]) -> 63 | D84: Total Program Funds Expended this reporting period: | E84: =SUM(Units142[Amount of LHTF Program Funds Expended in Reporting Period]) -> 268993.54 | F84: =SUM(Units142[Amount of LHTF Matching Funds Expended in Reporting Period]) -> 655806.24 | G84: =SUM(Units142[Amount of LHTF Program Funds Expended to Date]) -> 1000000 | H84: =SUM(Units142[Amount of Matching Funds Expended to Date]) -> 2438000
B85: 4. Non-LHTF Units Information
B86: Please fill out the table with information regarding all units in the project that are NOT LHTF Funded units, pursuant to §112 (c) of the guidelines. Input the number of units that have been created for this project, bedrooms per unit and units restricted by target population. The unit data in this table may be aggregated for the units that are not being funded with LHTF Program and Matching Funds. | BM86: ;
B87: Unit Size | C87: Income Level Restriction | D87: Number of Units
B88: Manager Two-bedroom | C88: Unrestricted | D88: 1
B89: Select One | C89: Select One
B90: Select One | C90: Select One
B91: Select One | C91: Select One
B92: Select One | C92: Select One
B93: Select One | C93: Select One
B94: Select One | C94: Select One
B95: Select One | C95: Select One | BM95: ;
B96: Select One | C96: Select One
B97: Select One | C97: Select One
B98: Select One | C98: Select One
B99: Select One | C99: Select One
B100: Select One | C100: Select One
B101: Select One | C101: Select One
B102: Select One | C102: Select One
B103: Total: | D103: =SUM(D88:D102) -> 1
B104: 5. Matching Sources | BM104: ;
B105: Please input the source of each matching funds used and the amount expended on this project by matching source. This should match what was submitted at time of application.
B106: Name of Matching Funds | C106: Source of Matching Funds | D106: Matching Amount Required to be On Deposit | E106: Matching Amount Expended in Reporting Period | F106: Matching Amount Expended To Date
B107: Alameda Affordable Housing Trust Fund | C107: Private Donation | D107: 2438000 | E107: 655806.24 | F107: =Table2153[[#This Row],[Matching Amount Required to be On Deposit]] -> 2438000
C108: Select One
C109: Select One
C110: Select One
C111: Select One
C112: Select One
C113: Select One | BM113: ;
C114: Select One
C115: Select One
C116: Select One
B117: Total: | D117: =SUM(D107:D116) -> 2438000 | E117: =SUM(E107:E116) -> 655806.24 | F117: =SUM(F107:F116) -> 2438000
B118: Project Total Deposit Requirement from Financial Summary: | D118: =IF(D9>0,_xlfn.XLOOKUP(D9,'Financial Summary'!$A$10:$A$19,'Financial Summary'!$G$10:$G$19+'Financial Summary'!$H$10:$H$19,"",0),"") -> 
B119: Non-Residential Sources: | D119: =SUMIF(C107:C116,"<>Residential*",D107:D116)/D117 -> 1 | E119: =SUMIF(C107:C116,"<>Residential*",E107:E116) -> 655806.24 | F119: =SUMIF(C107:C116,"<>Residential*",F106:F115) -> 2438000
B120: Residential Sources: | D120: =SUMIF(C107:C116,"Residential*",D107:D116)/D117 -> 0 | E120: =SUMIF(C107:C116,"Residential*",E107:E116) -> 0 | F120: =SUMIF(C107:C116,"Residential*",F107:F116) -> 0
B121: 6. Additional Comments
B122: Regulatory agreement is 10 studios and 9 one-bedrooms at 30% AMI and 30 studios and 14 one-bedrooms at 60% AMI. | BM122: ;
B123: Enter CTRL-SHIFT-Q to Copy this Sheet and fill out next project's details on a new Project Details Form.
BM129: ;
BM148: ;
BM190: ;
BM232: ;
BM274: ;
BM316: ;
BM358: ;
BM400: ;
BM442: ;
BM484: ;
BM526: ;
BM568: ;
BM610: ;
BM652: ;
BM694: ;
BM736: ;
BM778: ;
BM820: ;
BM862: ;
BM904: ;
BM946: ;
BM988: ;
BM1030: ;
BM1072: ;
BM1114: ;
BM1156: ;
BM1198: ;
BM1240: ;
BM1282: ;
BM1324: ;
BM1366: ;
BM1408: ;
BM1450: ;
BM1492: ;
BM1534: ;
BM1576: ;
BM1618: ;
BM1660: ;
BM1702: ;
BM1744: ;
BM1786: ;
BM1828: ;
BM1870: ;
BM1912: ;
BM1954: ;
BM1996: ;
BM2038: ;
BM2080: ;
BM2122: ;
BM2164: ;
BM2206: ;
BM2248: ;
BM2290: ;
BM2332: ;
BM2374: ;
BM2416: ;
BM2458: ;
BM2500: ;
BM2542: ;
BM2584: ;
BM2626: ;
BM2668: ;
BM2710: ;
BM2752: ;
BM2794: ;
BM2836: ;
BM2878: ;
BM2920: ;
BM2962: ;
BM3004: ;
BM3046: ;
BM3088: ;
BM3130: ;
BM3172: ;
BM3214: ;
BM3256: ;
BM3298: ;
... 116 more rows

Sheet Executed & Recorded Loan Docs
A1: Please submit all recorded and fully executed copies of loan documents for each project that are executed and/or recorded. | D1: Authorized Representative Name: (If selected YES in Cell H1, the Authorized Representative attests that the fully executed and/or recorded LHTF documents provided are those that were approved by HCD prior to disbursement of program funds) | G1: =Certification!A7 -> Vanessa Cooper | H1: Yes
A2: Before you begin, please select from the drop-down the highest number of Liens on any of the projects associated with this contract. | H2: 9
A3: Project Names | B3: Total Lienholders In Project | C3: Project Type (per Guidelines §101 (g)) | D3: Type of Loan | E3: Loan Status | F3: LHTF Regulatory Agreement (RA) | G3: LHTF Loan Agreement (LA) | H3: LHTF Promissory Note (PN) | I3: LHTF Deed of Trust (DoT) | J3: Lien Holder 1 (RA) | K3: Lien Holder 1 (LA) | L3: Lien Holder 1 (PN) | M3: Lien Holder 1 (DoT) | N3: Lien Holder 2 (RA) | O3: Lien Holder 2 (LA) | P3: Lien Holder 2 (PN) | Q3: Lien Holder 2 (DoT) | R3: Lien Holder 3 (RA) | S3: Lien Holder 3 (LA) | T3: Lien Holder 3 (PN) | U3: Lien Holder 3 (DoT) | V3: Lien Holder 4 (RA) | W3: Lien Holder 4 (LA) | X3: Lien Holder 4 (PN) | Y3: Lien Holder 4 (DoT) | Z3: Lien Holder 5 (RA) | AA3: Lien Holder 5 (LA) | AB3: Lien Holder 5 (PN) | AC3: Lien Holder 5 (DoT) | AD3: Lien Holder 6 (RA) | AE3: Lien Holder 6 (LA) | AF3: Lien Holder 6 (PN) | AG3: Lien Holder 6 (DoT) | AH3: Lien Holder 7 (RA) | AI3: Lien Holder 7 (LA) | AJ3: Lien Holder 7 (PN) | AK3: Lien Holder 7 (DoT) | AL3: Lien Holder 8 (RA) | AM3: Lien Holder 8 (LA) | AN3: Lien Holder 8 (PN) | AO3: Lien Holder 8 (DoT) | AP3: Lien Holder 9 (RA) | AQ3: Lien Holder 9 (LA) | AR3: Lien Holder 9 (PN) | AS3: Lien Holder 9 (DoT) | AT3: Lien Holder 10 (RA) | AU3: Lien Holder 10 (LA) | AV3: Lien Holder 10 (PN) | AW3: Lien Holder 10 (DoT)
A5: ='Financial Summary'!A10 -> Linnet Corner | B5: 9 | C5: =_xlfn.XLOOKUP(A5,'Financial Summary'!$A$10:$A$19,'Financial Summary'!$B$10:$B$19,"Unknown",0) -> Rental Housing Project with Mixed Permanent Supportive Housing Units | D5: =_xlfn.XLOOKUP($A5,'Financial Summary'!$A$10:$A$19,'Financial Summary'!$C$10:$C$19,"Unknown",0) -> Both Const/Perm | E5: =_xlfn.XLOOKUP($A5,'Financial Summary'!$A$10:$A$19,'Financial Summary'!$D$10:$D$19,"Unknown",0) -> Closed | F5: Submitted with Report | G5: Submitted with Report | H5: Not Submitted with Report (explain in notes below) | I5: Submitted with Report | J5: Not Submitted with Report (explain in notes below) | K5: Submitted with Report | L5: Submitted with Report | M5: Submitted with Report | N5: Not Submitted with Report (explain in notes below) | O5: Submitted with Report | P5: Submitted with Report | Q5: Submitted with Report | R5: Not Available Yet | S5: Not Available Yet | T5: Not Available Yet | U5: Not Available Yet | V5: Not Available Yet | W5: Not Available Yet | X5: Not Available Yet | Y5: Not Available Yet | Z5: Submitted with Report | AA5: Submitted with Report | AB5: Not Submitted with Report (explain in notes below) | AC5: Submitted with Report | AD5: Submitted with Report | AE5: Submitted with Report | AF5: Not Submitted with Report (explain in notes below) | AG5: Not Submitted with Report (explain in notes below) | AH5: Not Submitted with Report (explain in notes below) | AI5: Not Submitted with Report (explain in notes below) | AJ5: Not Submitted with Report (explain in notes below) | AK5: Not Submitted with Report (explain in notes below) | AL5: Not Submitted with Report (explain in notes below) | AM5: Not Submitted with Report (explain in notes below) | AN5: Submitted with Report | AO5: Not Submitted with Report (explain in notes below) | AP5: Submitted with Report | AQ5: Submitted with Report | AR5: Not Submitted with Report (explain in notes below) | AS5: Not Submitted with Report (explain in notes below) | AT5: Select One | AU5: Select One | AV5: Select One | AW5: Select One
A6: ='Financial Summary'!A11 -> Project 2 | B6: Select One | C6: =_xlfn.XLOOKUP(A6,'Financial Summary'!$A$10:$A$19,'Financial Summary'!$B$10:$B$19,"Unknown",0) -> Select One | D6: =_xlfn.XLOOKUP($A6,'Financial Summary'!$A$10:$A$19,'Financial Summary'!$C$10:$C$19,"Unknown",0) -> Select One | E6: =_xlfn.XLOOKUP($A6,'Financial Summary'!$A$10:$A$19,'Financial Summary'!$D$10:$D$19,"Unknown",0) -> Select One | F6: Select One | G6: Select One | H6: Select One | I6: Select One | J6: Select One | K6: Select One | L6: Select One | M6: Select One | N6: Select One | O6: Select One | P6: Select One | Q6: Select One | R6: Select One | S6: Select One | T6: Select One | U6: Select One | V6: Select One | W6: Select One | X6: Select One | Y6: Select One | Z6: Select One | AA6: Select One | AB6: Select One | AC6: Select One | AD6: Select One | AE6: Select One | AF6: Select One | AG6: Select One | AH6: Select One | AI6: Select One | AJ6: Select One | AK6: Select One | AL6: Select One | AM6: Select One | AN6: Select One | AO6: Select One | AP6: Select One | AQ6: Select One | AR6: Select One | AS6: Select One | AT6: Select One | AU6: Select One | AV6: Select One | AW6: Select One
A7: ='Financial Summary'!A12 -> Project 3 | B7: Select One | C7: =_xlfn.XLOOKUP(A7,'Financial Summary'!$A$10:$A$19,'Financial Summary'!$B$10:$B$19,"Unknown",0) -> Select One | D7: =_xlfn.XLOOKUP($A7,'Financial Summary'!$A$10:$A$19,'Financial Summary'!$C$10:$C$19,"Unknown",0) -> Select One | E7: =_xlfn.XLOOKUP($A7,'Financial Summary'!$A$10:$A$19,'Financial Summary'!$D$10:$D$19,"Unknown",0) -> Select One | F7: Select One | G7: Select One | H7: Select One | I7: Select One | J7: Select One | K7: Select One | L7: Select One | M7: Select One | N7: Select One | O7: Select One | P7: Select One | Q7: Select One | R7: Select One | S7: Select One | T7: Select One | U7: Select One | V7: Select One | W7: Select One | X7: Select One | Y7: Select One | Z7: Select One | AA7: Select One | AB7: Select One | AC7: Select One | AD7: Select One | AE7: Select One | AF7: Select One | AG7: Select One | AH7: Select One | AI7: Select One | AJ7: Select One | AK7: Select One | AL7: Select One | AM7: Select One | AN7: Select One | AO7: Select One | AP7: Select One | AQ7: Select One | AR7: Select One | AS7: Select One | AT7: Select One | AU7: Select One | AV7: Select One | AW7: Select One
A8: ='Financial Summary'!A13 -> Project 4 | B8: Select One | C8: =_xlfn.XLOOKUP(A8,'Financial Summary'!$A$10:$A$19,'Financial Summary'!$B$10:$B$19,"Unknown",0) -> Select One | D8: =_xlfn.XLOOKUP($A8,'Financial Summary'!$A$10:$A$19,'Financial Summary'!$C$10:$C$19,"Unknown",0) -> Select One | E8: =_xlfn.XLOOKUP($A8,'Financial Summary'!$A$10:$A$19,'Financial Summary'!$D$10:$D$19,"Unknown",0) -> Select One | F8: Select One | G8: Select One | H8: Select One | I8: Select One | J8: Select One | K8: Select One | L8: Select One | M8: Select One | N8: Select One | O8: Select One | P8: Select One | Q8: Select One | R8: Select One | S8: Select One | T8: Select One | U8: Select One | V8: Select One | W8: Select One | X8: Select One | Y8: Select One | Z8: Select One | AA8: Select One | AB8: Select One | AC8: Select One | AD8: Select One | AE8: Select One | AF8: Select One | AG8: Select One | AH8: Select One | AI8: Select One | AJ8: Select One | AK8: Select One | AL8: Select One | AM8: Select One | AN8: Select One | AO8: Select One | AP8: Select One | AQ8: Select One | AR8: Select One | AS8: Select One | AT8: Select One | AU8: Select One | AV8: Select One | AW8: Select One
A9: ='Financial Summary'!A14 -> Project 5 | B9: Select One | C9: =_xlfn.XLOOKUP(A9,'Financial Summary'!$A$10:$A$19,'Financial Summary'!$B$10:$B$19,"Unknown",0) -> Select One | D9: =_xlfn.XLOOKUP($A9,'Financial Summary'!$A$10:$A$19,'Financial Summary'!$C$10:$C$19,"Unknown",0) -> Select One | E9: =_xlfn.XLOOKUP($A9,'Financial Summary'!$A$10:$A$19,'Financial Summary'!$D$10:$D$19,"Unknown",0) -> Select One | F9: Select One | G9: Select One | H9: Select One | I9: Select One | J9: Select One | K9: Select One | L9: Select One | M9: Select One | N9: Select One | O9: Select One | P9: Select One | Q9: Select One | R9: Select One | S9: Select One | T9: Select One | U9: Select One | V9: Select One | W9: Select One | X9: Select One | Y9: Select One | Z9: Select One | AA9: Select One | AB9: Select One | AC9: Select One | AD9: Select One | AE9: Select One | AF9: Select One | AG9: Select One | AH9: Select One | AI9: Select One | AJ9: Select One | AK9: Select One | AL9: Select One | AM9: Select One | AN9: Select One | AO9: Select One | AP9: Select One | AQ9: Select One | AR9: Select One | AS9: Select One | AT9: Select One | AU9: Select One | AV9: Select One | AW9: Select One
A10: ='Financial Summary'!A15 -> Project 6 | B10: Select One | C10: =_xlfn.XLOOKUP(A10,'Financial Summary'!$A$10:$A$19,'Financial Summary'!$B$10:$B$19,"Unknown",0) -> Select One | D10: =_xlfn.XLOOKUP($A10,'Financial Summary'!$A$10:$A$19,'Financial Summary'!$C$10:$C$19,"Unknown",0) -> Select One | E10: =_xlfn.XLOOKUP($A10,'Financial Summary'!$A$10:$A$19,'Financial Summary'!$D$10:$D$19,"Unknown",0) -> Select One | F10: Select One | G10: Select One | H10: Select One | I10: Select One | J10: Select One | K10: Select One | L10: Select One | M10: Select One | N10: Select One | O10: Select One | P10: Select One | Q10: Select One | R10: Select One | S10: Select One | T10: Select One | U10: Select One | V10: Select One | W10: Select One | X10: Select One | Y10: Select One | Z10: Select One | AA10: Select One | AB10: Select One | AC10: Select One | AD10: Select One | AE10: Select One | AF10: Select One | AG10: Select One | AH10: Select One | AI10: Select One | AJ10: Select One | AK10: Select One | AL10: Select One | AM10: Select One | AN10: Select One | AO10: Select One | AP10: Select One | AQ10: Select One | AR10: Select One | AS10: Select One | AT10: Select One | AU10: Select One | AV10: Select One | AW10: Select One
A11: ='Financial Summary'!A16 -> Project 7 | B11: Select One | C11: =_xlfn.XLOOKUP(A11,'Financial Summary'!$A$10:$A$19,'Financial Summary'!$B$10:$B$19,"Unknown",0) -> Select One | D11: =_xlfn.XLOOKUP($A11,'Financial Summary'!$A$10:$A$19,'Financial Summary'!$C$10:$C$19,"Unknown",0) -> Select One | E11: =_xlfn.XLOOKUP($A11,'Financial Summary'!$A$10:$A$19,'Financial Summary'!$D$10:$D$19,"Unknown",0) -> Select One | F11: Select One | G11: Select One | H11: Select One | I11: Select One | J11: Select One | K11: Select One | L11: Select One | M11: Select One | N11: Select One | O11: Select One | P11: Select One | Q11: Select One | R11: Select One | S11: Select One | T11: Select One | U11: Select One | V11: Select One | W11: Select One | X11: Select One | Y11: Select One | Z11: Select One | AA11: Select One | AB11: Select One | AC11: Select One | AD11: Select One | AE11: Select One | AF11: Select One | AG11: Select One | AH11: Select One | AI11: Select One | AJ11: Select One | AK11: Select One | AL11: Select One | AM11: Select One | AN11: Select One | AO11: Select One | AP11: Select One | AQ11: Select One | AR11: Select One | AS11: Select One | AT11: Select One | AU11: Select One | AV11: Select One | AW11: Select One
A12: ='Financial Summary'!A17 -> Project 8 | B12: Select One | C12: =_xlfn.XLOOKUP(A12,'Financial Summary'!$A$10:$A$19,'Financial Summary'!$B$10:$B$19,"Unknown",0) -> Select One | D12: =_xlfn.XLOOKUP($A12,'Financial Summary'!$A$10:$A$19,'Financial Summary'!$C$10:$C$19,"Unknown",0) -> Select One | E12: =_xlfn.XLOOKUP($A12,'Financial Summary'!$A$10:$A$19,'Financial Summary'!$D$10:$D$19,"Unknown",0) -> Select One | F12: Select One | G12: Select One | H12: Select One | I12: Select One | J12: Select One | K12: Select One | L12: Select One | M12: Select One | N12: Select One | O12: Select One | P12: Select One | Q12: Select One | R12: Select One | S12: Select One | T12: Select One | U12: Select One | V12: Select One | W12: Select One | X12: Select One | Y12: Select One | Z12: Select One | AA12: Select One | AB12: Select One | AC12: Select One | AD12: Select One | AE12: Select One | AF12: Select One | AG12: Select One | AH12: Select One | AI12: Select One | AJ12: Select One | AK12: Select One | AL12: Select One | AM12: Select One | AN12: Select One | AO12: Select One | AP12: Select One | AQ12: Select One | AR12: Select One | AS12: Select One | AT12: Select One | AU12: Select One | AV12: Select One | AW12: Select One
A13: ='Financial Summary'!A18 -> Project 9 | B13: Select One | C13: =_xlfn.XLOOKUP(A13,'Financial Summary'!$A$10:$A$19,'Financial Summary'!$B$10:$B$19,"Unknown",0) -> Select One | D13: =_xlfn.XLOOKUP($A13,'Financial Summary'!$A$10:$A$19,'Financial Summary'!$C$10:$C$19,"Unknown",0) -> Select One | E13: =_xlfn.XLOOKUP($A13,'Financial Summary'!$A$10:$A$19,'Financial Summary'!$D$10:$D$19,"Unknown",0) -> Select One | F13: Select One | G13: Select One | H13: Select One | I13: Select One | J13: Select One | K13: Select One | L13: Select One | M13: Select One | N13: Select One | O13: Select One | P13: Select One | Q13: Select One | R13: Select One | S13: Select One | T13: Select One | U13: Select One | V13: Select One | W13: Select One | X13: Select One | Y13: Select One | Z13: Select One | AA13: Select One | AB13: Select One | AC13: Select One | AD13: Select One | AE13: Select One | AF13: Select One | AG13: Select One | AH13: Select One | AI13: Select One | AJ13: Select One | AK13: Select One | AL13: Select One | AM13: Select One | AN13: Select One | AO13: Select One | AP13: Select One | AQ13: Select One | AR13: Select One | AS13: Select One | AT13: Select One | AU13: Select One | AV13: Select One | AW13: Select One
A14: ='Financial Summary'!A19 -> Project 10 | B14: Select One | C14: =_xlfn.XLOOKUP(A14,'Financial Summary'!$A$10:$A$19,'Financial Summary'!$B$10:$B$19,"Unknown",0) -> Select One | D14: =_xlfn.XLOOKUP($A14,'Financial Summary'!$A$10:$A$19,'Financial Summary'!$C$10:$C$19,"Unknown",0) -> Select One | E14: =_xlfn.XLOOKUP($A14,'Financial Summary'!$A$10:$A$19,'Financial Summary'!$D$10:$D$19,"Unknown",0) -> Select One | F14: Select One | G14: Select One | H14: Select One | I14: Select One | J14: Select One | K14: Select One | L14: Select One | M14: Select One | N14: Select One | O14: Select One | P14: Select One | Q14: Select One | R14: Select One | S14: Select One | T14: Select One | U14: Select One | V14: Select One | W14: Select One | X14: Select One | Y14: Select One | Z14: Select One | AA14: Select One | AB14: Select One | AC14: Select One | AD14: Select One | AE14: Select One | AF14: Select One | AG14: Select One | AH14: Select One | AI14: Select One | AJ14: Select One | AK14: Select One | AL14: Select One | AM14: Select One | AN14: Select One | AO14: Select One | AP14: Select One | AQ14: Select One | AR14: Select One | AS14: Select One | AT14: Select One | AU14: Select One | AV14: Select One | AW14: Select One
A15: Additional Notes
A17: Lienholder 1: AAHC/AAHTF - Promissory Note is not applicable Lienholder 1.1: Bank of America - (LA, PN, DoT) - Regulatory Agreement not applicable Lienholder 1.2: CCRC - (DoT, LA, PN) - Regulatory Agreement not applicable Lienholder 3: HCD - MHP- perm loan, no executed docs yet Lienholder 4: HCD - VHHP - perm loan, no executed docs yet Lienholder 5: AAHC/AAHTF - Promissory Note is not applicable Lienholder 6: HCD - IIG - (RA, LA) - Grant. IIG is a grant to the nonprofit developer, Island City Development, which is then being lent to the Limited Partnership. The pertinent documents are Declaration of Restrictive Covenants as Regulatory Agreement, loan agreement between ICD and the LP, and a Disbursement Agreement. Promissory Note and Deed of Trust are not applicable. Lienholder 7: AHA - Ground Lease is the only applicable loan document. Lienholder 8: FHLBSF - AHP - (PN). Promissory Note is the only applicable loan document. Lienholder 9: NEW: Home Depot Grant - (RA, LA). The Home Depot Grant is a grant to the nonprofit developer, Island City Development, which is then being lent to the Limited Partnership. The pertinent documents are a grant agreement between the Home Depot Foundation and ICD and a loan agreement between ICD and the LP. Promissory Note and Deed of Trust are not applicable.

Sheet Certification
A1: Grantee Name: | C1: =IF('Narrative Summary'!F12="","",'Narrative Summary'!F12) -> Alameda Affordable Housing Corporation | I1: HCD Contract Number: | L1: =IF('Narrative Summary'!B12="","",'Narrative Summary'!B12) -> 23-LHTFCOM-18007
A2: Reporting Period: | C2: =IF('Narrative Summary'!F14="","",'Narrative Summary'!F14) -> 7/1/24 - 6/30/25
A3: beginning of certification sheet CERTIFICATION
A4: *Failure to meet reporting requirements will result in notice to the Grantee that it must satisfactorily cure any deficiencies within three months of the notice, or it will be ineligible for any additional LHTF award (LHTF Final Guidelines §111 (c)) **The Department may, as it deems appropriate or necessary, request the repayment of funds from a Grantee, or pursue any other remedies available to it by law for failure to comply with these Guidelines and/or the terms and conditions of the Standard Agreement. (LHTF Final Guidelines §111 (d)) ***By signing this request, I certify to the best of my knowledge and belief that the request is true, complete, and accurate, and the expenditures, disbursements and cash receipts will be for the purposes and objectives set forth in the terms and conditions of the State award. I am aware that any false, fictitious, or fraudulent information, or the omission of any material fact, may subject me to criminal, civil or administrative penalties for fraud, false statements, false claims or otherwise. (U.S. Code Title 18, Section 1001 and Title 31, Sections 3729-3730 and 3801-3812)
A5: Signature Method: | D5: Certification by Printed Name
A6: Name of Authorized Person | J6: Title of Authorized Person
A7: Vanessa Cooper | J7: Secretary
A8: Signature of Authorized Person | J8: Date
A9: Vanessa Cooper | J9: 2025-07-28

Sheet Summary Sheet (hidden)
A2: Local Housing Trust Fund (LHTF)
A4: Review Workbook
A6: Section 1 | P6: This box can be used to add additional comments regarding Sections 1-Section 5
A7: General Information
A8: Rep Information | D8: Reviewing Rep Name | J8: Review Start Date | M8: Review End Date
A10: Manager Information | D10: Reviewing Manager Name | J10: Review Start Date | M10: Review End Date
A12: General Applicant Information | D12: Grantee Name | J12: Contract #
D13: ='Narrative Summary'!F12 -> Alameda Affordable Housing Corporation | J13: ='Narrative Summary'!B12 -> 23-LHTFCOM-18007
D14: Preparer Name and Title | J14: Preparer Contact Information
D15: ='Narrative Summary'!B13 -> Sylvia Martinez, Director of Housing Development | J15: Email: | K15: ='Narrative Summary'!B14 -> smartinez@alamedahsg.org | M15: Phone: | N15: ='Narrative Summary'!$F$13 -> (510) 747-4343
A16: General Review Questions: | D16: Response | F16: Comments | P16: Financial Summary Snapshot
A17: Are all required fillable form fields (yellow cells) filled out completely and accurately? | P17: Award Amount | S17: ='Financial Summary'!A5 -> 1000000
A18: Are there any cells that turned red that are unresolved? | P18: Amount of Program Funds Committed (including admin) | S18: ='Financial Summary'!E20+'Financial Summary'!F20 -> 1000000
A19: Were any concerns raised from grantee's responses to narrative questions? | P19: Amount of Program Funds Expended (including admin) | S19: ='Financial Summary'!E5 -> 1000000
A20: Is this a Regional or a Local housing trust Fund? (Note: PLHA may only be used as match for Regional HTFs - §104 (b)) | P20: Remaining Uncommitted Program Funds | S20: =S17-S18 -> 0
A21: Have at least 40% of program funds been committed? (Cell I5 of Financial Summary. Note: At least 40% of Program Funds must be Committed before applying for future LHTF funding) | P21: Percentage of Committed Program Funds | S21: ='Financial Summary'!I5 -> 1
A22: Section 2
A23: Financial Summary Cells will turn red if Matching Requirements or Section 105 thresholds are not met.
A24: Project | B24: LHTF Amount Committed (including admin) | D24: Match Amount On Deposit (including admin) | E24: Dollar for Dollar Match Confirmed? Guidelines §104(e) | G24: Program Funds Expended to Date, per Financial Summary | I24: Amount Expended and Previously Expended Confirmed by RFFs/Disbursement Tracker? Refer to Columns B and G on the Disbursement Tracker Summary sheet | K24: Amount Expended to date on ELI Guidelines §105(c) | L24: % of LHTF funds for ELI Must be at least 30% of expended funds | M24: Amount Expended to date on LI Guidelines §105(e) | N24: % of LHTF funds for LI | O24: Amount Expended to date on Mod Guidelines §105(d) | P24: % of LHTF funds for Mod Must be no more than 20% of expended funds | Q24: Project Balance Remaining | S24: Do the amounts entered in this report reconcile with amounts recorded on Disbursement Tracker? | U24: Comments
A25: ='Financial Summary'!A10 -> Linnet Corner | B25: ='Financial Summary'!E10+'Financial Summary'!F10 -> 1000000 | D25: ='Financial Summary'!G10+'Financial Summary'!H10 -> 2438000 | E25: Select One | G25: ='Financial Summary'!I10+'Financial Summary'!L10+'Financial Summary'!O10 -> 1000000 | I25: Select One | K25: ='Financial Summary'!I10 -> 300000 | L25: =IFERROR(('Financial Summary'!I10/'Financial Summary'!E10),"") -> 0.3 | M25: ='Financial Summary'!L10 -> 700000 | N25: =IFERROR(('Financial Summary'!L10/'Financial Summary'!E10),"") -> 0.7 | O25: ='Financial Summary'!O10 -> 0 | P25: =IFERROR(('Financial Summary'!O10/'Financial Summary'!E10),"") -> 0 | Q25: =B25-G25 -> 0 | S25: Select One
A26: ='Financial Summary'!A11 -> Project 2 | B26: ='Financial Summary'!E11+'Financial Summary'!F11 -> 0 | D26: ='Financial Summary'!G11+'Financial Summary'!H11 -> 0 | E26: Select One | G26: ='Financial Summary'!I11+'Financial Summary'!L11+'Financial Summary'!O11 -> 0 | I26: Select One | K26: ='Financial Summary'!I11 -> 0 | L26: =IFERROR(('Financial Summary'!I11/'Financial Summary'!E11),"") ->  | M26: ='Financial Summary'!L11 -> 0 | N26: =IFERROR(('Financial Summary'!L11/'Financial Summary'!E11),"") ->  | O26: ='Financial Summary'!O11 -> 0 | P26: =IFERROR(('Financial Summary'!O11/'Financial Summary'!E11),"") ->  | Q26: =B26-G26 -> 0 | S26: Select One
A27: ='Financial Summary'!A12 -> Project 3 | B27: ='Financial Summary'!E12+'Financial Summary'!F12 -> 0 | D27: ='Financial Summary'!G12+'Financial Summary'!H12 -> 0 | E27: Select One | G27: ='Financial Summary'!I12+'Financial Summary'!L12+'Financial Summary'!O12 -> 0 | I27: Select One | K27: ='Financial Summary'!I12 -> 0 | L27: =IFERROR(('Financial Summary'!I12/'Financial Summary'!E12),"") ->  | M27: ='Financial Summary'!L12 -> 0 | N27: =IFERROR(('Financial Summary'!L12/'Financial Summary'!E12),"") ->  | O27: ='Financial Summary'!O12 -> 0 | P27: =IFERROR(('Financial Summary'!O12/'Financial Summary'!E12),"") ->  | Q27: 0 | S27: Select One
A28: ='Financial Summary'!A13 -> Project 4 | B28: ='Financial Summary'!E13+'Financial Summary'!F13 -> 0 | D28: ='Financial Summary'!G13+'Financial Summary'!H13 -> 0 | E28: Select One | G28: ='Financial Summary'!I13+'Financial Summary'!L13+'Financial Summary'!O13 -> 0 | I28: Select One | K28: ='Financial Summary'!I13 -> 0 | L28: =IFERROR(('Financial Summary'!I13/'Financial Summary'!E13),"") ->  | M28: ='Financial Summary'!L13 -> 0 | N28: =IFERROR(('Financial Summary'!L13/'Financial Summary'!E13),"") ->  | O28: ='Financial Summary'!O13 -> 0 | P28: =IFERROR(('Financial Summary'!O13/'Financial Summary'!E13),"") ->  | Q28: 0 | S28: Select One
A29: ='Financial Summary'!A14 -> Project 5 | B29: ='Financial Summary'!E14+'Financial Summary'!F14 -> 0 | D29: ='Financial Summary'!G14+'Financial Summary'!H14 -> 0 | E29: Select One | G29: ='Financial Summary'!I14+'Financial Summary'!L14+'Financial Summary'!O14 -> 0 | I29: Select One | K29: ='Financial Summary'!I14 -> 0 | L29: =IFERROR(('Financial Summary'!I14/'Financial Summary'!E14),"") ->  | M29: ='Financial Summary'!L14 -> 0 | N29: =IFERROR(('Financial Summary'!L14/'Financial Summary'!E14),"") ->  | O29: ='Financial Summary'!O14 -> 0 | P29: =IFERROR(('Financial Summary'!O14/'Financial Summary'!E14),"") ->  | Q29: 0 | S29: Select One
A30: ='Financial Summary'!A15 -> Project 6 | B30: ='Financial Summary'!E15+'Financial Summary'!F15 -> 0 | D30: ='Financial Summary'!G15+'Financial Summary'!H15 -> 0 | E30: Select One | G30: ='Financial Summary'!I15+'Financial Summary'!L15+'Financial Summary'!O15 -> 0 | I30: Select One | K30: ='Financial Summary'!I15 -> 0 | L30: =IFERROR(('Financial Summary'!I15/'Financial Summary'!E15),"") ->  | M30: ='Financial Summary'!L15 -> 0 | N30: =IFERROR(('Financial Summary'!L15/'Financial Summary'!E15),"") ->  | O30: ='Financial Summary'!O15 -> 0 | P30: =IFERROR(('Financial Summary'!O15/'Financial Summary'!E15),"") ->  | Q30: 0 | S30: Select One
A31: ='Financial Summary'!A16 -> Project 7 | B31: ='Financial Summary'!E16+'Financial Summary'!F16 -> 0 | D31: ='Financial Summary'!G16+'Financial Summary'!H16 -> 0 | E31: Select One | G31: ='Financial Summary'!I16+'Financial Summary'!L16+'Financial Summary'!O16 -> 0 | I31: Select One | K31: ='Financial Summary'!I16 -> 0 | L31: =IFERROR(('Financial Summary'!I16/'Financial Summary'!E16),"") ->  | M31: ='Financial Summary'!L16 -> 0 | N31: =IFERROR(('Financial Summary'!L16/'Financial Summary'!E16),"") ->  | O31: ='Financial Summary'!O16 -> 0 | P31: =IFERROR(('Financial Summary'!O16/'Financial Summary'!E16),"") ->  | Q31: 0 | S31: Select One
A32: ='Financial Summary'!A17 -> Project 8 | B32: ='Financial Summary'!E17+'Financial Summary'!F17 -> 0 | D32: ='Financial Summary'!G17+'Financial Summary'!H17 -> 0 | E32: Select One | G32: ='Financial Summary'!I17+'Financial Summary'!L17+'Financial Summary'!O17 -> 0 | I32: Select One | K32: ='Financial Summary'!I17 -> 0 | L32: =IFERROR(('Financial Summary'!I17/'Financial Summary'!E17),"") ->  | M32: ='Financial Summary'!L17 -> 0 | N32: =IFERROR(('Financial Summary'!L17/'Financial Summary'!E17),"") ->  | O32: ='Financial Summary'!O17 -> 0 | P32: =IFERROR(('Financial Summary'!O17/'Financial Summary'!E17),"") ->  | Q32: 0 | S32: Select One
A33: ='Financial Summary'!A18 -> Project 9 | B33: ='Financial Summary'!E18+'Financial Summary'!F18 -> 0 | D33: ='Financial Summary'!G18+'Financial Summary'!H18 -> 0 | E33: Select One | G33: ='Financial Summary'!I18+'Financial Summary'!L18+'Financial Summary'!O18 -> 0 | I33: Select One | K33: ='Financial Summary'!I18 -> 0 | L33: =IFERROR(('Financial Summary'!I18/'Financial Summary'!E18),"") ->  | M33: ='Financial Summary'!L18 -> 0 | N33: =IFERROR(('Financial Summary'!L18/'Financial Summary'!E18),"") ->  | O33: ='Financial Summary'!O18 -> 0 | P33: =IFERROR(('Financial Summary'!O18/'Financial Summary'!E18),"") ->  | Q33: 0 | S33: Select One
A34: ='Financial Summary'!A19 -> Project 10 | B34: ='Financial Summary'!E19+'Financial Summary'!F19 -> 0 | D34: ='Financial Summary'!G19+'Financial Summary'!H19 -> 0 | E34: Select One | G34: ='Financial Summary'!I19+'Financial Summary'!L19+'Financial Summary'!O19 -> 0 | I34: Select One | K34: ='Financial Summary'!I19 -> 0 | L34: =IFERROR(('Financial Summary'!I19/'Financial Summary'!E19),"") ->  | M34: ='Financial Summary'!L19 -> 0 | N34: =IFERROR(('Financial Summary'!L19/'Financial Summary'!E19),"") ->  | O34: ='Financial Summary'!O19 -> 0 | P34: =IFERROR(('Financial Summary'!O19/'Financial Summary'!E19),"") ->  | Q34: =B34-G34 -> 0 | S34: Select One
K35: Based on full award (expenditures for ALL projects) >>> | L35: =IFERROR(IF(SUM(((K25:K34))/'Financial Summary'!A5)<0.3,"Less than 30% of funds have been expended on ELI","More than 30% of funds have been expended on ELI"),"") -> More than 30% of funds have been expended on ELI | O35: Based on full award (expenditures for ALL projects) >>> | P35: =IFERROR(IF(SUM(((O25:O34))/'Financial Summary'!A5)>0.2,"More than 20% of funds have been expended on MI","Less than 20% of funds have been expended on MI"),"") -> Less than 20% of funds have been expended on MI | Q35: =SUM(Q25:Q34) -> 0
A36: Section 3 | K36: Section 4
A37: Application Scoring Validation | K37: Other Project Details Note: Project Details Tabs must be completed for information to show in this section
A38: Activity | B38: % Match from Non-Residential Sources May Impact Score For Future Funding See NOFA Page 4 | C38: Score Value | D38: Deeper Income Targeting (100% = all LI, any other % = MI) | E38: Score Value | F38: Increasing the Supply of LI Rental Housing (NOTE: 2021 scoring differs from other NOFAs) | G38: Score Value | H38: Based on final score at the time of award, is the grantee complying? | I38: Comments | K38: Project | L38: Loan Status If project is "Closed" AND reported 'Closed' on last year's Annual Report, no other Project Details should populate. | N38: Project Type per Section 101 (g) | P38: Project Category | R38: Project Status | T38: Project Activity | V38: Project Completion Date (if applicable) | X38: Was Appropriate Documentation Certifying Completion Submitted?
A39: ='Financial Summary'!A10 -> Linnet Corner | B39: =IFERROR(_xlfn.XLOOKUP($A39,INDIRECT("'"&$A39&"'!"&"$C$9"),INDIRECT("'"&$A39&"'!"&"$K$2"),"Not Found"),"") -> 1 | C39: =IFERROR(IF(B39="Not Found","",(IF((_xlfn.XLOOKUP($A39,INDIRECT("'"&$A39&"'!"&"$C$9"),INDIRECT("'"&$A39&"'!"&"$K$2"),""))<=0.25,"5",IF(AND((_xlfn.XLOOKUP($A39,INDIRECT("'"&$A39&"'!"&"$C$9"),INDIRECT("'"&$A39&"'!"&"$K$2"),""))>0.25,(_xlfn.XLOOKUP($A39,INDIRECT("'"&$A39&"'!"&"$C$9"),INDIRECT("'"&$A39&"'!"&"$K$2"),"")<=0.5)),"10",IF(_xlfn.XLOOKUP($A39,INDIRECT("'"&$A39&"'!"&"$C$9"),INDIRECT("'"&$A39&"'!"&"$K$2"),"")>0.5,"15",""))))),"") -> 15 | D39: =IFERROR(IF(_xlfn.XLOOKUP($A39,INDIRECT("'"&$A39&"'!"&"$C$9"),INDIRECT("'"&$A39&"'!"&"$N$13"),"Not Found")>0,_xlfn.XLOOKUP($A39,INDIRECT("'"&$A39&"'!"&"$C$9"),INDIRECT("'"&$A39&"'!"&"$N$13"),"Not Found"),IF((_xlfn.XLOOKUP($A39,INDIRECT("'"&$A39&"'!"&"$C$9"),INDIRECT("'"&$A39&"'!"&"$N$14"),"")+(_xlfn.XLOOKUP($A39,INDIRECT("'"&$A39&"'!"&"$C$9"),INDIRECT("'"&$A39&"'!"&"$N$14"),"Not Found")))=1,(_xlfn.XLOOKUP($A39,INDIRECT("'"&$A39&"'!"&"$C$9"),INDIRECT("'"&$A39&"'!"&"$N$16"),"Not Found")+(_xlfn.XLOOKUP($A39,INDIRECT("'"&$A39&"'!"&"$C$9"),INDIRECT("'"&$A39&"'!"&"$N$16"),""))),"")),"") -> 0.301587269 | E39: =IFERROR(IF((_xlfn.XLOOKUP($A39,INDIRECT("'"&$A39&"'!"&"$C$9"),INDIRECT("'"&$A39&"'!"&"$L$13"),""))>0.18,"0",IF((_xlfn.XLOOKUP($A39,INDIRECT("'"&$A39&"'!"&"$C$9"),INDIRECT("'"&$A39&"'!"&"$L$13"),""))>0.1,"5",IF((_xlfn.XLOOKUP($A39,INDIRECT("'"&$A39&"'!"&"$C$9"),INDIRECT("'"&$A39&"'!"&"$L$13"),""))>0.05,"10",IF((_xlfn.XLOOKUP($A39,INDIRECT("'"&$A39&"'!"&"$C$9"),INDIRECT("'"&$A39&"'!"&"$L$13"),""))>0,"15",IF(((_xlfn.XLOOKUP($A39,INDIRECT("'"&$A39&"'!"&"$C$9"),INDIRECT("'"&$A39&"'!"&"$L$11"),"")+(_xlfn.XLOOKUP($A39,INDIRECT("'"&$A39&"'!"&"$C$9"),INDIRECT("'"&$A39&"'!"&"$L$12"),""))))=1,"20",""))))),"") -> 0 | G39: =IFERROR(IF(F39="≤50% funding for ≤60% AMI","0",IF(F39="51% - 74% funding for ≤60% AMI","10",IF(F39="75% - 99% funding for ≤60% AMI","15",IF(F39="100% funding for ≤60% AMI","20",IF(F39="2021-100% perm for ≤60% AMI","20",IF(F39="2021-75% - 99% perm for ≤60% AMI","15",IF(F39="2021-100% non-perm for ≤60% AMI","10",IF(F39="2021-75% - 99% non-perm for ≤60% AMI","7.5","")))))))),"") ->  | H39: Select One | K39: ='Financial Summary'!A10 -> Linnet Corner | L39: =IF('Financial Summary'!D10<>"",'Financial Summary'!D10,"") -> Closed | N39: =IF('Financial Summary'!B10="Select One","",'Financial Summary'!B10) -> Rental Housing Project with Mixed Permanent Supportive Housing Units | P39: =IFERROR(_xlfn.XLOOKUP($K39,INDIRECT("'"&$K39&"'!"&"$C$9"),INDIRECT("'"&$K39&"'!"&"$C$11"),"Not Found"),"") -> Rental Housing Project with Mixed Permanent Supportive Housing Units | R39: =IFERROR(_xlfn.XLOOKUP($K39,INDIRECT("'"&$K39&"'!"&"$C$9"),INDIRECT("'"&$K39&"'!"&"$C$12"),"Not Found"),"") -> Under Construction | T39: =IFERROR(_xlfn.XLOOKUP($K39,INDIRECT("'"&$K39&"'!"&"$C$9"),INDIRECT("'"&$K39&"'!"&"$E$11"),"Not Found"),"") -> New Construction | V39: =IFERROR(IF(_xlfn.XLOOKUP($K39,INDIRECT("'"&$K39&"'!"&"$C$9"),INDIRECT("'"&$K39&"'!"&"$E$12"),"Not Found")>0,INDIRECT("'"&$K39&"'!"&"$E$12"),""),"") -> N/A | X39: Select One | AB39: 0.25
A40: ='Financial Summary'!A11 -> Project 2 | B40: =IFERROR(_xlfn.XLOOKUP($A40,INDIRECT("'"&$A40&"'!"&"$C$9"),INDIRECT("'"&$A40&"'!"&"$K$2"),"Not Found"),"") ->  | C40: =IFERROR(IF((_xlfn.XLOOKUP($A40,INDIRECT("'"&$A40&"'!"&"$C$9"),INDIRECT("'"&$A40&"'!"&"$K$2"),""))<=0.25,"5",IF(AND((_xlfn.XLOOKUP($A40,INDIRECT("'"&$A40&"'!"&"$C$9"),INDIRECT("'"&$A40&"'!"&"$K$2"),""))>0.25,(_xlfn.XLOOKUP($A40,INDIRECT("'"&$A40&"'!"&"$C$9"),INDIRECT("'"&$A40&"'!"&"$K$2"),"")<=0.5)),"10",IF(_xlfn.XLOOKUP($A40,INDIRECT("'"&$A40&"'!"&"$C$9"),INDIRECT("'"&$A40&"'!"&"$K$2"),"")>0.5,"15"))),"") ->  | D40: =IFERROR(IF(_xlfn.XLOOKUP($A40,INDIRECT("'"&$A40&"'!"&"$C$9"),INDIRECT("'"&$A40&"'!"&"$L$13"),"Not Found")>0,_xlfn.XLOOKUP($A40,INDIRECT("'"&$A40&"'!"&"$C$9"),INDIRECT("'"&$A40&"'!"&"$L$13"),"Not Found"),IF((_xlfn.XLOOKUP($A40,INDIRECT("'"&$A40&"'!"&"$C$9"),INDIRECT("'"&$A40&"'!"&"$L$11"),"")+(_xlfn.XLOOKUP($A40,INDIRECT("'"&$A40&"'!"&"$C$9"),INDIRECT("'"&$A40&"'!"&"$L$12"),"Not Found")))=1,(_xlfn.XLOOKUP($A40,INDIRECT("'"&$A40&"'!"&"$C$9"),INDIRECT("'"&$A40&"'!"&"$L$12"),"Not Found")+(_xlfn.XLOOKUP($A40,INDIRECT("'"&$A40&"'!"&"$C$9"),INDIRECT("'"&$A40&"'!"&"$L$11"),""))),"")),"") ->  | E40: =IFERROR(IF((_xlfn.XLOOKUP($A40,INDIRECT("'"&$A40&"'!"&"$C$9"),INDIRECT("'"&$A40&"'!"&"$L$13"),""))>0.18,"0",IF((_xlfn.XLOOKUP($A40,INDIRECT("'"&$A40&"'!"&"$C$9"),INDIRECT("'"&$A40&"'!"&"$L$13"),""))>0.1,"5",IF((_xlfn.XLOOKUP($A40,INDIRECT("'"&$A40&"'!"&"$C$9"),INDIRECT("'"&$A40&"'!"&"$L$13"),""))>0.05,"10",IF((_xlfn.XLOOKUP($A40,INDIRECT("'"&$A40&"'!"&"$C$9"),INDIRECT("'"&$A40&"'!"&"$L$13"),""))>0,"15",IF(((_xlfn.XLOOKUP($A40,INDIRECT("'"&$A40&"'!"&"$C$9"),INDIRECT("'"&$A40&"'!"&"$L$11"),"")+(_xlfn.XLOOKUP($A40,INDIRECT("'"&$A40&"'!"&"$C$9"),INDIRECT("'"&$A40&"'!"&"$L$12"),""))))=1,"20",""))))),"") ->  | G40: =IFERROR(IF(F40="≤50% funding for ≤60% AMI","0",IF(F40="51% - 74% funding for ≤60% AMI","10",IF(F40="75% - 99% funding for ≤60% AMI","15",IF(F40="100% funding for ≤60% AMI","20",IF(F40="2021-100% perm for ≤60% AMI","20",IF(F40="2021-75% - 99% perm for ≤60% AMI","15",IF(F40="2021-100% non-perm for ≤60% AMI","10",IF(F40="2021-75% - 99% non-perm for ≤60% AMI","7.5","")))))))),"") ->  | H40: Select One | K40: ='Financial Summary'!A11 -> Project 2 | L40: =IF('Financial Summary'!D11<>"",'Financial Summary'!D11,"") -> Select One | N40: =IF('Financial Summary'!B11="Select One","",'Financial Summary'!B11) ->  | P40: =IFERROR(_xlfn.XLOOKUP($K40,INDIRECT("'"&$K40&"'!"&"$C$9"),INDIRECT("'"&$K40&"'!"&"$C$11"),"Not Found"),"") ->  | R40: =IFERROR(_xlfn.XLOOKUP($K40,INDIRECT("'"&$K40&"'!"&"$C$9"),INDIRECT("'"&$K40&"'!"&"$C$12"),"Not Found"),"") ->  | T40: =IFERROR(_xlfn.XLOOKUP($K40,INDIRECT("'"&$K40&"'!"&"$C$9"),INDIRECT("'"&$K40&"'!"&"$E$11"),"Not Found"),"") ->  | V40: =IFERROR(IF(_xlfn.XLOOKUP($K40,INDIRECT("'"&$K40&"'!"&"$C$9"),INDIRECT("'"&$K40&"'!"&"$E$12"),"Not Found")>0,INDIRECT("'"&$K40&"'!"&"$E$12"),""),"") ->  | X40: Select One | AB40: 0.5
A41: ='Financial Summary'!A12 -> Project 3 | B41: =IFERROR(_xlfn.XLOOKUP($A41,INDIRECT("'"&$A41&"'!"&"$C$9"),INDIRECT("'"&$A41&"'!"&"$K$2"),"Not Found"),"") ->  | C41: =IFERROR(IF((_xlfn.XLOOKUP($A41,INDIRECT("'"&$A41&"'!"&"$C$9"),INDIRECT("'"&$A41&"'!"&"$K$2"),""))<=0.25,"5",IF(AND((_xlfn.XLOOKUP($A41,INDIRECT("'"&$A41&"'!"&"$C$9"),INDIRECT("'"&$A41&"'!"&"$K$2"),""))>0.25,(_xlfn.XLOOKUP($A41,INDIRECT("'"&$A41&"'!"&"$C$9"),INDIRECT("'"&$A41&"'!"&"$K$2"),"")<=0.5)),"10",IF(_xlfn.XLOOKUP($A41,INDIRECT("'"&$A41&"'!"&"$C$9"),INDIRECT("'"&$A41&"'!"&"$K$2"),"")>0.5,"15"))),"") ->  | D41: =IFERROR(IF(_xlfn.XLOOKUP($A41,INDIRECT("'"&$A41&"'!"&"$C$9"),INDIRECT("'"&$A41&"'!"&"$L$13"),"Not Found")>0,_xlfn.XLOOKUP($A41,INDIRECT("'"&$A41&"'!"&"$C$9"),INDIRECT("'"&$A41&"'!"&"$L$13"),"Not Found"),IF((_xlfn.XLOOKUP($A41,INDIRECT("'"&$A41&"'!"&"$C$9"),INDIRECT("'"&$A41&"'!"&"$L$11"),"")+(_xlfn.XLOOKUP($A41,INDIRECT("'"&$A41&"'!"&"$C$9"),INDIRECT("'"&$A41&"'!"&"$L$12"),"Not Found")))=1,(_xlfn.XLOOKUP($A41,INDIRECT("'"&$A41&"'!"&"$C$9"),INDIRECT("'"&$A41&"'!"&"$L$12"),"Not Found")+(_xlfn.XLOOKUP($A41,INDIRECT("'"&$A41&"'!"&"$C$9"),INDIRECT("'"&$A41&"'!"&"$L$11"),""))),"")),"") ->  | E41: =IFERROR(IF((_xlfn.XLOOKUP($A41,INDIRECT("'"&$A41&"'!"&"$C$9"),INDIRECT("'"&$A41&"'!"&"$L$13"),""))>0.18,"0",IF((_xlfn.XLOOKUP($A41,INDIRECT("'"&$A41&"'!"&"$C$9"),INDIRECT("'"&$A41&"'!"&"$L$13"),""))>0.1,"5",IF((_xlfn.XLOOKUP($A41,INDIRECT("'"&$A41&"'!"&"$C$9"),INDIRECT("'"&$A41&"'!"&"$L$13"),""))>0.05,"10",IF((_xlfn.XLOOKUP($A41,INDIRECT("'"&$A41&"'!"&"$C$9"),INDIRECT("'"&$A41&"'!"&"$L$13"),""))>0,"15",IF(((_xlfn.XLOOKUP($A41,INDIRECT("'"&$A41&"'!"&"$C$9"),INDIRECT("'"&$A41&"'!"&"$L$11"),"")+(_xlfn.XLOOKUP($A41,INDIRECT("'"&$A41&"'!"&"$C$9"),INDIRECT("'"&$A41&"'!"&"$L$12"),""))))=1,"20",""))))),"") ->  | H41: Select One | K41: ='Financial Summary'!A12 -> Project 3 | L41: =IF('Financial Summary'!D12<>"",'Financial Summary'!D12,"") -> Select One | N41: =IF('Financial Summary'!B12="Select One","",'Financial Summary'!B12) ->  | P41: =IFERROR(_xlfn.XLOOKUP($K41,INDIRECT("'"&$K41&"'!"&"$C$9"),INDIRECT("'"&$K41&"'!"&"$C$11"),"Not Found"),"") ->  | R41: =IFERROR(_xlfn.XLOOKUP($K41,INDIRECT("'"&$K41&"'!"&"$C$9"),INDIRECT("'"&$K41&"'!"&"$C$12"),"Not Found"),"") ->  | T41: =IFERROR(_xlfn.XLOOKUP($K41,INDIRECT("'"&$K41&"'!"&"$C$9"),INDIRECT("'"&$K41&"'!"&"$E$11"),"Not Found"),"") ->  | V41: =IFERROR(IF(_xlfn.XLOOKUP($K41,INDIRECT("'"&$K41&"'!"&"$C$9"),INDIRECT("'"&$K41&"'!"&"$E$12"),"Not Found")>0,INDIRECT("'"&$K41&"'!"&"$E$12"),""),"") ->  | X41: Select One
A42: ='Financial Summary'!A13 -> Project 4 | B42: =IFERROR(_xlfn.XLOOKUP($A42,INDIRECT("'"&$A42&"'!"&"$C$9"),INDIRECT("'"&$A42&"'!"&"$K$2"),"Not Found"),"") ->  | C42: =IFERROR(IF((_xlfn.XLOOKUP($A42,INDIRECT("'"&$A42&"'!"&"$C$9"),INDIRECT("'"&$A42&"'!"&"$K$2"),""))<=0.25,"5",IF(AND((_xlfn.XLOOKUP($A42,INDIRECT("'"&$A42&"'!"&"$C$9"),INDIRECT("'"&$A42&"'!"&"$K$2"),""))>0.25,(_xlfn.XLOOKUP($A42,INDIRECT("'"&$A42&"'!"&"$C$9"),INDIRECT("'"&$A42&"'!"&"$K$2"),"")<=0.5)),"10",IF(_xlfn.XLOOKUP($A42,INDIRECT("'"&$A42&"'!"&"$C$9"),INDIRECT("'"&$A42&"'!"&"$K$2"),"")>0.5,"15"))),"") ->  | D42: =IFERROR(IF(_xlfn.XLOOKUP($A42,INDIRECT("'"&$A42&"'!"&"$C$9"),INDIRECT("'"&$A42&"'!"&"$L$13"),"Not Found")>0,_xlfn.XLOOKUP($A42,INDIRECT("'"&$A42&"'!"&"$C$9"),INDIRECT("'"&$A42&"'!"&"$L$13"),"Not Found"),IF((_xlfn.XLOOKUP($A42,INDIRECT("'"&$A42&"'!"&"$C$9"),INDIRECT("'"&$A42&"'!"&"$L$11"),"")+(_xlfn.XLOOKUP($A42,INDIRECT("'"&$A42&"'!"&"$C$9"),INDIRECT("'"&$A42&"'!"&"$L$12"),"Not Found")))=1,(_xlfn.XLOOKUP($A42,INDIRECT("'"&$A42&"'!"&"$C$9"),INDIRECT("'"&$A42&"'!"&"$L$12"),"Not Found")+(_xlfn.XLOOKUP($A42,INDIRECT("'"&$A42&"'!"&"$C$9"),INDIRECT("'"&$A42&"'!"&"$L$11"),""))),"")),"") ->  | E42: =IFERROR(IF((_xlfn.XLOOKUP($A42,INDIRECT("'"&$A42&"'!"&"$C$9"),INDIRECT("'"&$A42&"'!"&"$L$13"),""))>0.18,"0",IF((_xlfn.XLOOKUP($A42,INDIRECT("'"&$A42&"'!"&"$C$9"),INDIRECT("'"&$A42&"'!"&"$L$13"),""))>0.1,"5",IF((_xlfn.XLOOKUP($A42,INDIRECT("'"&$A42&"'!"&"$C$9"),INDIRECT("'"&$A42&"'!"&"$L$13"),""))>0.05,"10",IF((_xlfn.XLOOKUP($A42,INDIRECT("'"&$A42&"'!"&"$C$9"),INDIRECT("'"&$A42&"'!"&"$L$13"),""))>0,"15",IF(((_xlfn.XLOOKUP($A42,INDIRECT("'"&$A42&"'!"&"$C$9"),INDIRECT("'"&$A42&"'!"&"$L$11"),"")+(_xlfn.XLOOKUP($A42,INDIRECT("'"&$A42&"'!"&"$C$9"),INDIRECT("'"&$A42&"'!"&"$L$12"),""))))=1,"20",""))))),"") ->  | H42: Select One | K42: ='Financial Summary'!A13 -> Project 4 | L42: =IF('Financial Summary'!D13<>"",'Financial Summary'!D13,"") -> Select One | N42: =IF('Financial Summary'!B13="Select One","",'Financial Summary'!B13) ->  | P42: =IFERROR(_xlfn.XLOOKUP($K42,INDIRECT("'"&$K42&"'!"&"$C$9"),INDIRECT("'"&$K42&"'!"&"$C$11"),"Not Found"),"") ->  | R42: =IFERROR(_xlfn.XLOOKUP($K42,INDIRECT("'"&$K42&"'!"&"$C$9"),INDIRECT("'"&$K42&"'!"&"$C$12"),"Not Found"),"") ->  | T42: =IFERROR(_xlfn.XLOOKUP($K42,INDIRECT("'"&$K42&"'!"&"$C$9"),INDIRECT("'"&$K42&"'!"&"$E$11"),"Not Found"),"") ->  | V42: =IFERROR(IF(_xlfn.XLOOKUP($K42,INDIRECT("'"&$K42&"'!"&"$C$9"),INDIRECT("'"&$K42&"'!"&"$E$12"),"Not Found")>0,INDIRECT("'"&$K42&"'!"&"$E$12"),""),"") ->  | X42: Select One
A43: ='Financial Summary'!A14 -> Project 5 | B43: =IFERROR(_xlfn.XLOOKUP($A43,INDIRECT("'"&$A43&"'!"&"$C$9"),INDIRECT("'"&$A43&"'!"&"$K$2"),"Not Found"),"") ->  | C43: =IFERROR(IF((_xlfn.XLOOKUP($A43,INDIRECT("'"&$A43&"'!"&"$C$9"),INDIRECT("'"&$A43&"'!"&"$K$2"),""))<=0.25,"5",IF(AND((_xlfn.XLOOKUP($A43,INDIRECT("'"&$A43&"'!"&"$C$9"),INDIRECT("'"&$A43&"'!"&"$K$2"),""))>0.25,(_xlfn.XLOOKUP($A43,INDIRECT("'"&$A43&"'!"&"$C$9"),INDIRECT("'"&$A43&"'!"&"$K$2"),"")<=0.5)),"10",IF(_xlfn.XLOOKUP($A43,INDIRECT("'"&$A43&"'!"&"$C$9"),INDIRECT("'"&$A43&"'!"&"$K$2"),"")>0.5,"15"))),"") ->  | D43: =IFERROR(IF(_xlfn.XLOOKUP($A43,INDIRECT("'"&$A43&"'!"&"$C$9"),INDIRECT("'"&$A43&"'!"&"$L$13"),"Not Found")>0,_xlfn.XLOOKUP($A43,INDIRECT("'"&$A43&"'!"&"$C$9"),INDIRECT("'"&$A43&"'!"&"$L$13"),"Not Found"),IF((_xlfn.XLOOKUP($A43,INDIRECT("'"&$A43&"'!"&"$C$9"),INDIRECT("'"&$A43&"'!"&"$L$11"),"")+(_xlfn.XLOOKUP($A43,INDIRECT("'"&$A43&"'!"&"$C$9"),INDIRECT("'"&$A43&"'!"&"$L$12"),"Not Found")))=1,(_xlfn.XLOOKUP($A43,INDIRECT("'"&$A43&"'!"&"$C$9"),INDIRECT("'"&$A43&"'!"&"$L$12"),"Not Found")+(_xlfn.XLOOKUP($A43,INDIRECT("'"&$A43&"'!"&"$C$9"),INDIRECT("'"&$A43&"'!"&"$L$11"),""))),"")),"") ->  | E43: =IFERROR(IF((_xlfn.XLOOKUP($A43,INDIRECT("'"&$A43&"'!"&"$C$9"),INDIRECT("'"&$A43&"'!"&"$L$13"),""))>0.18,"0",IF((_xlfn.XLOOKUP($A43,INDIRECT("'"&$A43&"'!"&"$C$9"),INDIRECT("'"&$A43&"'!"&"$L$13"),""))>0.1,"5",IF((_xlfn.XLOOKUP($A43,INDIRECT("'"&$A43&"'!"&"$C$9"),INDIRECT("'"&$A43&"'!"&"$L$13"),""))>0.05,"10",IF((_xlfn.XLOOKUP($A43,INDIRECT("'"&$A43&"'!"&"$C$9"),INDIRECT("'"&$A43&"'!"&"$L$13"),""))>0,"15",IF(((_xlfn.XLOOKUP($A43,INDIRECT("'"&$A43&"'!"&"$C$9"),INDIRECT("'"&$A43&"'!"&"$L$11"),"")+(_xlfn.XLOOKUP($A43,INDIRECT("'"&$A43&"'!"&"$C$9"),INDIRECT("'"&$A43&"'!"&"$L$12"),""))))=1,"20",""))))),"") ->  | H43: Select One | K43: ='Financial Summary'!A14 -> Project 5 | L43: =IF('Financial Summary'!D14<>"",'Financial Summary'!D14,"") -> Select One | N43: =IF('Financial Summary'!B14="Select One","",'Financial Summary'!B14) ->  | P43: =IFERROR(_xlfn.XLOOKUP($K43,INDIRECT("'"&$K43&"'!"&"$C$9"),INDIRECT("'"&$K43&"'!"&"$C$11"),"Not Found"),"") ->  | R43: =IFERROR(_xlfn.XLOOKUP($K43,INDIRECT("'"&$K43&"'!"&"$C$9"),INDIRECT("'"&$K43&"'!"&"$C$12"),"Not Found"),"") ->  | T43: =IFERROR(_xlfn.XLOOKUP($K43,INDIRECT("'"&$K43&"'!"&"$C$9"),INDIRECT("'"&$K43&"'!"&"$E$11"),"Not Found"),"") ->  | V43: =IFERROR(IF(_xlfn.XLOOKUP($K43,INDIRECT("'"&$K43&"'!"&"$C$9"),INDIRECT("'"&$K43&"'!"&"$E$12"),"Not Found")>0,INDIRECT("'"&$K43&"'!"&"$E$12"),""),"") ->  | X43: Select One
A44: ='Financial Summary'!A15 -> Project 6 | B44: =IFERROR(_xlfn.XLOOKUP($A44,INDIRECT("'"&$A44&"'!"&"$C$9"),INDIRECT("'"&$A44&"'!"&"$K$2"),"Not Found"),"") ->  | C44: =IFERROR(IF((_xlfn.XLOOKUP($A44,INDIRECT("'"&$A44&"'!"&"$C$9"),INDIRECT("'"&$A44&"'!"&"$K$2"),""))<=0.25,"5",IF(AND((_xlfn.XLOOKUP($A44,INDIRECT("'"&$A44&"'!"&"$C$9"),INDIRECT("'"&$A44&"'!"&"$K$2"),""))>0.25,(_xlfn.XLOOKUP($A44,INDIRECT("'"&$A44&"'!"&"$C$9"),INDIRECT("'"&$A44&"'!"&"$K$2"),"")<=0.5)),"10",IF(_xlfn.XLOOKUP($A44,INDIRECT("'"&$A44&"'!"&"$C$9"),INDIRECT("'"&$A44&"'!"&"$K$2"),"")>0.5,"15"))),"") ->  | D44: =IFERROR(IF(_xlfn.XLOOKUP($A44,INDIRECT("'"&$A44&"'!"&"$C$9"),INDIRECT("'"&$A44&"'!"&"$L$13"),"Not Found")>0,_xlfn.XLOOKUP($A44,INDIRECT("'"&$A44&"'!"&"$C$9"),INDIRECT("'"&$A44&"'!"&"$L$13"),"Not Found"),IF((_xlfn.XLOOKUP($A44,INDIRECT("'"&$A44&"'!"&"$C$9"),INDIRECT("'"&$A44&"'!"&"$L$11"),"")+(_xlfn.XLOOKUP($A44,INDIRECT("'"&$A44&"'!"&"$C$9"),INDIRECT("'"&$A44&"'!"&"$L$12"),"Not Found")))=1,(_xlfn.XLOOKUP($A44,INDIRECT("'"&$A44&"'!"&"$C$9"),INDIRECT("'"&$A44&"'!"&"$L$12"),"Not Found")+(_xlfn.XLOOKUP($A44,INDIRECT("'"&$A44&"'!"&"$C$9"),INDIRECT("'"&$A44&"'!"&"$L$11"),""))),"")),"") ->  | E44: =IFERROR(IF((_xlfn.XLOOKUP($A44,INDIRECT("'"&$A44&"'!"&"$C$9"),INDIRECT("'"&$A44&"'!"&"$L$13"),""))>0.18,"0",IF((_xlfn.XLOOKUP($A44,INDIRECT("'"&$A44&"'!"&"$C$9"),INDIRECT("'"&$A44&"'!"&"$L$13"),""))>0.1,"5",IF((_xlfn.XLOOKUP($A44,INDIRECT("'"&$A44&"'!"&"$C$9"),INDIRECT("'"&$A44&"'!"&"$L$13"),""))>0.05,"10",IF((_xlfn.XLOOKUP($A44,INDIRECT("'"&$A44&"'!"&"$C$9"),INDIRECT("'"&$A44&"'!"&"$L$13"),""))>0,"15",IF(((_xlfn.XLOOKUP($A44,INDIRECT("'"&$A44&"'!"&"$C$9"),INDIRECT("'"&$A44&"'!"&"$L$11"),"")+(_xlfn.XLOOKUP($A44,INDIRECT("'"&$A44&"'!"&"$C$9"),INDIRECT("'"&$A44&"'!"&"$L$12"),""))))=1,"20",""))))),"") ->  | H44: Select One | K44: ='Financial Summary'!A15 -> Project 6 | L44: =IF('Financial Summary'!D15<>"",'Financial Summary'!D15,"") -> Select One | N44: =IF('Financial Summary'!B15="Select One","",'Financial Summary'!B15) ->  | P44: =IFERROR(_xlfn.XLOOKUP($K44,INDIRECT("'"&$K44&"'!"&"$C$9"),INDIRECT("'"&$K44&"'!"&"$C$11"),"Not Found"),"") ->  | R44: =IFERROR(_xlfn.XLOOKUP($K44,INDIRECT("'"&$K44&"'!"&"$C$9"),INDIRECT("'"&$K44&"'!"&"$C$12"),"Not Found"),"") ->  | T44: =IFERROR(_xlfn.XLOOKUP($K44,INDIRECT("'"&$K44&"'!"&"$C$9"),INDIRECT("'"&$K44&"'!"&"$E$11"),"Not Found"),"") ->  | V44: =IFERROR(IF(_xlfn.XLOOKUP($K44,INDIRECT("'"&$K44&"'!"&"$C$9"),INDIRECT("'"&$K44&"'!"&"$E$12"),"Not Found")>0,INDIRECT("'"&$K44&"'!"&"$E$12"),""),"") ->  | X44: Select One
A45: ='Financial Summary'!A16 -> Project 7 | B45: =IFERROR(_xlfn.XLOOKUP($A45,INDIRECT("'"&$A45&"'!"&"$C$9"),INDIRECT("'"&$A45&"'!"&"$K$2"),"Not Found"),"") ->  | C45: =IFERROR(IF((_xlfn.XLOOKUP($A45,INDIRECT("'"&$A45&"'!"&"$C$9"),INDIRECT("'"&$A45&"'!"&"$K$2"),""))<=0.25,"5",IF(AND((_xlfn.XLOOKUP($A45,INDIRECT("'"&$A45&"'!"&"$C$9"),INDIRECT("'"&$A45&"'!"&"$K$2"),""))>0.25,(_xlfn.XLOOKUP($A45,INDIRECT("'"&$A45&"'!"&"$C$9"),INDIRECT("'"&$A45&"'!"&"$K$2"),"")<=0.5)),"10",IF(_xlfn.XLOOKUP($A45,INDIRECT("'"&$A45&"'!"&"$C$9"),INDIRECT("'"&$A45&"'!"&"$K$2"),"")>0.5,"15"))),"") ->  | D45: =IFERROR(IF(_xlfn.XLOOKUP($A45,INDIRECT("'"&$A45&"'!"&"$C$9"),INDIRECT("'"&$A45&"'!"&"$L$13"),"Not Found")>0,_xlfn.XLOOKUP($A45,INDIRECT("'"&$A45&"'!"&"$C$9"),INDIRECT("'"&$A45&"'!"&"$L$13"),"Not Found"),IF((_xlfn.XLOOKUP($A45,INDIRECT("'"&$A45&"'!"&"$C$9"),INDIRECT("'"&$A45&"'!"&"$L$11"),"")+(_xlfn.XLOOKUP($A45,INDIRECT("'"&$A45&"'!"&"$C$9"),INDIRECT("'"&$A45&"'!"&"$L$12"),"Not Found")))=1,(_xlfn.XLOOKUP($A45,INDIRECT("'"&$A45&"'!"&"$C$9"),INDIRECT("'"&$A45&"'!"&"$L$12"),"Not Found")+(_xlfn.XLOOKUP($A45,INDIRECT("'"&$A45&"'!"&"$C$9"),INDIRECT("'"&$A45&"'!"&"$L$11"),""))),"")),"") ->  | E45: =IFERROR(IF((_xlfn.XLOOKUP($A45,INDIRECT("'"&$A45&"'!"&"$C$9"),INDIRECT("'"&$A45&"'!"&"$L$13"),""))>0.18,"0",IF((_xlfn.XLOOKUP($A45,INDIRECT("'"&$A45&"'!"&"$C$9"),INDIRECT("'"&$A45&"'!"&"$L$13"),""))>0.1,"5",IF((_xlfn.XLOOKUP($A45,INDIRECT("'"&$A45&"'!"&"$C$9"),INDIRECT("'"&$A45&"'!"&"$L$13"),""))>0.05,"10",IF((_xlfn.XLOOKUP($A45,INDIRECT("'"&$A45&"'!"&"$C$9"),INDIRECT("'"&$A45&"'!"&"$L$13"),""))>0,"15",IF(((_xlfn.XLOOKUP($A45,INDIRECT("'"&$A45&"'!"&"$C$9"),INDIRECT("'"&$A45&"'!"&"$L$11"),"")+(_xlfn.XLOOKUP($A45,INDIRECT("'"&$A45&"'!"&"$C$9"),INDIRECT("'"&$A45&"'!"&"$L$12"),""))))=1,"20",""))))),"") ->  | H45: Select One | K45: ='Financial Summary'!A16 -> Project 7 | L45: =IF('Financial Summary'!D16<>"",'Financial Summary'!D16,"") -> Select One | N45: =IF('Financial Summary'!B16="Select One","",'Financial Summary'!B16) ->  | P45: =IFERROR(_xlfn.XLOOKUP($K45,INDIRECT("'"&$K45&"'!"&"$C$9"),INDIRECT("'"&$K45&"'!"&"$C$11"),"Not Found"),"") ->  | R45: =IFERROR(_xlfn.XLOOKUP($K45,INDIRECT("'"&$K45&"'!"&"$C$9"),INDIRECT("'"&$K45&"'!"&"$C$12"),"Not Found"),"") ->  | T45: =IFERROR(_xlfn.XLOOKUP($K45,INDIRECT("'"&$K45&"'!"&"$C$9"),INDIRECT("'"&$K45&"'!"&"$E$11"),"Not Found"),"") ->  | V45: =IFERROR(IF(_xlfn.XLOOKUP($K45,INDIRECT("'"&$K45&"'!"&"$C$9"),INDIRECT("'"&$K45&"'!"&"$E$12"),"Not Found")>0,INDIRECT("'"&$K45&"'!"&"$E$12"),""),"") ->  | X45: Select One
A46: ='Financial Summary'!A17 -> Project 8 | B46: =IFERROR(_xlfn.XLOOKUP($A46,INDIRECT("'"&$A46&"'!"&"$C$9"),INDIRECT("'"&$A46&"'!"&"$K$2"),"Not Found"),"") ->  | C46: =IFERROR(IF((_xlfn.XLOOKUP($A46,INDIRECT("'"&$A46&"'!"&"$C$9"),INDIRECT("'"&$A46&"'!"&"$K$2"),""))<=0.25,"5",IF(AND((_xlfn.XLOOKUP($A46,INDIRECT("'"&$A46&"'!"&"$C$9"),INDIRECT("'"&$A46&"'!"&"$K$2"),""))>0.25,(_xlfn.XLOOKUP($A46,INDIRECT("'"&$A46&"'!"&"$C$9"),INDIRECT("'"&$A46&"'!"&"$K$2"),"")<=0.5)),"10",IF(_xlfn.XLOOKUP($A46,INDIRECT("'"&$A46&"'!"&"$C$9"),INDIRECT("'"&$A46&"'!"&"$K$2"),"")>0.5,"15"))),"") ->  | D46: =IFERROR(IF(_xlfn.XLOOKUP($A46,INDIRECT("'"&$A46&"'!"&"$C$9"),INDIRECT("'"&$A46&"'!"&"$L$13"),"Not Found")>0,_xlfn.XLOOKUP($A46,INDIRECT("'"&$A46&"'!"&"$C$9"),INDIRECT("'"&$A46&"'!"&"$L$13"),"Not Found"),IF((_xlfn.XLOOKUP($A46,INDIRECT("'"&$A46&"'!"&"$C$9"),INDIRECT("'"&$A46&"'!"&"$L$11"),"")+(_xlfn.XLOOKUP($A46,INDIRECT("'"&$A46&"'!"&"$C$9"),INDIRECT("'"&$A46&"'!"&"$L$12"),"Not Found")))=1,(_xlfn.XLOOKUP($A46,INDIRECT("'"&$A46&"'!"&"$C$9"),INDIRECT("'"&$A46&"'!"&"$L$12"),"Not Found")+(_xlfn.XLOOKUP($A46,INDIRECT("'"&$A46&"'!"&"$C$9"),INDIRECT("'"&$A46&"'!"&"$L$11"),""))),"")),"") ->  | E46: =IFERROR(IF((_xlfn.XLOOKUP($A46,INDIRECT("'"&$A46&"'!"&"$C$9"),INDIRECT("'"&$A46&"'!"&"$L$13"),""))>0.18,"0",IF((_xlfn.XLOOKUP($A46,INDIRECT("'"&$A46&"'!"&"$C$9"),INDIRECT("'"&$A46&"'!"&"$L$13"),""))>0.1,"5",IF((_xlfn.XLOOKUP($A46,INDIRECT("'"&$A46&"'!"&"$C$9"),INDIRECT("'"&$A46&"'!"&"$L$13"),""))>0.05,"10",IF((_xlfn.XLOOKUP($A46,INDIRECT("'"&$A46&"'!"&"$C$9"),INDIRECT("'"&$A46&"'!"&"$L$13"),""))>0,"15",IF(((_xlfn.XLOOKUP($A46,INDIRECT("'"&$A46&"'!"&"$C$9"),INDIRECT("'"&$A46&"'!"&"$L$11"),"")+(_xlfn.XLOOKUP($A46,INDIRECT("'"&$A46&"'!"&"$C$9"),INDIRECT("'"&$A46&"'!"&"$L$12"),""))))=1,"20",""))))),"") ->  | H46: Select One | K46: ='Financial Summary'!A17 -> Project 8 | L46: =IF('Financial Summary'!D17<>"",'Financial Summary'!D17,"") -> Select One | N46: =IF('Financial Summary'!B17="Select One","",'Financial Summary'!B17) ->  | P46: =IFERROR(_xlfn.XLOOKUP($K46,INDIRECT("'"&$K46&"'!"&"$C$9"),INDIRECT("'"&$K46&"'!"&"$C$11"),"Not Found"),"") ->  | R46: =IFERROR(_xlfn.XLOOKUP($K46,INDIRECT("'"&$K46&"'!"&"$C$9"),INDIRECT("'"&$K46&"'!"&"$C$12"),"Not Found"),"") ->  | T46: =IFERROR(_xlfn.XLOOKUP($K46,INDIRECT("'"&$K46&"'!"&"$C$9"),INDIRECT("'"&$K46&"'!"&"$E$11"),"Not Found"),"") ->  | V46: =IFERROR(IF(_xlfn.XLOOKUP($K46,INDIRECT("'"&$K46&"'!"&"$C$9"),INDIRECT("'"&$K46&"'!"&"$E$12"),"Not Found")>0,INDIRECT("'"&$K46&"'!"&"$E$12"),""),"") ->  | X46: Select One
A47: ='Financial Summary'!A18 -> Project 9 | B47: =IFERROR(_xlfn.XLOOKUP($A47,INDIRECT("'"&$A47&"'!"&"$C$9"),INDIRECT("'"&$A47&"'!"&"$K$2"),"Not Found"),"") ->  | C47: =IFERROR(IF((_xlfn.XLOOKUP($A47,INDIRECT("'"&$A47&"'!"&"$C$9"),INDIRECT("'"&$A47&"'!"&"$K$2"),""))<=0.25,"5",IF(AND((_xlfn.XLOOKUP($A47,INDIRECT("'"&$A47&"'!"&"$C$9"),INDIRECT("'"&$A47&"'!"&"$K$2"),""))>0.25,(_xlfn.XLOOKUP($A47,INDIRECT("'"&$A47&"'!"&"$C$9"),INDIRECT("'"&$A47&"'!"&"$K$2"),"")<=0.5)),"10",IF(_xlfn.XLOOKUP($A47,INDIRECT("'"&$A47&"'!"&"$C$9"),INDIRECT("'"&$A47&"'!"&"$K$2"),"")>0.5,"15"))),"") ->  | D47: =IFERROR(IF(_xlfn.XLOOKUP($A47,INDIRECT("'"&$A47&"'!"&"$C$9"),INDIRECT("'"&$A47&"'!"&"$L$13"),"Not Found")>0,_xlfn.XLOOKUP($A47,INDIRECT("'"&$A47&"'!"&"$C$9"),INDIRECT("'"&$A47&"'!"&"$L$13"),"Not Found"),IF((_xlfn.XLOOKUP($A47,INDIRECT("'"&$A47&"'!"&"$C$9"),INDIRECT("'"&$A47&"'!"&"$L$11"),"")+(_xlfn.XLOOKUP($A47,INDIRECT("'"&$A47&"'!"&"$C$9"),INDIRECT("'"&$A47&"'!"&"$L$12"),"Not Found")))=1,(_xlfn.XLOOKUP($A47,INDIRECT("'"&$A47&"'!"&"$C$9"),INDIRECT("'"&$A47&"'!"&"$L$12"),"Not Found")+(_xlfn.XLOOKUP($A47,INDIRECT("'"&$A47&"'!"&"$C$9"),INDIRECT("'"&$A47&"'!"&"$L$11"),""))),"")),"") ->  | E47: =IFERROR(IF((_xlfn.XLOOKUP($A47,INDIRECT("'"&$A47&"'!"&"$C$9"),INDIRECT("'"&$A47&"'!"&"$L$13"),""))>0.18,"0",IF((_xlfn.XLOOKUP($A47,INDIRECT("'"&$A47&"'!"&"$C$9"),INDIRECT("'"&$A47&"'!"&"$L$13"),""))>0.1,"5",IF((_xlfn.XLOOKUP($A47,INDIRECT("'"&$A47&"'!"&"$C$9"),INDIRECT("'"&$A47&"'!"&"$L$13"),""))>0.05,"10",IF((_xlfn.XLOOKUP($A47,INDIRECT("'"&$A47&"'!"&"$C$9"),INDIRECT("'"&$A47&"'!"&"$L$13"),""))>0,"15",IF(((_xlfn.XLOOKUP($A47,INDIRECT("'"&$A47&"'!"&"$C$9"),INDIRECT("'"&$A47&"'!"&"$L$11"),"")+(_xlfn.XLOOKUP($A47,INDIRECT("'"&$A47&"'!"&"$C$9"),INDIRECT("'"&$A47&"'!"&"$L$12"),""))))=1,"20",""))))),"") ->  | H47: Select One | K47: ='Financial Summary'!A18 -> Project 9 | L47: =IF('Financial Summary'!D18<>"",'Financial Summary'!D18,"") -> Select One | N47: =IF('Financial Summary'!B18="Select One","",'Financial Summary'!B18) ->  | P47: =IFERROR(_xlfn.XLOOKUP($K47,INDIRECT("'"&$K47&"'!"&"$C$9"),INDIRECT("'"&$K47&"'!"&"$C$11"),"Not Found"),"") ->  | R47: =IFERROR(_xlfn.XLOOKUP($K47,INDIRECT("'"&$K47&"'!"&"$C$9"),INDIRECT("'"&$K47&"'!"&"$C$12"),"Not Found"),"") ->  | T47: =IFERROR(_xlfn.XLOOKUP($K47,INDIRECT("'"&$K47&"'!"&"$C$9"),INDIRECT("'"&$K47&"'!"&"$E$11"),"Not Found"),"") ->  | V47: =IFERROR(IF(_xlfn.XLOOKUP($K47,INDIRECT("'"&$K47&"'!"&"$C$9"),INDIRECT("'"&$K47&"'!"&"$E$12"),"Not Found")>0,INDIRECT("'"&$K47&"'!"&"$E$12"),""),"") ->  | X47: Select One
A48: ='Financial Summary'!A19 -> Project 10 | B48: =IFERROR(_xlfn.XLOOKUP($A48,INDIRECT("'"&$A48&"'!"&"$C$9"),INDIRECT("'"&$A48&"'!"&"$K$2"),"Not Found"),"") ->  | C48: =IFERROR(IF((_xlfn.XLOOKUP($A48,INDIRECT("'"&$A48&"'!"&"$C$9"),INDIRECT("'"&$A48&"'!"&"$K$2"),""))<=0.25,"5",IF(AND((_xlfn.XLOOKUP($A48,INDIRECT("'"&$A48&"'!"&"$C$9"),INDIRECT("'"&$A48&"'!"&"$K$2"),""))>0.25,(_xlfn.XLOOKUP($A48,INDIRECT("'"&$A48&"'!"&"$C$9"),INDIRECT("'"&$A48&"'!"&"$K$2"),"")<=0.5)),"10",IF(_xlfn.XLOOKUP($A48,INDIRECT("'"&$A48&"'!"&"$C$9"),INDIRECT("'"&$A48&"'!"&"$K$2"),"")>0.5,"15"))),"") ->  | D48: =IFERROR(IF(_xlfn.XLOOKUP($A48,INDIRECT("'"&$A48&"'!"&"$C$9"),INDIRECT("'"&$A48&"'!"&"$L$13"),"Not Found")>0,_xlfn.XLOOKUP($A48,INDIRECT("'"&$A48&"'!"&"$C$9"),INDIRECT("'"&$A48&"'!"&"$L$13"),"Not Found"),IF((_xlfn.XLOOKUP($A48,INDIRECT("'"&$A48&"'!"&"$C$9"),INDIRECT("'"&$A48&"'!"&"$L$11"),"")+(_xlfn.XLOOKUP($A48,INDIRECT("'"&$A48&"'!"&"$C$9"),INDIRECT("'"&$A48&"'!"&"$L$12"),"Not Found")))=1,(_xlfn.XLOOKUP($A48,INDIRECT("'"&$A48&"'!"&"$C$9"),INDIRECT("'"&$A48&"'!"&"$L$12"),"Not Found")+(_xlfn.XLOOKUP($A48,INDIRECT("'"&$A48&"'!"&"$C$9"),INDIRECT("'"&$A48&"'!"&"$L$11"),""))),"")),"") ->  | E48: =IFERROR(IF((_xlfn.XLOOKUP($A48,INDIRECT("'"&$A48&"'!"&"$C$9"),INDIRECT("'"&$A48&"'!"&"$L$13"),""))>0.18,"0",IF((_xlfn.XLOOKUP($A48,INDIRECT("'"&$A48&"'!"&"$C$9"),INDIRECT("'"&$A48&"'!"&"$L$13"),""))>0.1,"5",IF((_xlfn.XLOOKUP($A48,INDIRECT("'"&$A48&"'!"&"$C$9"),INDIRECT("'"&$A48&"'!"&"$L$13"),""))>0.05,"10",IF((_xlfn.XLOOKUP($A48,INDIRECT("'"&$A48&"'!"&"$C$9"),INDIRECT("'"&$A48&"'!"&"$L$13"),""))>0,"15",IF(((_xlfn.XLOOKUP($A48,INDIRECT("'"&$A48&"'!"&"$C$9"),INDIRECT("'"&$A48&"'!"&"$L$11"),"")+(_xlfn.XLOOKUP($A48,INDIRECT("'"&$A48&"'!"&"$C$9"),INDIRECT("'"&$A48&"'!"&"$L$12"),""))))=1,"20",""))))),"") ->  | H48: Select One | K48: ='Financial Summary'!A19 -> Project 10 | L48: =IF('Financial Summary'!D19<>"",'Financial Summary'!D19,"") -> Select One | N48: =IF('Financial Summary'!B19="Select One","",'Financial Summary'!B19) ->  | P48: =IFERROR(_xlfn.XLOOKUP($K48,INDIRECT("'"&$K48&"'!"&"$C$9"),INDIRECT("'"&$K48&"'!"&"$C$11"),"Not Found"),"") ->  | R48: =IFERROR(_xlfn.XLOOKUP($K48,INDIRECT("'"&$K48&"'!"&"$C$9"),INDIRECT("'"&$K48&"'!"&"$C$12"),"Not Found"),"") ->  | T48: =IFERROR(_xlfn.XLOOKUP($K48,INDIRECT("'"&$K48&"'!"&"$C$9"),INDIRECT("'"&$K48&"'!"&"$E$11"),"Not Found"),"") ->  | V48: =IFERROR(IF(_xlfn.XLOOKUP($K48,INDIRECT("'"&$K48&"'!"&"$C$9"),INDIRECT("'"&$K48&"'!"&"$E$12"),"Not Found")>0,INDIRECT("'"&$K48&"'!"&"$E$12"),""),"") ->  | X48: Select One
A49: Section 5 | L49: Section 6
A50: Income Restrictions Cells will turn yellow if Section 105 thresholds are not met. Projects not yet fully drawn down may balance out in future reporting periods. Projects completed in a previous reporting period will not appear in this section | L50: Optional: Rep and Manager Review Notes
A51: Activity # | B51: Program Funds Spent This Report | D51: Amount Spent on ELI this Report | E51: % Expended on ELI Must be at least 30% of expended funds | F51: Amount Spent on LI this Report | G51: % Expended on LI Guidelines §105(e) | H51: Amount Spent on Mod this report | I51: % Expended on Mod Must be no more than 20% of expended funds | J51: Comments | L51: Date | N51: Issue | P51: Action Taken | T51: Status (resolved, awaiting grantee response, awaiting manager input, etc)
A52: ='Financial Summary'!A10 -> Linnet Corner | B52: =IFERROR(_xlfn.XLOOKUP($A52,INDIRECT("'"&$A52&"'!"&"$C$9"),INDIRECT("'"&$A52&"'!"&"$L$17"),"Not Found"),"") -> 268993.54 | D52: =IFERROR(_xlfn.XLOOKUP($A52,'Financial Summary'!$A$10:$A$19,'Financial Summary'!$I$10:$I$19,"",0),"") -> 300000 | E52: =IFERROR((D52/B52),"") -> 1.115268419 | F52: =IFERROR(_xlfn.XLOOKUP($A52,'Financial Summary'!$A$10:$A$19,'Financial Summary'!$L$10:$L$19,"",0),"") -> 700000 | G52: =IFERROR((F52/B52),"") -> 2.602292977 | H52: =IFERROR(_xlfn.XLOOKUP($A52,'Financial Summary'!$A$10:$A$19,'Financial Summary'!$O$10:$O$19,"",0),"") -> 0 | I52: =IFERROR((H52/B52),"") -> 0
A53: ='Financial Summary'!A11 -> Project 2 | B53: =IFERROR(_xlfn.XLOOKUP($A53,INDIRECT("'"&$A53&"'!"&"$C$9"),INDIRECT("'"&$A53&"'!"&"$L$17"),"Not Found"),"") ->  | D53: =IFERROR(_xlfn.XLOOKUP($A53,'Financial Summary'!$A$10:$A$19,'Financial Summary'!$I$10:$I$19,"",0),"") -> 0 | E53: =IFERROR((D53/B53),"") ->  | F53: =IFERROR(_xlfn.XLOOKUP($A53,'Financial Summary'!$A$10:$A$19,'Financial Summary'!$L$10:$L$19,"",0),"") -> 0 | G53: =IFERROR((F53/B53),"") ->  | H53: =IFERROR(_xlfn.XLOOKUP($A53,'Financial Summary'!$A$10:$A$19,'Financial Summary'!$O$10:$O$19,"",0),"") -> 0 | I53: =IFERROR((H53/B53),"") -> 
A54: ='Financial Summary'!A12 -> Project 3 | B54: =IFERROR(_xlfn.XLOOKUP($A54,INDIRECT("'"&$A54&"'!"&"$C$9"),INDIRECT("'"&$A54&"'!"&"$L$17"),"Not Found"),"") ->  | D54: =IFERROR(_xlfn.XLOOKUP($A54,'Financial Summary'!$A$10:$A$19,'Financial Summary'!$I$10:$I$19,"",0),"") -> 0 | F54: =IFERROR(_xlfn.XLOOKUP($A54,'Financial Summary'!$A$10:$A$19,'Financial Summary'!$L$10:$L$19,"",0),"") -> 0 | H54: =IFERROR(_xlfn.XLOOKUP($A54,'Financial Summary'!$A$10:$A$19,'Financial Summary'!$O$10:$O$19,"",0),"") -> 0
A55: ='Financial Summary'!A13 -> Project 4 | B55: =IFERROR(_xlfn.XLOOKUP($A55,INDIRECT("'"&$A55&"'!"&"$C$9"),INDIRECT("'"&$A55&"'!"&"$L$17"),"Not Found"),"") ->  | D55: =IFERROR(_xlfn.XLOOKUP($A55,'Financial Summary'!$A$10:$A$19,'Financial Summary'!$I$10:$I$19,"",0),"") -> 0 | F55: =IFERROR(_xlfn.XLOOKUP($A55,'Financial Summary'!$A$10:$A$19,'Financial Summary'!$L$10:$L$19,"",0),"") -> 0 | H55: =IFERROR(_xlfn.XLOOKUP($A55,'Financial Summary'!$A$10:$A$19,'Financial Summary'!$O$10:$O$19,"",0),"") -> 0
A56: ='Financial Summary'!A14 -> Project 5 | B56: =IFERROR(_xlfn.XLOOKUP($A56,INDIRECT("'"&$A56&"'!"&"$C$9"),INDIRECT("'"&$A56&"'!"&"$L$17"),"Not Found"),"") ->  | D56: =IFERROR(_xlfn.XLOOKUP($A56,'Financial Summary'!$A$10:$A$19,'Financial Summary'!$I$10:$I$19,"",0),"") -> 0 | F56: =IFERROR(_xlfn.XLOOKUP($A56,'Financial Summary'!$A$10:$A$19,'Financial Summary'!$L$10:$L$19,"",0),"") -> 0 | H56: =IFERROR(_xlfn.XLOOKUP($A56,'Financial Summary'!$A$10:$A$19,'Financial Summary'!$O$10:$O$19,"",0),"") -> 0
A57: ='Financial Summary'!A15 -> Project 6 | B57: =IFERROR(_xlfn.XLOOKUP($A57,INDIRECT("'"&$A57&"'!"&"$C$9"),INDIRECT("'"&$A57&"'!"&"$L$17"),"Not Found"),"") ->  | D57: =IFERROR(_xlfn.XLOOKUP($A57,'Financial Summary'!$A$10:$A$19,'Financial Summary'!$I$10:$I$19,"",0),"") -> 0 | F57: =IFERROR(_xlfn.XLOOKUP($A57,'Financial Summary'!$A$10:$A$19,'Financial Summary'!$L$10:$L$19,"",0),"") -> 0 | H57: =IFERROR(_xlfn.XLOOKUP($A57,'Financial Summary'!$A$10:$A$19,'Financial Summary'!$O$10:$O$19,"",0),"") -> 0
A58: ='Financial Summary'!A16 -> Project 7 | B58: =IFERROR(_xlfn.XLOOKUP($A58,INDIRECT("'"&$A58&"'!"&"$C$9"),INDIRECT("'"&$A58&"'!"&"$L$17"),"Not Found"),"") ->  | D58: =IFERROR(_xlfn.XLOOKUP($A58,'Financial Summary'!$A$10:$A$19,'Financial Summary'!$I$10:$I$19,"",0),"") -> 0 | F58: =IFERROR(_xlfn.XLOOKUP($A58,'Financial Summary'!$A$10:$A$19,'Financial Summary'!$L$10:$L$19,"",0),"") -> 0 | H58: =IFERROR(_xlfn.XLOOKUP($A58,'Financial Summary'!$A$10:$A$19,'Financial Summary'!$O$10:$O$19,"",0),"") -> 0
A59: ='Financial Summary'!A17 -> Project 8 | B59: =IFERROR(_xlfn.XLOOKUP($A59,INDIRECT("'"&$A59&"'!"&"$C$9"),INDIRECT("'"&$A59&"'!"&"$L$17"),"Not Found"),"") ->  | D59: =IFERROR(_xlfn.XLOOKUP($A59,'Financial Summary'!$A$10:$A$19,'Financial Summary'!$I$10:$I$19,"",0),"") -> 0 | F59: =IFERROR(_xlfn.XLOOKUP($A59,'Financial Summary'!$A$10:$A$19,'Financial Summary'!$L$10:$L$19,"",0),"") -> 0 | H59: =IFERROR(_xlfn.XLOOKUP($A59,'Financial Summary'!$A$10:$A$19,'Financial Summary'!$O$10:$O$19,"",0),"") -> 0
A60: ='Financial Summary'!A18 -> Project 9 | B60: =IFERROR(_xlfn.XLOOKUP($A60,INDIRECT("'"&$A60&"'!"&"$C$9"),INDIRECT("'"&$A60&"'!"&"$L$17"),"Not Found"),"") ->  | D60: =IFERROR(_xlfn.XLOOKUP($A60,'Financial Summary'!$A$10:$A$19,'Financial Summary'!$I$10:$I$19,"",0),"") -> 0 | F60: =IFERROR(_xlfn.XLOOKUP($A60,'Financial Summary'!$A$10:$A$19,'Financial Summary'!$L$10:$L$19,"",0),"") -> 0 | H60: =IFERROR(_xlfn.XLOOKUP($A60,'Financial Summary'!$A$10:$A$19,'Financial Summary'!$O$10:$O$19,"",0),"") -> 0
A61: ='Financial Summary'!A19 -> Project 10 | B61: =IFERROR(_xlfn.XLOOKUP($A61,INDIRECT("'"&$A61&"'!"&"$C$9"),INDIRECT("'"&$A61&"'!"&"$L$17"),"Not Found"),"") ->  | D61: =IFERROR(_xlfn.XLOOKUP($A61,'Financial Summary'!$A$10:$A$19,'Financial Summary'!$I$10:$I$19,"",0),"") -> 0 | F61: =IFERROR(_xlfn.XLOOKUP($A61,'Financial Summary'!$A$10:$A$19,'Financial Summary'!$L$10:$L$19,"",0),"") -> 0 | H61: =IFERROR(_xlfn.XLOOKUP($A61,'Financial Summary'!$A$10:$A$19,'Financial Summary'!$O$10:$O$19,"",0),"") -> 0

Sheet Project Data (hidden)
A1: HCD Contract # | B1: Grantee Name | C1: HCD Rep | D1: Project Name | E1: Address | F1: Developer | G1: Project Type | H1: Project Category | I1: Project Activity | J1: Project Status | K1: Date of Completion | L1: Date Affordability Covenant Begins | M1: Date of Affordability Covenant Expiration | N1: LHTF Expended this Reporting Period | O1: Matching Expended this Reporting Period | P1: Total Units | Q1: ELI Units | R1: LHTF Expended on ELI this Report | S1: Match Expended on ELI this Report | T1: LI Units-60% | U1: LHTF Expended on LI-60% this Report | V1: Match Expended on LI-60% this Report | W1: LI-80% Units | X1: LHTF Expended on LI-80% this Report | Y1: Match Expended on LI-80% this Report | Z1: Mod Units | AA1: LHTF Expended on Mod this Report | AB1: Match Expended on Mod this Report | AC1: Total Program Units | AD1: Total LHTF Expended | AE1: Total Match Expended | AF1: # SF Homes TOTAL | AG1: #SF ELI | AH1: #SF Low 60% | AI1: #SF Low 80% | AJ1: #SF Mod | AK1: # Emergency Shelters TOTAL | AL1: #ES ELI | AM1: #ES Low 50% | AN1: #ES Low 80% | AO1: #ES Mod | AP1: # Studios TOTAL | AQ1: # Studios ELI | AR1: # Studios Low 60% | AS1: # Studios Low 80% | AT1: # Studios Mod | AU1: #1 BR TOTAL | AV1: #1BR ELI | AW1: #1BR Low 60% | AX1: #1BR Low 80% | AY1: #1BR Mod | AZ1: # 2BR TOTAL | BA1: #2BR ELI | BB1: #2BR Low 60% | BC1: #2BR Low 80% | BD1: #2BR Mod | BE1: # 3BR | BF1: #3BR ELI | BG1: #3BR Low 60% | BH1: #3BR Low 80% | BI1: #3BR Mod | BJ1: # 4 BR | BK1: #4BR ELI | BL1: #4BR Low 60% | BM1: #4BR Low 80% | BN1: #4BR Mod | BO1: Non Residential Match Expended this Period | BP1: %Non Residential Match Total See NOFA pg 4 | BQ1: Residential Match Expended this Period | BR1: %Residential Match Total | BS1: Non-LHTF Units in Project | BT1: Type of Loan | BU1: Loan Status | BV1: LHTF Funds Committed Project | BW1: LHTF Funds Committed Admin | BX1: Matching Funds On Deposit - PROJECT | BY1: Matching Funds on Deposit - ADMIN | BZ1: Total Program Funds spent on ELI | CA1: Total Matching Funds spent on ELI | CB1: % All Funds Expended on ELI | CC1: Total Program Funds spent on LI | CD1: Total Matching Funds spent on LI | CE1: % All Funds Spent on LI | CF1: Total Program Funds spent on Mod | CG1: Total Matching Funds spent on Mod | CH1: %All funds spent on Mod | CI1: # Liens on Project | CJ1: Total Non-LHTF Units in Project | CK1: Addtl Comments
A2: ='Narrative Summary'!$B$12 -> 23-LHTFCOM-18007 | B2: ='Narrative Summary'!$F$12 -> Alameda Affordable Housing Corporation | C2: ='Summary Sheet'!$D$9 -> 0 | D2: ='Financial Summary'!$A10 -> Linnet Corner | E2: =_xlfn.XLOOKUP($D2,INDIRECT("'"&$D2&"'!"&"$C$9"),INDIRECT("'"&$D2&"'!"&"$E$9"),"Not Found") -> 2000 Lakehurst Circle, Alameda, CA 94501 | F2: =_xlfn.XLOOKUP($D2,INDIRECT("'"&$D2&"'!"&"$C$9"),INDIRECT("'"&$D2&"'!"&"$C$10"),"Not Found") -> Island City Development | G2: =VLOOKUP($D2,'Financial Summary'!$A$7:$O$19,2,FALSE) -> Rental Housing Project with Mixed Permanent Supportive Housing Units | H2: =_xlfn.XLOOKUP($D2,INDIRECT("'"&$D2&"'!"&"$C$9"),INDIRECT("'"&$D2&"'!"&"$C$11"),"Not Found") -> Rental Housing Project with Mixed Permanent Supportive Housing Units | I2: =_xlfn.XLOOKUP($D2,INDIRECT("'"&$D2&"'!"&"$C$9"),INDIRECT("'"&$D2&"'!"&"$E$11"),"Not Found") -> New Construction | J2: =_xlfn.XLOOKUP($D2,INDIRECT("'"&$D2&"'!"&"$C$9"),INDIRECT("'"&$D2&"'!"&"$C$12"),"Not Found") -> Under Construction | K2: =_xlfn.XLOOKUP($D2,INDIRECT("'"&$D2&"'!"&"$C$9"),INDIRECT("'"&$D2&"'!"&"$E$12"),"Not Found") -> N/A | L2: =_xlfn.XLOOKUP($D2,INDIRECT("'"&$D2&"'!"&"$C$9"),INDIRECT("'"&$D2&"'!"&"$C$13"),"Not Found") -> TBD | M2: =_xlfn.XLOOKUP($D2,INDIRECT("'"&$D2&"'!"&"$C$9"),INDIRECT("'"&$D2&"'!"&"$E$13"),"Not Found") -> TBD | N2: =_xlfn.XLOOKUP($D2,INDIRECT("'"&$D2&"'!"&"$C$9"),INDIRECT("'"&$D2&"'!"&"$L$12"),"Not Found") -> 268993.54 | O2: =_xlfn.XLOOKUP($D2,INDIRECT("'"&$D2&"'!"&"$C$9"),INDIRECT("'"&$D2&"'!"&"$M$12"),"Not Found") -> 655806.24 | P2: =_xlfn.XLOOKUP($D2,INDIRECT("'"&$D2&"'!"&"$C$9"),INDIRECT("'"&$D2&"'!"&"$K$12"),"Not Found") -> 63 | Q2: =_xlfn.XLOOKUP($D2,INDIRECT("'"&$D2&"'!"&"$C$9"),INDIRECT("'"&$D2&"'!"&"$K$13"),"Not Found") -> 1 | R2: =_xlfn.XLOOKUP($D2,INDIRECT("'"&$D2&"'!"&"$C$9"),INDIRECT("'"&$D2&"'!"&"$L$13"),"Not Found") -> 81125.06 | S2: =_xlfn.XLOOKUP($D2,INDIRECT("'"&$D2&"'!"&"$C$9"),INDIRECT("'"&$D2&"'!"&"$M$13"),"Not Found") -> 197782.78 | T2: =_xlfn.XLOOKUP($D2,INDIRECT("'"&$D2&"'!"&"$C$9"),INDIRECT("'"&$D2&"'!"&"$K$14"),"Not Found") -> 1 | U2: =_xlfn.XLOOKUP($D2,INDIRECT("'"&$D2&"'!"&"$C$9"),INDIRECT("'"&$D2&"'!"&"$L$14"),"Not Found") -> 187868.48 | V2: =_xlfn.XLOOKUP($D2,INDIRECT("'"&$D2&"'!"&"$C$9"),INDIRECT("'"&$D2&"'!"&"$M$14"),"Not Found") -> 458023.46 | W2: =_xlfn.XLOOKUP($D2,INDIRECT("'"&$D2&"'!"&"$C$9"),INDIRECT("'"&$D2&"'!"&"$K$15"),"Not Found") -> 0 | X2: =_xlfn.XLOOKUP($D2,INDIRECT("'"&$D2&"'!"&"$C$9"),INDIRECT("'"&$D2&"'!"&"$L$15"),"Not Found") -> 0 | Y2: =_xlfn.XLOOKUP($D2,INDIRECT("'"&$D2&"'!"&"$C$9"),INDIRECT("'"&$D2&"'!"&"$M$15"),"Not Found") -> 0 | Z2: =_xlfn.XLOOKUP($D2,INDIRECT("'"&$D2&"'!"&"$C$9"),INDIRECT("'"&$D2&"'!"&"$K$16"),"Not Found") -> 0 | AA2: =_xlfn.XLOOKUP($D2,INDIRECT("'"&$D2&"'!"&"$C$9"),INDIRECT("'"&$D2&"'!"&"$L$16"),"Not Found") -> 0 | AB2: =_xlfn.XLOOKUP($D2,INDIRECT("'"&$D2&"'!"&"$C$9"),INDIRECT("'"&$D2&"'!"&"$M$16"),"Not Found") -> 0 | AC2: =_xlfn.XLOOKUP($D2,INDIRECT("'"&$D2&"'!"&"$C$9"),INDIRECT("'"&$D2&"'!"&"$K$17"),"Not Found") -> 2 | AD2: =_xlfn.XLOOKUP($D2,INDIRECT("'"&$D2&"'!"&"$C$9"),INDIRECT("'"&$D2&"'!"&"$L$17"),"Not Found") -> 268993.54 | AE2: =_xlfn.XLOOKUP($D2,INDIRECT("'"&$D2&"'!"&"$C$9"),INDIRECT("'"&$D2&"'!"&"$M$17"),"Not Found") -> 655806.24 | AF2: =_xlfn.XLOOKUP($D2,INDIRECT("'"&$D2&"'!"&"$C$9"),INDIRECT("'"&$D2&"'!"&"$K$5"),"Not Found") -> 0 | AG2: =_xlfn.XLOOKUP($D2,INDIRECT("'"&$D2&"'!"&"$C$9"),INDIRECT("'"&$D2&"'!"&"$N$5"),"Not Found") -> 0 | AH2: =_xlfn.XLOOKUP($D2,INDIRECT("'"&$D2&"'!"&"$C$9"),INDIRECT("'"&$D2&"'!"&"$O$5"),"Not Found") -> 0 | AI2: =_xlfn.XLOOKUP($D2,INDIRECT("'"&$D2&"'!"&"$C$9"),INDIRECT("'"&$D2&"'!"&"$P$5"),"Not Found") -> 0 | AJ2: =_xlfn.XLOOKUP($D2,INDIRECT("'"&$D2&"'!"&"$C$9"),INDIRECT("'"&$D2&"'!"&"$Q$5"),"Not Found") -> 0 | AK2: =_xlfn.XLOOKUP($D2,INDIRECT("'"&$D2&"'!"&"$C$9"),INDIRECT("'"&$D2&"'!"&"$K$6"),"Not Found") -> 0 | AL2: =_xlfn.XLOOKUP($D2,INDIRECT("'"&$D2&"'!"&"$C$9"),INDIRECT("'"&$D2&"'!"&"$N$6"),"Not Found") -> 0 | AM2: =_xlfn.XLOOKUP($D2,INDIRECT("'"&$D2&"'!"&"$C$9"),INDIRECT("'"&$D2&"'!"&"$O$6"),"Not Found") -> 0 | AN2: =_xlfn.XLOOKUP($D2,INDIRECT("'"&$D2&"'!"&"$C$9"),INDIRECT("'"&$D2&"'!"&"$P$6"),"Not Found") -> 0 | AO2: =_xlfn.XLOOKUP($D2,INDIRECT("'"&$D2&"'!"&"$C$9"),INDIRECT("'"&$D2&"'!"&"$Q$6"),"Not Found") -> 0 | AP2: =_xlfn.XLOOKUP($D2,INDIRECT("'"&$D2&"'!"&"$C$9"),INDIRECT("'"&$D2&"'!"&"$K$7"),"Not Found") -> 40 | AQ2: =_xlfn.XLOOKUP($D2,INDIRECT("'"&$D2&"'!"&"$C$9"),INDIRECT("'"&$D2&"'!"&"$N$7"),"Not Found") -> 11 | AR2: =_xlfn.XLOOKUP($D2,INDIRECT("'"&$D2&"'!"&"$C$9"),INDIRECT("'"&$D2&"'!"&"$O$7"),"Not Found") -> 29 | AS2: =_xlfn.XLOOKUP($D2,INDIRECT("'"&$D2&"'!"&"$C$9"),INDIRECT("'"&$D2&"'!"&"$P$7"),"Not Found") -> 0 | AT2: =_xlfn.XLOOKUP($D2,INDIRECT("'"&$D2&"'!"&"$C$9"),INDIRECT("'"&$D2&"'!"&"$Q$7"),"Not Found") -> 0 | AU2: =_xlfn.XLOOKUP($D2,INDIRECT("'"&$D2&"'!"&"$C$9"),INDIRECT("'"&$D2&"'!"&"$K$8"),"Not Found") -> 23 | AV2: =_xlfn.XLOOKUP($D2,INDIRECT("'"&$D2&"'!"&"$C$9"),INDIRECT("'"&$D2&"'!"&"$N$8"),"Not Found") -> 8 | AW2: =_xlfn.XLOOKUP($D2,INDIRECT("'"&$D2&"'!"&"$C$9"),INDIRECT("'"&$D2&"'!"&"$O$8"),"Not Found") -> 15 | AX2: =_xlfn.XLOOKUP($D2,INDIRECT("'"&$D2&"'!"&"$C$9"),INDIRECT("'"&$D2&"'!"&"$P$8"),"Not Found") -> 0 | AY2: =_xlfn.XLOOKUP($D2,INDIRECT("'"&$D2&"'!"&"$C$9"),INDIRECT("'"&$D2&"'!"&"$Q$8"),"Not Found") -> 0 | AZ2: =_xlfn.XLOOKUP($D2,INDIRECT("'"&$D2&"'!"&"$C$9"),INDIRECT("'"&$D2&"'!"&"$K$9"),"Not Found") -> 0 | BA2: =_xlfn.XLOOKUP($D2,INDIRECT("'"&$D2&"'!"&"$C$9"),INDIRECT("'"&$D2&"'!"&"$N$9"),"Not Found") -> 0 | BB2: =_xlfn.XLOOKUP($D2,INDIRECT("'"&$D2&"'!"&"$C$9"),INDIRECT("'"&$D2&"'!"&"$O$9"),"Not Found") -> 0 | BC2: =_xlfn.XLOOKUP($D2,INDIRECT("'"&$D2&"'!"&"$C$9"),INDIRECT("'"&$D2&"'!"&"$P$9"),"Not Found") -> 0 | BD2: =_xlfn.XLOOKUP($D2,INDIRECT("'"&$D2&"'!"&"$C$9"),INDIRECT("'"&$D2&"'!"&"$Q$9"),"Not Found") -> 0 | BE2: =_xlfn.XLOOKUP($D2,INDIRECT("'"&$D2&"'!"&"$C$9"),INDIRECT("'"&$D2&"'!"&"$K$10"),"Not Found") -> 0 | BF2: =_xlfn.XLOOKUP($D2,INDIRECT("'"&$D2&"'!"&"$C$9"),INDIRECT("'"&$D2&"'!"&"$N$10"),"Not Found") -> 0 | BG2: =_xlfn.XLOOKUP($D2,INDIRECT("'"&$D2&"'!"&"$C$9"),INDIRECT("'"&$D2&"'!"&"$O$10"),"Not Found") -> 0 | BH2: =_xlfn.XLOOKUP($D2,INDIRECT("'"&$D2&"'!"&"$C$9"),INDIRECT("'"&$D2&"'!"&"$P$10"),"Not Found") -> 0 | BI2: =_xlfn.XLOOKUP($D2,INDIRECT("'"&$D2&"'!"&"$C$9"),INDIRECT("'"&$D2&"'!"&"$Q$10"),"Not Found") -> 0 | BJ2: =_xlfn.XLOOKUP($D2,INDIRECT("'"&$D2&"'!"&"$C$9"),INDIRECT("'"&$D2&"'!"&"$K$11"),"Not Found") -> 0 | BK2: =_xlfn.XLOOKUP($D2,INDIRECT("'"&$D2&"'!"&"$C$9"),INDIRECT("'"&$D2&"'!"&"$N$11"),"Not Found") -> 0 | BL2: =_xlfn.XLOOKUP($D2,INDIRECT("'"&$D2&"'!"&"$C$9"),INDIRECT("'"&$D2&"'!"&"$O$11"),"Not Found") -> 0 | BM2: =_xlfn.XLOOKUP($D2,INDIRECT("'"&$D2&"'!"&"$C$9"),INDIRECT("'"&$D2&"'!"&"$P$11"),"Not Found") -> 0 | BN2: =_xlfn.XLOOKUP($D2,INDIRECT("'"&$D2&"'!"&"$C$9"),INDIRECT("'"&$D2&"'!"&"$Q$11"),"Not Found") -> 0 | BO2: =_xlfn.XLOOKUP($D2,INDIRECT("'"&$D2&"'!"&"$C$9"),INDIRECT("'"&$D2&"'!"&"$K$2"),"Not Found") -> 1 | BP2: =_xlfn.XLOOKUP($D2,INDIRECT("'"&$D2&"'!"&"$C$9"),INDIRECT("'"&$D2&"'!"&"$L$2"),"Not Found") -> 655806.24 | BQ2: =_xlfn.XLOOKUP($D2,INDIRECT("'"&$D2&"'!"&"$C$9"),INDIRECT("'"&$D2&"'!"&"$K$3"),"Not Found") -> 0 | BR2: =_xlfn.XLOOKUP($D2,INDIRECT("'"&$D2&"'!"&"$C$9"),INDIRECT("'"&$D2&"'!"&"$L$3"),"Not Found") -> 0 | BS2: =_xlfn.XLOOKUP($D2,INDIRECT("'"&$D2&"'!"&"$C$9"),INDIRECT("'"&$D2&"'!"&"$J$1"),"Not Found") -> 1 | BT2: =VLOOKUP($D2,'Financial Summary'!$A$7:$O$19,3,FALSE) -> Both Const/Perm | BU2: =VLOOKUP($D2,'Financial Summary'!$A$7:$O$19,4,FALSE) -> Closed | BV2: =VLOOKUP($D2,'Financial Summary'!$A$7:$O$19,5,FALSE) -> 1000000 | BW2: =VLOOKUP($D2,'Financial Summary'!$A$7:$O$19,6,FALSE) -> 0 | BX2: =VLOOKUP($D2,'Financial Summary'!$A$7:$O$19,7,FALSE) -> 2438000 | BY2: =VLOOKUP($D2,'Financial Summary'!$A$7:$O$19,8,FALSE) -> 0 | BZ2: =VLOOKUP($D2,'Financial Summary'!$A$7:$O$19,9,FALSE) -> 300000 | CA2: =VLOOKUP($D2,'Financial Summary'!$A$7:$O$19,10,FALSE) -> 731400 | CB2: =VLOOKUP($D2,'Financial Summary'!$A$7:$O$19,11,FALSE) -> 0.3 | CC2: =VLOOKUP($D2,'Financial Summary'!$A$7:$O$19,12,FALSE) -> 700000 | CD2: =VLOOKUP($D2,'Financial Summary'!$A$7:$O$19,13,FALSE) -> 1706600 | CE2: =VLOOKUP($D2,'Financial Summary'!$A$7:$O$19,14,FALSE) -> 0.7 | CF2: =VLOOKUP($D2,'Financial Summary'!$A$7:$P$19,15,FALSE) -> 0 | CG2: =VLOOKUP($D2,'Financial Summary'!$A$7:$P$19,16,FALSE) -> 0 | CH2: =VLOOKUP($D2,'Financial Summary'!$A$7:$Q$19,17,FALSE) -> 0 | CI2: =_xlfn.XLOOKUP($D2,'Executed & Recorded Loan Docs'!$A$5:$A$14,$B$5:$B$14,"",0) -> Alameda Affordable Housing Corporation | CJ2: =_xlfn.XLOOKUP($D2,INDIRECT("'"&$D2&"'!"&"$C$9"),INDIRECT("'"&$D2&"'!"&"$F$6"),"Not Found") -> 0 | CK2: =_xlfn.XLOOKUP($D2,INDIRECT("'"&$D2&"'!"&"$C$9"),INDIRECT("'"&$D2&"'!"&"_6._Additional_Comments"),"Not Found") -> Regulatory agreement is 10 studios and 9 one-bedrooms at 30% AMI and 30 studios and 14 one-bedrooms at 60% AMI. | CL2: 0 | CM2: 0 | CN2: 0 | CO2: 0
A3: ='Narrative Summary'!$B$12 -> 23-LHTFCOM-18007 | B3: ='Narrative Summary'!$F$12 -> Alameda Affordable Housing Corporation | C3: ='Summary Sheet'!$D$9 -> 0 | D3: ='Financial Summary'!$A11 -> Project 2 | E3: =_xlfn.XLOOKUP($D3,INDIRECT("'"&$D3&"'!"&"$C$9"),INDIRECT("'"&$D3&"'!"&"$E$9"),"Not Found") ->  | F3: =_xlfn.XLOOKUP($D3,INDIRECT("'"&$D3&"'!"&"$C$9"),INDIRECT("'"&$D3&"'!"&"$C$10"),"Not Found") ->  | G3: =VLOOKUP($D3,'Financial Summary'!$A$7:$O$19,2,FALSE) -> Select One | H3: =_xlfn.XLOOKUP($D3,INDIRECT("'"&$D3&"'!"&"$C$9"),INDIRECT("'"&$D3&"'!"&"$C$11"),"Not Found") ->  | I3: =_xlfn.XLOOKUP($D3,INDIRECT("'"&$D3&"'!"&"$C$9"),INDIRECT("'"&$D3&"'!"&"$E$11"),"Not Found") ->  | J3: =_xlfn.XLOOKUP($D3,INDIRECT("'"&$D3&"'!"&"$C$9"),INDIRECT("'"&$D3&"'!"&"$C$12"),"Not Found") ->  | K3: =_xlfn.XLOOKUP($D3,INDIRECT("'"&$D3&"'!"&"$C$9"),INDIRECT("'"&$D3&"'!"&"$E$12"),"Not Found") ->  | L3: =_xlfn.XLOOKUP($D3,INDIRECT("'"&$D3&"'!"&"$C$9"),INDIRECT("'"&$D3&"'!"&"$C$13"),"Not Found") ->  | M3: =_xlfn.XLOOKUP($D3,INDIRECT("'"&$D3&"'!"&"$C$9"),INDIRECT("'"&$D3&"'!"&"$E$13"),"Not Found") ->  | N3: =_xlfn.XLOOKUP($D3,INDIRECT("'"&$D3&"'!"&"$C$9"),INDIRECT("'"&$D3&"'!"&"$L$12"),"Not Found") ->  | O3: =_xlfn.XLOOKUP($D3,INDIRECT("'"&$D3&"'!"&"$C$9"),INDIRECT("'"&$D3&"'!"&"$M$12"),"Not Found") ->  | P3: =_xlfn.XLOOKUP($D3,INDIRECT("'"&$D3&"'!"&"$C$9"),INDIRECT("'"&$D3&"'!"&"$K$12"),"Not Found") ->  | Q3: =_xlfn.XLOOKUP($D3,INDIRECT("'"&$D3&"'!"&"$C$9"),INDIRECT("'"&$D3&"'!"&"$K$13"),"Not Found") ->  | R3: =_xlfn.XLOOKUP($D3,INDIRECT("'"&$D3&"'!"&"$C$9"),INDIRECT("'"&$D3&"'!"&"$L$13"),"Not Found") ->  | S3: =_xlfn.XLOOKUP($D3,INDIRECT("'"&$D3&"'!"&"$C$9"),INDIRECT("'"&$D3&"'!"&"$M$13"),"Not Found") ->  | T3: =_xlfn.XLOOKUP($D3,INDIRECT("'"&$D3&"'!"&"$C$9"),INDIRECT("'"&$D3&"'!"&"$K$14"),"Not Found") ->  | U3: =_xlfn.XLOOKUP($D3,INDIRECT("'"&$D3&"'!"&"$C$9"),INDIRECT("'"&$D3&"'!"&"$L$14"),"Not Found") ->  | V3: =_xlfn.XLOOKUP($D3,INDIRECT("'"&$D3&"'!"&"$C$9"),INDIRECT("'"&$D3&"'!"&"$M$14"),"Not Found") ->  | W3: =_xlfn.XLOOKUP($D3,INDIRECT("'"&$D3&"'!"&"$C$9"),INDIRECT("'"&$D3&"'!"&"$K$15"),"Not Found") ->  | X3: =_xlfn.XLOOKUP($D3,INDIRECT("'"&$D3&"'!"&"$C$9"),INDIRECT("'"&$D3&"'!"&"$L$15"),"Not Found") ->  | Y3: =_xlfn.XLOOKUP($D3,INDIRECT("'"&$D3&"'!"&"$C$9"),INDIRECT("'"&$D3&"'!"&"$M$15"),"Not Found") ->  | Z3: =_xlfn.XLOOKUP($D3,INDIRECT("'"&$D3&"'!"&"$C$9"),INDIRECT("'"&$D3&"'!"&"$K$16"),"Not Found") ->  | AA3: =_xlfn.XLOOKUP($D3,INDIRECT("'"&$D3&"'!"&"$C$9"),INDIRECT("'"&$D3&"'!"&"$L$16"),"Not Found") ->  | AB3: =_xlfn.XLOOKUP($D3,INDIRECT("'"&$D3&"'!"&"$C$9"),INDIRECT("'"&$D3&"'!"&"$M$16"),"Not Found") ->  | AC3: =_xlfn.XLOOKUP($D3,INDIRECT("'"&$D3&"'!"&"$C$9"),INDIRECT("'"&$D3&"'!"&"$K$17"),"Not Found") ->  | AD3: =_xlfn.XLOOKUP($D3,INDIRECT("'"&$D3&"'!"&"$C$9"),INDIRECT("'"&$D3&"'!"&"$L$17"),"Not Found") ->  | AE3: =_xlfn.XLOOKUP($D3,INDIRECT("'"&$D3&"'!"&"$C$9"),INDIRECT("'"&$D3&"'!"&"$M$17"),"Not Found") ->  | AF3: =_xlfn.XLOOKUP($D3,INDIRECT("'"&$D3&"'!"&"$C$9"),INDIRECT("'"&$D3&"'!"&"$K$5"),"Not Found") ->  | AG3: =_xlfn.XLOOKUP($D3,INDIRECT("'"&$D3&"'!"&"$C$9"),INDIRECT("'"&$D3&"'!"&"$N$5"),"Not Found") ->  | AH3: =_xlfn.XLOOKUP($D3,INDIRECT("'"&$D3&"'!"&"$C$9"),INDIRECT("'"&$D3&"'!"&"$O$5"),"Not Found") ->  | AI3: =_xlfn.XLOOKUP($D3,INDIRECT("'"&$D3&"'!"&"$C$9"),INDIRECT("'"&$D3&"'!"&"$P$5"),"Not Found") ->  | AJ3: =_xlfn.XLOOKUP($D3,INDIRECT("'"&$D3&"'!"&"$C$9"),INDIRECT("'"&$D3&"'!"&"$Q$5"),"Not Found") ->  | AK3: =_xlfn.XLOOKUP($D3,INDIRECT("'"&$D3&"'!"&"$C$9"),INDIRECT("'"&$D3&"'!"&"$K$6"),"Not Found") ->  | AL3: =_xlfn.XLOOKUP($D3,INDIRECT("'"&$D3&"'!"&"$C$9"),INDIRECT("'"&$D3&"'!"&"$N$6"),"Not Found") ->  | AM3: =_xlfn.XLOOKUP($D3,INDIRECT("'"&$D3&"'!"&"$C$9"),INDIRECT("'"&$D3&"'!"&"$O$6"),"Not Found") ->  | AN3: =_xlfn.XLOOKUP($D3,INDIRECT("'"&$D3&"'!"&"$C$9"),INDIRECT("'"&$D3&"'!"&"$P$6"),"Not Found") ->  | AO3: =_xlfn.XLOOKUP($D3,INDIRECT("'"&$D3&"'!"&"$C$9"),INDIRECT("'"&$D3&"'!"&"$Q$6"),"Not Found") ->  | AP3: =_xlfn.XLOOKUP($D3,INDIRECT("'"&$D3&"'!"&"$C$9"),INDIRECT("'"&$D3&"'!"&"$K$7"),"Not Found") ->  | AQ3: =_xlfn.XLOOKUP($D3,INDIRECT("'"&$D3&"'!"&"$C$9"),INDIRECT("'"&$D3&"'!"&"$N$7"),"Not Found") ->  | AR3: =_xlfn.XLOOKUP($D3,INDIRECT("'"&$D3&"'!"&"$C$9"),INDIRECT("'"&$D3&"'!"&"$O$7"),"Not Found") ->  | AS3: =_xlfn.XLOOKUP($D3,INDIRECT("'"&$D3&"'!"&"$C$9"),INDIRECT("'"&$D3&"'!"&"$P$7"),"Not Found") ->  | AT3: =_xlfn.XLOOKUP($D3,INDIRECT("'"&$D3&"'!"&"$C$9"),INDIRECT("'"&$D3&"'!"&"$Q$7"),"Not Found") ->  | AU3: =_xlfn.XLOOKUP($D3,INDIRECT("'"&$D3&"'!"&"$C$9"),INDIRECT("'"&$D3&"'!"&"$K$8"),"Not Found") ->  | AV3: =_xlfn.XLOOKUP($D3,INDIRECT("'"&$D3&"'!"&"$C$9"),INDIRECT("'"&$D3&"'!"&"$N$8"),"Not Found") ->  | AW3: =_xlfn.XLOOKUP($D3,INDIRECT("'"&$D3&"'!"&"$C$9"),INDIRECT("'"&$D3&"'!"&"$O$8"),"Not Found") ->  | AX3: =_xlfn.XLOOKUP($D3,INDIRECT("'"&$D3&"'!"&"$C$9"),INDIRECT("'"&$D3&"'!"&"$P$8"),"Not Found") ->  | AY3: =_xlfn.XLOOKUP($D3,INDIRECT("'"&$D3&"'!"&"$C$9"),INDIRECT("'"&$D3&"'!"&"$Q$8"),"Not Found") ->  | AZ3: =_xlfn.XLOOKUP($D3,INDIRECT("'"&$D3&"'!"&"$C$9"),INDIRECT("'"&$D3&"'!"&"$K$9"),"Not Found") ->  | BA3: =_xlfn.XLOOKUP($D3,INDIRECT("'"&$D3&"'!"&"$C$9"),INDIRECT("'"&$D3&"'!"&"$N$9"),"Not Found") ->  | BB3: =_xlfn.XLOOKUP($D3,INDIRECT("'"&$D3&"'!"&"$C$9"),INDIRECT("'"&$D3&"'!"&"$O$9"),"Not Found") ->  | BC3: =_xlfn.XLOOKUP($D3,INDIRECT("'"&$D3&"'!"&"$C$9"),INDIRECT("'"&$D3&"'!"&"$P$9"),"Not Found") ->  | BD3: =_xlfn.XLOOKUP($D3,INDIRECT("'"&$D3&"'!"&"$C$9"),INDIRECT("'"&$D3&"'!"&"$Q$9"),"Not Found") ->  | BE3: =_xlfn.XLOOKUP($D3,INDIRECT("'"&$D3&"'!"&"$C$9"),INDIRECT("'"&$D3&"'!"&"$K$10"),"Not Found") ->  | BF3: =_xlfn.XLOOKUP($D3,INDIRECT("'"&$D3&"'!"&"$C$9"),INDIRECT("'"&$D3&"'!"&"$N$10"),"Not Found") ->  | BG3: =_xlfn.XLOOKUP($D3,INDIRECT("'"&$D3&"'!"&"$C$9"),INDIRECT("'"&$D3&"'!"&"$O$10"),"Not Found") ->  | BH3: =_xlfn.XLOOKUP($D3,INDIRECT("'"&$D3&"'!"&"$C$9"),INDIRECT("'"&$D3&"'!"&"$P$10"),"Not Found") ->  | BI3: =_xlfn.XLOOKUP($D3,INDIRECT("'"&$D3&"'!"&"$C$9"),INDIRECT("'"&$D3&"'!"&"$Q$10"),"Not Found") ->  | BJ3: =_xlfn.XLOOKUP($D3,INDIRECT("'"&$D3&"'!"&"$C$9"),INDIRECT("'"&$D3&"'!"&"$K$11"),"Not Found") ->  | BK3: =_xlfn.XLOOKUP($D3,INDIRECT("'"&$D3&"'!"&"$C$9"),INDIRECT("'"&$D3&"'!"&"$N$11"),"Not Found") ->  | BL3: =_xlfn.XLOOKUP($D3,INDIRECT("'"&$D3&"'!"&"$C$9"),INDIRECT("'"&$D3&"'!"&"$O$11"),"Not Found") ->  | BM3: =_xlfn.XLOOKUP($D3,INDIRECT("'"&$D3&"'!"&"$C$9"),INDIRECT("'"&$D3&"'!"&"$P$11"),"Not Found") ->  | BN3: =_xlfn.XLOOKUP($D3,INDIRECT("'"&$D3&"'!"&"$C$9"),INDIRECT("'"&$D3&"'!"&"$Q$11"),"Not Found") ->  | BO3: =_xlfn.XLOOKUP($D3,INDIRECT("'"&$D3&"'!"&"$C$9"),INDIRECT("'"&$D3&"'!"&"$K$2"),"Not Found") ->  | BP3: =_xlfn.XLOOKUP($D3,INDIRECT("'"&$D3&"'!"&"$C$9"),INDIRECT("'"&$D3&"'!"&"$L$2"),"Not Found") ->  | BQ3: =_xlfn.XLOOKUP($D3,INDIRECT("'"&$D3&"'!"&"$C$9"),INDIRECT("'"&$D3&"'!"&"$K$3"),"Not Found") ->  | BR3: =_xlfn.XLOOKUP($D3,INDIRECT("'"&$D3&"'!"&"$C$9"),INDIRECT("'"&$D3&"'!"&"$L$3"),"Not Found") ->  | BS3: =_xlfn.XLOOKUP($D3,INDIRECT("'"&$D3&"'!"&"$C$9"),INDIRECT("'"&$D3&"'!"&"$J$1"),"Not Found") ->  | BT3: =VLOOKUP($D3,'Financial Summary'!$A$7:$O$19,3,FALSE) -> Select One | BU3: =VLOOKUP($D3,'Financial Summary'!$A$7:$O$19,4,FALSE) -> Select One | BV3: =VLOOKUP($D3,'Financial Summary'!$A$7:$O$19,5,FALSE) -> 0 | BW3: =VLOOKUP($D3,'Financial Summary'!$A$7:$O$19,6,FALSE) -> 0 | BX3: =VLOOKUP($D3,'Financial Summary'!$A$7:$O$19,7,FALSE) -> 0 | BY3: =VLOOKUP($D3,'Financial Summary'!$A$7:$O$19,8,FALSE) -> 0 | BZ3: =VLOOKUP($D3,'Financial Summary'!$A$7:$O$19,9,FALSE) -> 0 | CA3: =VLOOKUP($D3,'Financial Summary'!$A$7:$O$19,10,FALSE) -> 0 | CB3: =VLOOKUP($D3,'Financial Summary'!$A$7:$O$19,11,FALSE) ->  | CC3: =VLOOKUP($D3,'Financial Summary'!$A$7:$O$19,12,FALSE) -> 0 | CD3: =VLOOKUP($D3,'Financial Summary'!$A$7:$O$19,13,FALSE) -> 0 | CE3: =VLOOKUP($D3,'Financial Summary'!$A$7:$O$19,14,FALSE) ->  | CF3: =VLOOKUP($D3,'Financial Summary'!$A$7:$P$19,15,FALSE) -> 0 | CG3: =VLOOKUP($D3,'Financial Summary'!$A$7:$P$19,16,FALSE) -> 0 | CH3: =VLOOKUP($D3,'Financial Summary'!$A$7:$Q$19,17,FALSE) ->  | CI3: =_xlfn.XLOOKUP($D3,'Executed & Recorded Loan Docs'!$A$5:$A$14,$B$5:$B$14,"",0) -> Alameda Affordable Housing Corporation | CJ3: =_xlfn.XLOOKUP($D3,INDIRECT("'"&$D3&"'!"&"$C$9"),INDIRECT("'"&$D3&"'!"&"$F$6"),"Not Found") ->  | CK3: =_xlfn.XLOOKUP($D3,INDIRECT("'"&$D3&"'!"&"$C$9"),INDIRECT("'"&$D3&"'!"&"_6._Additional_Comments"),"Not Found") -> 
A4: ='Narrative Summary'!$B$12 -> 23-LHTFCOM-18007 | B4: ='Narrative Summary'!$F$12 -> Alameda Affordable Housing Corporation | C4: ='Summary Sheet'!$D$9 -> 0 | D4: ='Financial Summary'!$A12 -> Project 3 | E4: =_xlfn.XLOOKUP($D4,INDIRECT("'"&$D4&"'!"&"$C$9"),INDIRECT("'"&$D4&"'!"&"$E$9"),"Not Found") ->  | F4: =_xlfn.XLOOKUP($D4,INDIRECT("'"&$D4&"'!"&"$C$9"),INDIRECT("'"&$D4&"'!"&"$C$10"),"Not Found") ->  | G4: =VLOOKUP($D4,'Financial Summary'!$A$7:$O$19,2,FALSE) -> Select One | H4: =_xlfn.XLOOKUP($D4,INDIRECT("'"&$D4&"'!"&"$C$9"),INDIRECT("'"&$D4&"'!"&"$C$11"),"Not Found") ->  | I4: =_xlfn.XLOOKUP($D4,INDIRECT("'"&$D4&"'!"&"$C$9"),INDIRECT("'"&$D4&"'!"&"$E$11"),"Not Found") ->  | J4: =_xlfn.XLOOKUP($D4,INDIRECT("'"&$D4&"'!"&"$C$9"),INDIRECT("'"&$D4&"'!"&"$C$12"),"Not Found") ->  | K4: =_xlfn.XLOOKUP($D4,INDIRECT("'"&$D4&"'!"&"$C$9"),INDIRECT("'"&$D4&"'!"&"$E$12"),"Not Found") ->  | L4: =_xlfn.XLOOKUP($D4,INDIRECT("'"&$D4&"'!"&"$C$9"),INDIRECT("'"&$D4&"'!"&"$C$13"),"Not Found") ->  | M4: =_xlfn.XLOOKUP($D4,INDIRECT("'"&$D4&"'!"&"$C$9"),INDIRECT("'"&$D4&"'!"&"$E$13"),"Not Found") ->  | N4: =_xlfn.XLOOKUP($D4,INDIRECT("'"&$D4&"'!"&"$C$9"),INDIRECT("'"&$D4&"'!"&"$L$12"),"Not Found") ->  | O4: =_xlfn.XLOOKUP($D4,INDIRECT("'"&$D4&"'!"&"$C$9"),INDIRECT("'"&$D4&"'!"&"$M$12"),"Not Found") ->  | P4: =_xlfn.XLOOKUP($D4,INDIRECT("'"&$D4&"'!"&"$C$9"),INDIRECT("'"&$D4&"'!"&"$K$12"),"Not Found") ->  | Q4: =_xlfn.XLOOKUP($D4,INDIRECT("'"&$D4&"'!"&"$C$9"),INDIRECT("'"&$D4&"'!"&"$K$13"),"Not Found") ->  | R4: =_xlfn.XLOOKUP($D4,INDIRECT("'"&$D4&"'!"&"$C$9"),INDIRECT("'"&$D4&"'!"&"$L$13"),"Not Found") ->  | S4: =_xlfn.XLOOKUP($D4,INDIRECT("'"&$D4&"'!"&"$C$9"),INDIRECT("'"&$D4&"'!"&"$M$13"),"Not Found") ->  | T4: =_xlfn.XLOOKUP($D4,INDIRECT("'"&$D4&"'!"&"$C$9"),INDIRECT("'"&$D4&"'!"&"$K$14"),"Not Found") ->  | U4: =_xlfn.XLOOKUP($D4,INDIRECT("'"&$D4&"'!"&"$C$9"),INDIRECT("'"&$D4&"'!"&"$L$14"),"Not Found") ->  | V4: =_xlfn.XLOOKUP($D4,INDIRECT("'"&$D4&"'!"&"$C$9"),INDIRECT("'"&$D4&"'!"&"$M$14"),"Not Found") ->  | W4: =_xlfn.XLOOKUP($D4,INDIRECT("'"&$D4&"'!"&"$C$9"),INDIRECT("'"&$D4&"'!"&"$K$15"),"Not Found") ->  | X4: =_xlfn.XLOOKUP($D4,INDIRECT("'"&$D4&"'!"&"$C$9"),INDIRECT("'"&$D4&"'!"&"$L$15"),"Not Found") ->  | Y4: =_xlfn.XLOOKUP($D4,INDIRECT("'"&$D4&"'!"&"$C$9"),INDIRECT("'"&$D4&"'!"&"$M$15"),"Not Found") ->  | Z4: =_xlfn.XLOOKUP($D4,INDIRECT("'"&$D4&"'!"&"$C$9"),INDIRECT("'"&$D4&"'!"&"$K$16"),"Not Found") ->  | AA4: =_xlfn.XLOOKUP($D4,INDIRECT("'"&$D4&"'!"&"$C$9"),INDIRECT("'"&$D4&"'!"&"$L$16"),"Not Found") ->  | AB4: =_xlfn.XLOOKUP($D4,INDIRECT("'"&$D4&"'!"&"$C$9"),INDIRECT("'"&$D4&"'!"&"$M$16"),"Not Found") ->  | AC4: =_xlfn.XLOOKUP($D4,INDIRECT("'"&$D4&"'!"&"$C$9"),INDIRECT("'"&$D4&"'!"&"$K$17"),"Not Found") ->  | AD4: =_xlfn.XLOOKUP($D4,INDIRECT("'"&$D4&"'!"&"$C$9"),INDIRECT("'"&$D4&"'!"&"$L$17"),"Not Found") ->  | AE4: =_xlfn.XLOOKUP($D4,INDIRECT("'"&$D4&"'!"&"$C$9"),INDIRECT("'"&$D4&"'!"&"$M$17"),"Not Found") ->  | AF4: =_xlfn.XLOOKUP($D4,INDIRECT("'"&$D4&"'!"&"$C$9"),INDIRECT("'"&$D4&"'!"&"$K$5"),"Not Found") ->  | AG4: =_xlfn.XLOOKUP($D4,INDIRECT("'"&$D4&"'!"&"$C$9"),INDIRECT("'"&$D4&"'!"&"$N$5"),"Not Found") ->  | AH4: =_xlfn.XLOOKUP($D4,INDIRECT("'"&$D4&"'!"&"$C$9"),INDIRECT("'"&$D4&"'!"&"$O$5"),"Not Found") ->  | AI4: =_xlfn.XLOOKUP($D4,INDIRECT("'"&$D4&"'!"&"$C$9"),INDIRECT("'"&$D4&"'!"&"$P$5"),"Not Found") ->  | AJ4: =_xlfn.XLOOKUP($D4,INDIRECT("'"&$D4&"'!"&"$C$9"),INDIRECT("'"&$D4&"'!"&"$Q$5"),"Not Found") ->  | AK4: =_xlfn.XLOOKUP($D4,INDIRECT("'"&$D4&"'!"&"$C$9"),INDIRECT("'"&$D4&"'!"&"$K$6"),"Not Found") ->  | AL4: =_xlfn.XLOOKUP($D4,INDIRECT("'"&$D4&"'!"&"$C$9"),INDIRECT("'"&$D4&"'!"&"$N$6"),"Not Found") ->  | AM4: =_xlfn.XLOOKUP($D4,INDIRECT("'"&$D4&"'!"&"$C$9"),INDIRECT("'"&$D4&"'!"&"$O$6"),"Not Found") ->  | AN4: =_xlfn.XLOOKUP($D4,INDIRECT("'"&$D4&"'!"&"$C$9"),INDIRECT("'"&$D4&"'!"&"$P$6"),"Not Found") ->  | AO4: =_xlfn.XLOOKUP($D4,INDIRECT("'"&$D4&"'!"&"$C$9"),INDIRECT("'"&$D4&"'!"&"$Q$6"),"Not Found") ->  | AP4: =_xlfn.XLOOKUP($D4,INDIRECT("'"&$D4&"'!"&"$C$9"),INDIRECT("'"&$D4&"'!"&"$K$7"),"Not Found") ->  | AQ4: =_xlfn.XLOOKUP($D4,INDIRECT("'"&$D4&"'!"&"$C$9"),INDIRECT("'"&$D4&"'!"&"$N$7"),"Not Found") ->  | AR4: =_xlfn.XLOOKUP($D4,INDIRECT("'"&$D4&"'!"&"$C$9"),INDIRECT("'"&$D4&"'!"&"$O$7"),"Not Found") ->  | AS4: =_xlfn.XLOOKUP($D4,INDIRECT("'"&$D4&"'!"&"$C$9"),INDIRECT("'"&$D4&"'!"&"$P$7"),"Not Found") ->  | AT4: =_xlfn.XLOOKUP($D4,INDIRECT("'"&$D4&"'!"&"$C$9"),INDIRECT("'"&$D4&"'!"&"$Q$7"),"Not Found") ->  | AU4: =_xlfn.XLOOKUP($D4,INDIRECT("'"&$D4&"'!"&"$C$9"),INDIRECT("'"&$D4&"'!"&"$K$8"),"Not Found") ->  | AV4: =_xlfn.XLOOKUP($D4,INDIRECT("'"&$D4&"'!"&"$C$9"),INDIRECT("'"&$D4&"'!"&"$N$8"),"Not Found") ->  | AW4: =_xlfn.XLOOKUP($D4,INDIRECT("'"&$D4&"'!"&"$C$9"),INDIRECT("'"&$D4&"'!"&"$O$8"),"Not Found") ->  | AX4: =_xlfn.XLOOKUP($D4,INDIRECT("'"&$D4&"'!"&"$C$9"),INDIRECT("'"&$D4&"'!"&"$P$8"),"Not Found") ->  | AY4: =_xlfn.XLOOKUP($D4,INDIRECT("'"&$D4&"'!"&"$C$9"),INDIRECT("'"&$D4&"'!"&"$Q$8"),"Not Found") ->  | AZ4: =_xlfn.XLOOKUP($D4,INDIRECT("'"&$D4&"'!"&"$C$9"),INDIRECT("'"&$D4&"'!"&"$K$9"),"Not Found") ->  | BA4: =_xlfn.XLOOKUP($D4,INDIRECT("'"&$D4&"'!"&"$C$9"),INDIRECT("'"&$D4&"'!"&"$N$9"),"Not Found") ->  | BB4: =_xlfn.XLOOKUP($D4,INDIRECT("'"&$D4&"'!"&"$C$9"),INDIRECT("'"&$D4&"'!"&"$O$9"),"Not Found") ->  | BC4: =_xlfn.XLOOKUP($D4,INDIRECT("'"&$D4&"'!"&"$C$9"),INDIRECT("'"&$D4&"'!"&"$P$9"),"Not Found") ->  | BD4: =_xlfn.XLOOKUP($D4,INDIRECT("'"&$D4&"'!"&"$C$9"),INDIRECT("'"&$D4&"'!"&"$Q$9"),"Not Found") ->  | BE4: =_xlfn.XLOOKUP($D4,INDIRECT("'"&$D4&"'!"&"$C$9"),INDIRECT("'"&$D4&"'!"&"$K$10"),"Not Found") ->  | BF4: =_xlfn.XLOOKUP($D4,INDIRECT("'"&$D4&"'!"&"$C$9"),INDIRECT("'"&$D4&"'!"&"$N$10"),"Not Found") ->  | BG4: =_xlfn.XLOOKUP($D4,INDIRECT("'"&$D4&"'!"&"$C$9"),INDIRECT("'"&$D4&"'!"&"$O$10"),"Not Found") ->  | BH4: =_xlfn.XLOOKUP($D4,INDIRECT("'"&$D4&"'!"&"$C$9"),INDIRECT("'"&$D4&"'!"&"$P$10"),"Not Found") ->  | BI4: =_xlfn.XLOOKUP($D4,INDIRECT("'"&$D4&"'!"&"$C$9"),INDIRECT("'"&$D4&"'!"&"$Q$10"),"Not Found") ->  | BJ4: =_xlfn.XLOOKUP($D4,INDIRECT("'"&$D4&"'!"&"$C$9"),INDIRECT("'"&$D4&"'!"&"$K$11"),"Not Found") ->  | BK4: =_xlfn.XLOOKUP($D4,INDIRECT("'"&$D4&"'!"&"$C$9"),INDIRECT("'"&$D4&"'!"&"$N$11"),"Not Found") ->  | BL4: =_xlfn.XLOOKUP($D4,INDIRECT("'"&$D4&"'!"&"$C$9"),INDIRECT("'"&$D4&"'!"&"$O$11"),"Not Found") ->  | BM4: =_xlfn.XLOOKUP($D4,INDIRECT("'"&$D4&"'!"&"$C$9"),INDIRECT("'"&$D4&"'!"&"$P$11"),"Not Found") ->  | BN4: =_xlfn.XLOOKUP($D4,INDIRECT("'"&$D4&"'!"&"$C$9"),INDIRECT("'"&$D4&"'!"&"$Q$11"),"Not Found") ->  | BO4: =_xlfn.XLOOKUP($D4,INDIRECT("'"&$D4&"'!"&"$C$9"),INDIRECT("'"&$D4&"'!"&"$K$2"),"Not Found") ->  | BP4: =_xlfn.XLOOKUP($D4,INDIRECT("'"&$D4&"'!"&"$C$9"),INDIRECT("'"&$D4&"'!"&"$L$2"),"Not Found") ->  | BQ4: =_xlfn.XLOOKUP($D4,INDIRECT("'"&$D4&"'!"&"$C$9"),INDIRECT("'"&$D4&"'!"&"$K$3"),"Not Found") ->  | BR4: =_xlfn.XLOOKUP($D4,INDIRECT("'"&$D4&"'!"&"$C$9"),INDIRECT("'"&$D4&"'!"&"$L$3"),"Not Found") ->  | BS4: =_xlfn.XLOOKUP($D4,INDIRECT("'"&$D4&"'!"&"$C$9"),INDIRECT("'"&$D4&"'!"&"$J$1"),"Not Found") ->  | BT4: =VLOOKUP($D4,'Financial Summary'!$A$7:$O$19,3,FALSE) -> Select One | BU4: =VLOOKUP($D4,'Financial Summary'!$A$7:$O$19,4,FALSE) -> Select One | BV4: =VLOOKUP($D4,'Financial Summary'!$A$7:$O$19,5,FALSE) -> 0 | BW4: =VLOOKUP($D4,'Financial Summary'!$A$7:$O$19,6,FALSE) -> 0 | BX4: =VLOOKUP($D4,'Financial Summary'!$A$7:$O$19,7,FALSE) -> 0 | BY4: =VLOOKUP($D4,'Financial Summary'!$A$7:$O$19,8,FALSE) -> 0 | BZ4: =VLOOKUP($D4,'Financial Summary'!$A$7:$O$19,9,FALSE) -> 0 | CA4: =VLOOKUP($D4,'Financial Summary'!$A$7:$O$19,10,FALSE) -> 0 | CB4: =VLOOKUP($D4,'Financial Summary'!$A$7:$O$19,11,FALSE) ->  | CC4: =VLOOKUP($D4,'Financial Summary'!$A$7:$O$19,12,FALSE) -> 0 | CD4: =VLOOKUP($D4,'Financial Summary'!$A$7:$O$19,13,FALSE) -> 0 | CE4: =VLOOKUP($D4,'Financial Summary'!$A$7:$O$19,14,FALSE) ->  | CF4: =VLOOKUP($D4,'Financial Summary'!$A$7:$P$19,15,FALSE) -> 0 | CG4: =VLOOKUP($D4,'Financial Summary'!$A$7:$P$19,16,FALSE) -> 0 | CH4: =VLOOKUP($D4,'Financial Summary'!$A$7:$Q$19,17,FALSE) ->  | CI4: =_xlfn.XLOOKUP($D4,'Executed & Recorded Loan Docs'!$A$5:$A$14,$B$5:$B$14,"",0) -> Alameda Affordable Housing Corporation | CJ4: =_xlfn.XLOOKUP($D4,INDIRECT("'"&$D4&"'!"&"$C$9"),INDIRECT("'"&$D4&"'!"&"$F$6"),"Not Found") ->  | CK4: =_xlfn.XLOOKUP($D4,INDIRECT("'"&$D4&"'!"&"$C$9"),INDIRECT("'"&$D4&"'!"&"_6._Additional_Comments"),"Not Found") -> 
A5: ='Narrative Summary'!$B$12 -> 23-LHTFCOM-18007 | B5: ='Narrative Summary'!$F$12 -> Alameda Affordable Housing Corporation | C5: ='Summary Sheet'!$D$9 -> 0 | D5: ='Financial Summary'!$A13 -> Project 4 | E5: =_xlfn.XLOOKUP($D5,INDIRECT("'"&$D5&"'!"&"$C$9"),INDIRECT("'"&$D5&"'!"&"$E$9"),"Not Found") ->  | F5: =_xlfn.XLOOKUP($D5,INDIRECT("'"&$D5&"'!"&"$C$9"),INDIRECT("'"&$D5&"'!"&"$C$10"),"Not Found") ->  | G5: =VLOOKUP($D5,'Financial Summary'!$A$7:$O$19,2,FALSE) -> Select One | H5: =_xlfn.XLOOKUP($D5,INDIRECT("'"&$D5&"'!"&"$C$9"),INDIRECT("'"&$D5&"'!"&"$C$11"),"Not Found") ->  | I5: =_xlfn.XLOOKUP($D5,INDIRECT("'"&$D5&"'!"&"$C$9"),INDIRECT("'"&$D5&"'!"&"$E$11"),"Not Found") ->  | J5: =_xlfn.XLOOKUP($D5,INDIRECT("'"&$D5&"'!"&"$C$9"),INDIRECT("'"&$D5&"'!"&"$C$12"),"Not Found") ->  | K5: =_xlfn.XLOOKUP($D5,INDIRECT("'"&$D5&"'!"&"$C$9"),INDIRECT("'"&$D5&"'!"&"$E$12"),"Not Found") ->  | L5: =_xlfn.XLOOKUP($D5,INDIRECT("'"&$D5&"'!"&"$C$9"),INDIRECT("'"&$D5&"'!"&"$C$13"),"Not Found") ->  | M5: =_xlfn.XLOOKUP($D5,INDIRECT("'"&$D5&"'!"&"$C$9"),INDIRECT("'"&$D5&"'!"&"$E$13"),"Not Found") ->  | N5: =_xlfn.XLOOKUP($D5,INDIRECT("'"&$D5&"'!"&"$C$9"),INDIRECT("'"&$D5&"'!"&"$L$12"),"Not Found") ->  | O5: =_xlfn.XLOOKUP($D5,INDIRECT("'"&$D5&"'!"&"$C$9"),INDIRECT("'"&$D5&"'!"&"$M$12"),"Not Found") ->  | P5: =_xlfn.XLOOKUP($D5,INDIRECT("'"&$D5&"'!"&"$C$9"),INDIRECT("'"&$D5&"'!"&"$K$12"),"Not Found") ->  | Q5: =_xlfn.XLOOKUP($D5,INDIRECT("'"&$D5&"'!"&"$C$9"),INDIRECT("'"&$D5&"'!"&"$K$13"),"Not Found") ->  | R5: =_xlfn.XLOOKUP($D5,INDIRECT("'"&$D5&"'!"&"$C$9"),INDIRECT("'"&$D5&"'!"&"$L$13"),"Not Found") ->  | S5: =_xlfn.XLOOKUP($D5,INDIRECT("'"&$D5&"'!"&"$C$9"),INDIRECT("'"&$D5&"'!"&"$M$13"),"Not Found") ->  | T5: =_xlfn.XLOOKUP($D5,INDIRECT("'"&$D5&"'!"&"$C$9"),INDIRECT("'"&$D5&"'!"&"$K$14"),"Not Found") ->  | U5: =_xlfn.XLOOKUP($D5,INDIRECT("'"&$D5&"'!"&"$C$9"),INDIRECT("'"&$D5&"'!"&"$L$14"),"Not Found") ->  | V5: =_xlfn.XLOOKUP($D5,INDIRECT("'"&$D5&"'!"&"$C$9"),INDIRECT("'"&$D5&"'!"&"$M$14"),"Not Found") ->  | W5: =_xlfn.XLOOKUP($D5,INDIRECT("'"&$D5&"'!"&"$C$9"),INDIRECT("'"&$D5&"'!"&"$K$15"),"Not Found") ->  | X5: =_xlfn.XLOOKUP($D5,INDIRECT("'"&$D5&"'!"&"$C$9"),INDIRECT("'"&$D5&"'!"&"$L$15"),"Not Found") ->  | Y5: =_xlfn.XLOOKUP($D5,INDIRECT("'"&$D5&"'!"&"$C$9"),INDIRECT("'"&$D5&"'!"&"$M$15"),"Not Found") ->  | Z5: =_xlfn.XLOOKUP($D5,INDIRECT("'"&$D5&"'!"&"$C$9"),INDIRECT("'"&$D5&"'!"&"$K$16"),"Not Found") ->  | AA5: =_xlfn.XLOOKUP($D5,INDIRECT("'"&$D5&"'!"&"$C$9"),INDIRECT("'"&$D5&"'!"&"$L$16"),"Not Found") ->  | AB5: =_xlfn.XLOOKUP($D5,INDIRECT("'"&$D5&"'!"&"$C$9"),INDIRECT("'"&$D5&"'!"&"$M$16"),"Not Found") ->  | AC5: =_xlfn.XLOOKUP($D5,INDIRECT("'"&$D5&"'!"&"$C$9"),INDIRECT("'"&$D5&"'!"&"$K$17"),"Not Found") ->  | AD5: =_xlfn.XLOOKUP($D5,INDIRECT("'"&$D5&"'!"&"$C$9"),INDIRECT("'"&$D5&"'!"&"$L$17"),"Not Found") ->  | AE5: =_xlfn.XLOOKUP($D5,INDIRECT("'"&$D5&"'!"&"$C$9"),INDIRECT("'"&$D5&"'!"&"$M$17"),"Not Found") ->  | AF5: =_xlfn.XLOOKUP($D5,INDIRECT("'"&$D5&"'!"&"$C$9"),INDIRECT("'"&$D5&"'!"&"$K$5"),"Not Found") ->  | AG5: =_xlfn.XLOOKUP($D5,INDIRECT("'"&$D5&"'!"&"$C$9"),INDIRECT("'"&$D5&"'!"&"$N$5"),"Not Found") ->  | AH5: =_xlfn.XLOOKUP($D5,INDIRECT("'"&$D5&"'!"&"$C$9"),INDIRECT("'"&$D5&"'!"&"$O$5"),"Not Found") ->  | AI5: =_xlfn.XLOOKUP($D5,INDIRECT("'"&$D5&"'!"&"$C$9"),INDIRECT("'"&$D5&"'!"&"$P$5"),"Not Found") ->  | AJ5: =_xlfn.XLOOKUP($D5,INDIRECT("'"&$D5&"'!"&"$C$9"),INDIRECT("'"&$D5&"'!"&"$Q$5"),"Not Found") ->  | AK5: =_xlfn.XLOOKUP($D5,INDIRECT("'"&$D5&"'!"&"$C$9"),INDIRECT("'"&$D5&"'!"&"$K$6"),"Not Found") ->  | AL5: =_xlfn.XLOOKUP($D5,INDIRECT("'"&$D5&"'!"&"$C$9"),INDIRECT("'"&$D5&"'!"&"$N$6"),"Not Found") ->  | AM5: =_xlfn.XLOOKUP($D5,INDIRECT("'"&$D5&"'!"&"$C$9"),INDIRECT("'"&$D5&"'!"&"$O$6"),"Not Found") ->  | AN5: =_xlfn.XLOOKUP($D5,INDIRECT("'"&$D5&"'!"&"$C$9"),INDIRECT("'"&$D5&"'!"&"$P$6"),"Not Found") ->  | AO5: =_xlfn.XLOOKUP($D5,INDIRECT("'"&$D5&"'!"&"$C$9"),INDIRECT("'"&$D5&"'!"&"$Q$6"),"Not Found") ->  | AP5: =_xlfn.XLOOKUP($D5,INDIRECT("'"&$D5&"'!"&"$C$9"),INDIRECT("'"&$D5&"'!"&"$K$7"),"Not Found") ->  | AQ5: =_xlfn.XLOOKUP($D5,INDIRECT("'"&$D5&"'!"&"$C$9"),INDIRECT("'"&$D5&"'!"&"$N$7"),"Not Found") ->  | AR5: =_xlfn.XLOOKUP($D5,INDIRECT("'"&$D5&"'!"&"$C$9"),INDIRECT("'"&$D5&"'!"&"$O$7"),"Not Found") ->  | AS5: =_xlfn.XLOOKUP($D5,INDIRECT("'"&$D5&"'!"&"$C$9"),INDIRECT("'"&$D5&"'!"&"$P$7"),"Not Found") ->  | AT5: =_xlfn.XLOOKUP($D5,INDIRECT("'"&$D5&"'!"&"$C$9"),INDIRECT("'"&$D5&"'!"&"$Q$7"),"Not Found") ->  | AU5: =_xlfn.XLOOKUP($D5,INDIRECT("'"&$D5&"'!"&"$C$9"),INDIRECT("'"&$D5&"'!"&"$K$8"),"Not Found") ->  | AV5: =_xlfn.XLOOKUP($D5,INDIRECT("'"&$D5&"'!"&"$C$9"),INDIRECT("'"&$D5&"'!"&"$N$8"),"Not Found") ->  | AW5: =_xlfn.XLOOKUP($D5,INDIRECT("'"&$D5&"'!"&"$C$9"),INDIRECT("'"&$D5&"'!"&"$O$8"),"Not Found") ->  | AX5: =_xlfn.XLOOKUP($D5,INDIRECT("'"&$D5&"'!"&"$C$9"),INDIRECT("'"&$D5&"'!"&"$P$8"),"Not Found") ->  | AY5: =_xlfn.XLOOKUP($D5,INDIRECT("'"&$D5&"'!"&"$C$9"),INDIRECT("'"&$D5&"'!"&"$Q$8"),"Not Found") ->  | AZ5: =_xlfn.XLOOKUP($D5,INDIRECT("'"&$D5&"'!"&"$C$9"),INDIRECT("'"&$D5&"'!"&"$K$9"),"Not Found") ->  | BA5: =_xlfn.XLOOKUP($D5,INDIRECT("'"&$D5&"'!"&"$C$9"),INDIRECT("'"&$D5&"'!"&"$N$9"),"Not Found") ->  | BB5: =_xlfn.XLOOKUP($D5,INDIRECT("'"&$D5&"'!"&"$C$9"),INDIRECT("'"&$D5&"'!"&"$O$9"),"Not Found") ->  | BC5: =_xlfn.XLOOKUP($D5,INDIRECT("'"&$D5&"'!"&"$C$9"),INDIRECT("'"&$D5&"'!"&"$P$9"),"Not Found") ->  | BD5: =_xlfn.XLOOKUP($D5,INDIRECT("'"&$D5&"'!"&"$C$9"),INDIRECT("'"&$D5&"'!"&"$Q$9"),"Not Found") ->  | BE5: =_xlfn.XLOOKUP($D5,INDIRECT("'"&$D5&"'!"&"$C$9"),INDIRECT("'"&$D5&"'!"&"$K$10"),"Not Found") ->  | BF5: =_xlfn.XLOOKUP($D5,INDIRECT("'"&$D5&"'!"&"$C$9"),INDIRECT("'"&$D5&"'!"&"$N$10"),"Not Found") ->  | BG5: =_xlfn.XLOOKUP($D5,INDIRECT("'"&$D5&"'!"&"$C$9"),INDIRECT("'"&$D5&"'!"&"$O$10"),"Not Found") ->  | BH5: =_xlfn.XLOOKUP($D5,INDIRECT("'"&$D5&"'!"&"$C$9"),INDIRECT("'"&$D5&"'!"&"$P$10"),"Not Found") ->  | BI5: =_xlfn.XLOOKUP($D5,INDIRECT("'"&$D5&"'!"&"$C$9"),INDIRECT("'"&$D5&"'!"&"$Q$10"),"Not Found") ->  | BJ5: =_xlfn.XLOOKUP($D5,INDIRECT("'"&$D5&"'!"&"$C$9"),INDIRECT("'"&$D5&"'!"&"$K$11"),"Not Found") ->  | BK5: =_xlfn.XLOOKUP($D5,INDIRECT("'"&$D5&"'!"&"$C$9"),INDIRECT("'"&$D5&"'!"&"$N$11"),"Not Found") ->  | BL5: =_xlfn.XLOOKUP($D5,INDIRECT("'"&$D5&"'!"&"$C$9"),INDIRECT("'"&$D5&"'!"&"$O$11"),"Not Found") ->  | BM5: =_xlfn.XLOOKUP($D5,INDIRECT("'"&$D5&"'!"&"$C$9"),INDIRECT("'"&$D5&"'!"&"$P$11"),"Not Found") ->  | BN5: =_xlfn.XLOOKUP($D5,INDIRECT("'"&$D5&"'!"&"$C$9"),INDIRECT("'"&$D5&"'!"&"$Q$11"),"Not Found") ->  | BO5: =_xlfn.XLOOKUP($D5,INDIRECT("'"&$D5&"'!"&"$C$9"),INDIRECT("'"&$D5&"'!"&"$K$2"),"Not Found") ->  | BP5: =_xlfn.XLOOKUP($D5,INDIRECT("'"&$D5&"'!"&"$C$9"),INDIRECT("'"&$D5&"'!"&"$L$2"),"Not Found") ->  | BQ5: =_xlfn.XLOOKUP($D5,INDIRECT("'"&$D5&"'!"&"$C$9"),INDIRECT("'"&$D5&"'!"&"$K$3"),"Not Found") ->  | BR5: =_xlfn.XLOOKUP($D5,INDIRECT("'"&$D5&"'!"&"$C$9"),INDIRECT("'"&$D5&"'!"&"$L$3"),"Not Found") ->  | BS5: =_xlfn.XLOOKUP($D5,INDIRECT("'"&$D5&"'!"&"$C$9"),INDIRECT("'"&$D5&"'!"&"$J$1"),"Not Found") ->  | BT5: =VLOOKUP($D5,'Financial Summary'!$A$7:$O$19,3,FALSE) -> Select One | BU5: =VLOOKUP($D5,'Financial Summary'!$A$7:$O$19,4,FALSE) -> Select One | BV5: =VLOOKUP($D5,'Financial Summary'!$A$7:$O$19,5,FALSE) -> 0 | BW5: =VLOOKUP($D5,'Financial Summary'!$A$7:$O$19,6,FALSE) -> 0 | BX5: =VLOOKUP($D5,'Financial Summary'!$A$7:$O$19,7,FALSE) -> 0 | BY5: =VLOOKUP($D5,'Financial Summary'!$A$7:$O$19,8,FALSE) -> 0 | BZ5: =VLOOKUP($D5,'Financial Summary'!$A$7:$O$19,9,FALSE) -> 0 | CA5: =VLOOKUP($D5,'Financial Summary'!$A$7:$O$19,10,FALSE) -> 0 | CB5: =VLOOKUP($D5,'Financial Summary'!$A$7:$O$19,11,FALSE) ->  | CC5: =VLOOKUP($D5,'Financial Summary'!$A$7:$O$19,12,FALSE) -> 0 | CD5: =VLOOKUP($D5,'Financial Summary'!$A$7:$O$19,13,FALSE) -> 0 | CE5: =VLOOKUP($D5,'Financial Summary'!$A$7:$O$19,14,FALSE) ->  | CF5: =VLOOKUP($D5,'Financial Summary'!$A$7:$P$19,15,FALSE) -> 0 | CG5: =VLOOKUP($D5,'Financial Summary'!$A$7:$P$19,16,FALSE) -> 0 | CH5: =VLOOKUP($D5,'Financial Summary'!$A$7:$Q$19,17,FALSE) ->  | CI5: =_xlfn.XLOOKUP($D5,'Executed & Recorded Loan Docs'!$A$5:$A$14,$B$5:$B$14,"",0) -> Alameda Affordable Housing Corporation | CJ5: =_xlfn.XLOOKUP($D5,INDIRECT("'"&$D5&"'!"&"$C$9"),INDIRECT("'"&$D5&"'!"&"$F$6"),"Not Found") ->  | CK5: =_xlfn.XLOOKUP($D5,INDIRECT("'"&$D5&"'!"&"$C$9"),INDIRECT("'"&$D5&"'!"&"_6._Additional_Comments"),"Not Found") -> 
A6: ='Narrative Summary'!$B$12 -> 23-LHTFCOM-18007 | B6: ='Narrative Summary'!$F$12 -> Alameda Affordable Housing Corporation | C6: ='Summary Sheet'!$D$9 -> 0 | D6: ='Financial Summary'!$A14 -> Project 5 | E6: =_xlfn.XLOOKUP($D6,INDIRECT("'"&$D6&"'!"&"$C$9"),INDIRECT("'"&$D6&"'!"&"$E$9"),"Not Found") ->  | F6: =_xlfn.XLOOKUP($D6,INDIRECT("'"&$D6&"'!"&"$C$9"),INDIRECT("'"&$D6&"'!"&"$C$10"),"Not Found") ->  | G6: =VLOOKUP($D6,'Financial Summary'!$A$7:$O$19,2,FALSE) -> Select One | H6: =_xlfn.XLOOKUP($D6,INDIRECT("'"&$D6&"'!"&"$C$9"),INDIRECT("'"&$D6&"'!"&"$C$11"),"Not Found") ->  | I6: =_xlfn.XLOOKUP($D6,INDIRECT("'"&$D6&"'!"&"$C$9"),INDIRECT("'"&$D6&"'!"&"$E$11"),"Not Found") ->  | J6: =_xlfn.XLOOKUP($D6,INDIRECT("'"&$D6&"'!"&"$C$9"),INDIRECT("'"&$D6&"'!"&"$C$12"),"Not Found") ->  | K6: =_xlfn.XLOOKUP($D6,INDIRECT("'"&$D6&"'!"&"$C$9"),INDIRECT("'"&$D6&"'!"&"$E$12"),"Not Found") ->  | L6: =_xlfn.XLOOKUP($D6,INDIRECT("'"&$D6&"'!"&"$C$9"),INDIRECT("'"&$D6&"'!"&"$C$13"),"Not Found") ->  | M6: =_xlfn.XLOOKUP($D6,INDIRECT("'"&$D6&"'!"&"$C$9"),INDIRECT("'"&$D6&"'!"&"$E$13"),"Not Found") ->  | N6: =_xlfn.XLOOKUP($D6,INDIRECT("'"&$D6&"'!"&"$C$9"),INDIRECT("'"&$D6&"'!"&"$L$12"),"Not Found") ->  | O6: =_xlfn.XLOOKUP($D6,INDIRECT("'"&$D6&"'!"&"$C$9"),INDIRECT("'"&$D6&"'!"&"$M$12"),"Not Found") ->  | P6: =_xlfn.XLOOKUP($D6,INDIRECT("'"&$D6&"'!"&"$C$9"),INDIRECT("'"&$D6&"'!"&"$K$12"),"Not Found") ->  | Q6: =_xlfn.XLOOKUP($D6,INDIRECT("'"&$D6&"'!"&"$C$9"),INDIRECT("'"&$D6&"'!"&"$K$13"),"Not Found") ->  | R6: =_xlfn.XLOOKUP($D6,INDIRECT("'"&$D6&"'!"&"$C$9"),INDIRECT("'"&$D6&"'!"&"$L$13"),"Not Found") ->  | S6: =_xlfn.XLOOKUP($D6,INDIRECT("'"&$D6&"'!"&"$C$9"),INDIRECT("'"&$D6&"'!"&"$M$13"),"Not Found") ->  | T6: =_xlfn.XLOOKUP($D6,INDIRECT("'"&$D6&"'!"&"$C$9"),INDIRECT("'"&$D6&"'!"&"$K$14"),"Not Found") ->  | U6: =_xlfn.XLOOKUP($D6,INDIRECT("'"&$D6&"'!"&"$C$9"),INDIRECT("'"&$D6&"'!"&"$L$14"),"Not Found") ->  | V6: =_xlfn.XLOOKUP($D6,INDIRECT("'"&$D6&"'!"&"$C$9"),INDIRECT("'"&$D6&"'!"&"$M$14"),"Not Found") ->  | W6: =_xlfn.XLOOKUP($D6,INDIRECT("'"&$D6&"'!"&"$C$9"),INDIRECT("'"&$D6&"'!"&"$K$15"),"Not Found") ->  | X6: =_xlfn.XLOOKUP($D6,INDIRECT("'"&$D6&"'!"&"$C$9"),INDIRECT("'"&$D6&"'!"&"$L$15"),"Not Found") ->  | Y6: =_xlfn.XLOOKUP($D6,INDIRECT("'"&$D6&"'!"&"$C$9"),INDIRECT("'"&$D6&"'!"&"$M$15"),"Not Found") ->  | Z6: =_xlfn.XLOOKUP($D6,INDIRECT("'"&$D6&"'!"&"$C$9"),INDIRECT("'"&$D6&"'!"&"$K$16"),"Not Found") ->  | AA6: =_xlfn.XLOOKUP($D6,INDIRECT("'"&$D6&"'!"&"$C$9"),INDIRECT("'"&$D6&"'!"&"$L$16"),"Not Found") ->  | AB6: =_xlfn.XLOOKUP($D6,INDIRECT("'"&$D6&"'!"&"$C$9"),INDIRECT("'"&$D6&"'!"&"$M$16"),"Not Found") ->  | AC6: =_xlfn.XLOOKUP($D6,INDIRECT("'"&$D6&"'!"&"$C$9"),INDIRECT("'"&$D6&"'!"&"$K$17"),"Not Found") ->  | AD6: =_xlfn.XLOOKUP($D6,INDIRECT("'"&$D6&"'!"&"$C$9"),INDIRECT("'"&$D6&"'!"&"$L$17"),"Not Found") ->  | AE6: =_xlfn.XLOOKUP($D6,INDIRECT("'"&$D6&"'!"&"$C$9"),INDIRECT("'"&$D6&"'!"&"$M$17"),"Not Found") ->  | AF6: =_xlfn.XLOOKUP($D6,INDIRECT("'"&$D6&"'!"&"$C$9"),INDIRECT("'"&$D6&"'!"&"$K$5"),"Not Found") ->  | AG6: =_xlfn.XLOOKUP($D6,INDIRECT("'"&$D6&"'!"&"$C$9"),INDIRECT("'"&$D6&"'!"&"$N$5"),"Not Found") ->  | AH6: =_xlfn.XLOOKUP($D6,INDIRECT("'"&$D6&"'!"&"$C$9"),INDIRECT("'"&$D6&"'!"&"$O$5"),"Not Found") ->  | AI6: =_xlfn.XLOOKUP($D6,INDIRECT("'"&$D6&"'!"&"$C$9"),INDIRECT("'"&$D6&"'!"&"$P$5"),"Not Found") ->  | AJ6: =_xlfn.XLOOKUP($D6,INDIRECT("'"&$D6&"'!"&"$C$9"),INDIRECT("'"&$D6&"'!"&"$Q$5"),"Not Found") ->  | AK6: =_xlfn.XLOOKUP($D6,INDIRECT("'"&$D6&"'!"&"$C$9"),INDIRECT("'"&$D6&"'!"&"$K$6"),"Not Found") ->  | AL6: =_xlfn.XLOOKUP($D6,INDIRECT("'"&$D6&"'!"&"$C$9"),INDIRECT("'"&$D6&"'!"&"$N$6"),"Not Found") ->  | AM6: =_xlfn.XLOOKUP($D6,INDIRECT("'"&$D6&"'!"&"$C$9"),INDIRECT("'"&$D6&"'!"&"$O$6"),"Not Found") ->  | AN6: =_xlfn.XLOOKUP($D6,INDIRECT("'"&$D6&"'!"&"$C$9"),INDIRECT("'"&$D6&"'!"&"$P$6"),"Not Found") ->  | AO6: =_xlfn.XLOOKUP($D6,INDIRECT("'"&$D6&"'!"&"$C$9"),INDIRECT("'"&$D6&"'!"&"$Q$6"),"Not Found") ->  | AP6: =_xlfn.XLOOKUP($D6,INDIRECT("'"&$D6&"'!"&"$C$9"),INDIRECT("'"&$D6&"'!"&"$K$7"),"Not Found") ->  | AQ6: =_xlfn.XLOOKUP($D6,INDIRECT("'"&$D6&"'!"&"$C$9"),INDIRECT("'"&$D6&"'!"&"$N$7"),"Not Found") ->  | AR6: =_xlfn.XLOOKUP($D6,INDIRECT("'"&$D6&"'!"&"$C$9"),INDIRECT("'"&$D6&"'!"&"$O$7"),"Not Found") ->  | AS6: =_xlfn.XLOOKUP($D6,INDIRECT("'"&$D6&"'!"&"$C$9"),INDIRECT("'"&$D6&"'!"&"$P$7"),"Not Found") ->  | AT6: =_xlfn.XLOOKUP($D6,INDIRECT("'"&$D6&"'!"&"$C$9"),INDIRECT("'"&$D6&"'!"&"$Q$7"),"Not Found") ->  | AU6: =_xlfn.XLOOKUP($D6,INDIRECT("'"&$D6&"'!"&"$C$9"),INDIRECT("'"&$D6&"'!"&"$K$8"),"Not Found") ->  | AV6: =_xlfn.XLOOKUP($D6,INDIRECT("'"&$D6&"'!"&"$C$9"),INDIRECT("'"&$D6&"'!"&"$N$8"),"Not Found") ->  | AW6: =_xlfn.XLOOKUP($D6,INDIRECT("'"&$D6&"'!"&"$C$9"),INDIRECT("'"&$D6&"'!"&"$O$8"),"Not Found") ->  | AX6: =_xlfn.XLOOKUP($D6,INDIRECT("'"&$D6&"'!"&"$C$9"),INDIRECT("'"&$D6&"'!"&"$P$8"),"Not Found") ->  | AY6: =_xlfn.XLOOKUP($D6,INDIRECT("'"&$D6&"'!"&"$C$9"),INDIRECT("'"&$D6&"'!"&"$Q$8"),"Not Found") ->  | AZ6: =_xlfn.XLOOKUP($D6,INDIRECT("'"&$D6&"'!"&"$C$9"),INDIRECT("'"&$D6&"'!"&"$K$9"),"Not Found") ->  | BA6: =_xlfn.XLOOKUP($D6,INDIRECT("'"&$D6&"'!"&"$C$9"),INDIRECT("'"&$D6&"'!"&"$N$9"),"Not Found") ->  | BB6: =_xlfn.XLOOKUP($D6,INDIRECT("'"&$D6&"'!"&"$C$9"),INDIRECT("'"&$D6&"'!"&"$O$9"),"Not Found") ->  | BC6: =_xlfn.XLOOKUP($D6,INDIRECT("'"&$D6&"'!"&"$C$9"),INDIRECT("'"&$D6&"'!"&"$P$9"),"Not Found") ->  | BD6: =_xlfn.XLOOKUP($D6,INDIRECT("'"&$D6&"'!"&"$C$9"),INDIRECT("'"&$D6&"'!"&"$Q$9"),"Not Found") ->  | BE6: =_xlfn.XLOOKUP($D6,INDIRECT("'"&$D6&"'!"&"$C$9"),INDIRECT("'"&$D6&"'!"&"$K$10"),"Not Found") ->  | BF6: =_xlfn.XLOOKUP($D6,INDIRECT("'"&$D6&"'!"&"$C$9"),INDIRECT("'"&$D6&"'!"&"$N$10"),"Not Found") ->  | BG6: =_xlfn.XLOOKUP($D6,INDIRECT("'"&$D6&"'!"&"$C$9"),INDIRECT("'"&$D6&"'!"&"$O$10"),"Not Found") ->  | BH6: =_xlfn.XLOOKUP($D6,INDIRECT("'"&$D6&"'!"&"$C$9"),INDIRECT("'"&$D6&"'!"&"$P$10"),"Not Found") ->  | BI6: =_xlfn.XLOOKUP($D6,INDIRECT("'"&$D6&"'!"&"$C$9"),INDIRECT("'"&$D6&"'!"&"$Q$10"),"Not Found") ->  | BJ6: =_xlfn.XLOOKUP($D6,INDIRECT("'"&$D6&"'!"&"$C$9"),INDIRECT("'"&$D6&"'!"&"$K$11"),"Not Found") ->  | BK6: =_xlfn.XLOOKUP($D6,INDIRECT("'"&$D6&"'!"&"$C$9"),INDIRECT("'"&$D6&"'!"&"$N$11"),"Not Found") ->  | BL6: =_xlfn.XLOOKUP($D6,INDIRECT("'"&$D6&"'!"&"$C$9"),INDIRECT("'"&$D6&"'!"&"$O$11"),"Not Found") ->  | BM6: =_xlfn.XLOOKUP($D6,INDIRECT("'"&$D6&"'!"&"$C$9"),INDIRECT("'"&$D6&"'!"&"$P$11"),"Not Found") ->  | BN6: =_xlfn.XLOOKUP($D6,INDIRECT("'"&$D6&"'!"&"$C$9"),INDIRECT("'"&$D6&"'!"&"$Q$11"),"Not Found") ->  | BO6: =_xlfn.XLOOKUP($D6,INDIRECT("'"&$D6&"'!"&"$C$9"),INDIRECT("'"&$D6&"'!"&"$K$2"),"Not Found") ->  | BP6: =_xlfn.XLOOKUP($D6,INDIRECT("'"&$D6&"'!"&"$C$9"),INDIRECT("'"&$D6&"'!"&"$L$2"),"Not Found") ->  | BQ6: =_xlfn.XLOOKUP($D6,INDIRECT("'"&$D6&"'!"&"$C$9"),INDIRECT("'"&$D6&"'!"&"$K$3"),"Not Found") ->  | BR6: =_xlfn.XLOOKUP($D6,INDIRECT("'"&$D6&"'!"&"$C$9"),INDIRECT("'"&$D6&"'!"&"$L$3"),"Not Found") ->  | BS6: =_xlfn.XLOOKUP($D6,INDIRECT("'"&$D6&"'!"&"$C$9"),INDIRECT("'"&$D6&"'!"&"$J$1"),"Not Found") ->  | BT6: =VLOOKUP($D6,'Financial Summary'!$A$7:$O$19,3,FALSE) -> Select One | BU6: =VLOOKUP($D6,'Financial Summary'!$A$7:$O$19,4,FALSE) -> Select One | BV6: =VLOOKUP($D6,'Financial Summary'!$A$7:$O$19,5,FALSE) -> 0 | BW6: =VLOOKUP($D6,'Financial Summary'!$A$7:$O$19,6,FALSE) -> 0 | BX6: =VLOOKUP($D6,'Financial Summary'!$A$7:$O$19,7,FALSE) -> 0 | BY6: =VLOOKUP($D6,'Financial Summary'!$A$7:$O$19,8,FALSE) -> 0 | BZ6: =VLOOKUP($D6,'Financial Summary'!$A$7:$O$19,9,FALSE) -> 0 | CA6: =VLOOKUP($D6,'Financial Summary'!$A$7:$O$19,10,FALSE) -> 0 | CB6: =VLOOKUP($D6,'Financial Summary'!$A$7:$O$19,11,FALSE) ->  | CC6: =VLOOKUP($D6,'Financial Summary'!$A$7:$O$19,12,FALSE) -> 0 | CD6: =VLOOKUP($D6,'Financial Summary'!$A$7:$O$19,13,FALSE) -> 0 | CE6: =VLOOKUP($D6,'Financial Summary'!$A$7:$O$19,14,FALSE) ->  | CF6: =VLOOKUP($D6,'Financial Summary'!$A$7:$P$19,15,FALSE) -> 0 | CG6: =VLOOKUP($D6,'Financial Summary'!$A$7:$P$19,16,FALSE) -> 0 | CH6: =VLOOKUP($D6,'Financial Summary'!$A$7:$Q$19,17,FALSE) ->  | CI6: =_xlfn.XLOOKUP($D6,'Executed & Recorded Loan Docs'!$A$5:$A$14,$B$5:$B$14,"",0) -> Alameda Affordable Housing Corporation | CJ6: =_xlfn.XLOOKUP($D6,INDIRECT("'"&$D6&"'!"&"$C$9"),INDIRECT("'"&$D6&"'!"&"$F$6"),"Not Found") ->  | CK6: =_xlfn.XLOOKUP($D6,INDIRECT("'"&$D6&"'!"&"$C$9"),INDIRECT("'"&$D6&"'!"&"_6._Additional_Comments"),"Not Found") -> 
A7: ='Narrative Summary'!$B$12 -> 23-LHTFCOM-18007 | B7: ='Narrative Summary'!$F$12 -> Alameda Affordable Housing Corporation | C7: ='Summary Sheet'!$D$9 -> 0 | D7: ='Financial Summary'!$A15 -> Project 6 | E7: =_xlfn.XLOOKUP($D7,INDIRECT("'"&$D7&"'!"&"$C$9"),INDIRECT("'"&$D7&"'!"&"$E$9"),"Not Found") ->  | F7: =_xlfn.XLOOKUP($D7,INDIRECT("'"&$D7&"'!"&"$C$9"),INDIRECT("'"&$D7&"'!"&"$C$10"),"Not Found") ->  | G7: =VLOOKUP($D7,'Financial Summary'!$A$7:$O$19,2,FALSE) -> Select One | H7: =_xlfn.XLOOKUP($D7,INDIRECT("'"&$D7&"'!"&"$C$9"),INDIRECT("'"&$D7&"'!"&"$C$11"),"Not Found") ->  | I7: =_xlfn.XLOOKUP($D7,INDIRECT("'"&$D7&"'!"&"$C$9"),INDIRECT("'"&$D7&"'!"&"$E$11"),"Not Found") ->  | J7: =_xlfn.XLOOKUP($D7,INDIRECT("'"&$D7&"'!"&"$C$9"),INDIRECT("'"&$D7&"'!"&"$C$12"),"Not Found") ->  | K7: =_xlfn.XLOOKUP($D7,INDIRECT("'"&$D7&"'!"&"$C$9"),INDIRECT("'"&$D7&"'!"&"$E$12"),"Not Found") ->  | L7: =_xlfn.XLOOKUP($D7,INDIRECT("'"&$D7&"'!"&"$C$9"),INDIRECT("'"&$D7&"'!"&"$C$13"),"Not Found") ->  | M7: =_xlfn.XLOOKUP($D7,INDIRECT("'"&$D7&"'!"&"$C$9"),INDIRECT("'"&$D7&"'!"&"$E$13"),"Not Found") ->  | N7: =_xlfn.XLOOKUP($D7,INDIRECT("'"&$D7&"'!"&"$C$9"),INDIRECT("'"&$D7&"'!"&"$L$12"),"Not Found") ->  | O7: =_xlfn.XLOOKUP($D7,INDIRECT("'"&$D7&"'!"&"$C$9"),INDIRECT("'"&$D7&"'!"&"$M$12"),"Not Found") ->  | P7: =_xlfn.XLOOKUP($D7,INDIRECT("'"&$D7&"'!"&"$C$9"),INDIRECT("'"&$D7&"'!"&"$K$12"),"Not Found") ->  | Q7: =_xlfn.XLOOKUP($D7,INDIRECT("'"&$D7&"'!"&"$C$9"),INDIRECT("'"&$D7&"'!"&"$K$13"),"Not Found") ->  | R7: =_xlfn.XLOOKUP($D7,INDIRECT("'"&$D7&"'!"&"$C$9"),INDIRECT("'"&$D7&"'!"&"$L$13"),"Not Found") ->  | S7: =_xlfn.XLOOKUP($D7,INDIRECT("'"&$D7&"'!"&"$C$9"),INDIRECT("'"&$D7&"'!"&"$M$13"),"Not Found") ->  | T7: =_xlfn.XLOOKUP($D7,INDIRECT("'"&$D7&"'!"&"$C$9"),INDIRECT("'"&$D7&"'!"&"$K$14"),"Not Found") ->  | U7: =_xlfn.XLOOKUP($D7,INDIRECT("'"&$D7&"'!"&"$C$9"),INDIRECT("'"&$D7&"'!"&"$L$14"),"Not Found") ->  | V7: =_xlfn.XLOOKUP($D7,INDIRECT("'"&$D7&"'!"&"$C$9"),INDIRECT("'"&$D7&"'!"&"$M$14"),"Not Found") ->  | W7: =_xlfn.XLOOKUP($D7,INDIRECT("'"&$D7&"'!"&"$C$9"),INDIRECT("'"&$D7&"'!"&"$K$15"),"Not Found") ->  | X7: =_xlfn.XLOOKUP($D7,INDIRECT("'"&$D7&"'!"&"$C$9"),INDIRECT("'"&$D7&"'!"&"$L$15"),"Not Found") ->  | Y7: =_xlfn.XLOOKUP($D7,INDIRECT("'"&$D7&"'!"&"$C$9"),INDIRECT("'"&$D7&"'!"&"$M$15"),"Not Found") ->  | Z7: =_xlfn.XLOOKUP($D7,INDIRECT("'"&$D7&"'!"&"$C$9"),INDIRECT("'"&$D7&"'!"&"$K$16"),"Not Found") ->  | AA7: =_xlfn.XLOOKUP($D7,INDIRECT("'"&$D7&"'!"&"$C$9"),INDIRECT("'"&$D7&"'!"&"$L$16"),"Not Found") ->  | AB7: =_xlfn.XLOOKUP($D7,INDIRECT("'"&$D7&"'!"&"$C$9"),INDIRECT("'"&$D7&"'!"&"$M$16"),"Not Found") ->  | AC7: =_xlfn.XLOOKUP($D7,INDIRECT("'"&$D7&"'!"&"$C$9"),INDIRECT("'"&$D7&"'!"&"$K$17"),"Not Found") ->  | AD7: =_xlfn.XLOOKUP($D7,INDIRECT("'"&$D7&"'!"&"$C$9"),INDIRECT("'"&$D7&"'!"&"$L$17"),"Not Found") ->  | AE7: =_xlfn.XLOOKUP($D7,INDIRECT("'"&$D7&"'!"&"$C$9"),INDIRECT("'"&$D7&"'!"&"$M$17"),"Not Found") ->  | AF7: =_xlfn.XLOOKUP($D7,INDIRECT("'"&$D7&"'!"&"$C$9"),INDIRECT("'"&$D7&"'!"&"$K$5"),"Not Found") ->  | AG7: =_xlfn.XLOOKUP($D7,INDIRECT("'"&$D7&"'!"&"$C$9"),INDIRECT("'"&$D7&"'!"&"$N$5"),"Not Found") ->  | AH7: =_xlfn.XLOOKUP($D7,INDIRECT("'"&$D7&"'!"&"$C$9"),INDIRECT("'"&$D7&"'!"&"$O$5"),"Not Found") ->  | AI7: =_xlfn.XLOOKUP($D7,INDIRECT("'"&$D7&"'!"&"$C$9"),INDIRECT("'"&$D7&"'!"&"$P$5"),"Not Found") ->  | AJ7: =_xlfn.XLOOKUP($D7,INDIRECT("'"&$D7&"'!"&"$C$9"),INDIRECT("'"&$D7&"'!"&"$Q$5"),"Not Found") ->  | AK7: =_xlfn.XLOOKUP($D7,INDIRECT("'"&$D7&"'!"&"$C$9"),INDIRECT("'"&$D7&"'!"&"$K$6"),"Not Found") ->  | AL7: =_xlfn.XLOOKUP($D7,INDIRECT("'"&$D7&"'!"&"$C$9"),INDIRECT("'"&$D7&"'!"&"$N$6"),"Not Found") ->  | AM7: =_xlfn.XLOOKUP($D7,INDIRECT("'"&$D7&"'!"&"$C$9"),INDIRECT("'"&$D7&"'!"&"$O$6"),"Not Found") ->  | AN7: =_xlfn.XLOOKUP($D7,INDIRECT("'"&$D7&"'!"&"$C$9"),INDIRECT("'"&$D7&"'!"&"$P$6"),"Not Found") ->  | AO7: =_xlfn.XLOOKUP($D7,INDIRECT("'"&$D7&"'!"&"$C$9"),INDIRECT("'"&$D7&"'!"&"$Q$6"),"Not Found") ->  | AP7: =_xlfn.XLOOKUP($D7,INDIRECT("'"&$D7&"'!"&"$C$9"),INDIRECT("'"&$D7&"'!"&"$K$7"),"Not Found") ->  | AQ7: =_xlfn.XLOOKUP($D7,INDIRECT("'"&$D7&"'!"&"$C$9"),INDIRECT("'"&$D7&"'!"&"$N$7"),"Not Found") ->  | AR7: =_xlfn.XLOOKUP($D7,INDIRECT("'"&$D7&"'!"&"$C$9"),INDIRECT("'"&$D7&"'!"&"$O$7"),"Not Found") ->  | AS7: =_xlfn.XLOOKUP($D7,INDIRECT("'"&$D7&"'!"&"$C$9"),INDIRECT("'"&$D7&"'!"&"$P$7"),"Not Found") ->  | AT7: =_xlfn.XLOOKUP($D7,INDIRECT("'"&$D7&"'!"&"$C$9"),INDIRECT("'"&$D7&"'!"&"$Q$7"),"Not Found") ->  | AU7: =_xlfn.XLOOKUP($D7,INDIRECT("'"&$D7&"'!"&"$C$9"),INDIRECT("'"&$D7&"'!"&"$K$8"),"Not Found") ->  | AV7: =_xlfn.XLOOKUP($D7,INDIRECT("'"&$D7&"'!"&"$C$9"),INDIRECT("'"&$D7&"'!"&"$N$8"),"Not Found") ->  | AW7: =_xlfn.XLOOKUP($D7,INDIRECT("'"&$D7&"'!"&"$C$9"),INDIRECT("'"&$D7&"'!"&"$O$8"),"Not Found") ->  | AX7: =_xlfn.XLOOKUP($D7,INDIRECT("'"&$D7&"'!"&"$C$9"),INDIRECT("'"&$D7&"'!"&"$P$8"),"Not Found") ->  | AY7: =_xlfn.XLOOKUP($D7,INDIRECT("'"&$D7&"'!"&"$C$9"),INDIRECT("'"&$D7&"'!"&"$Q$8"),"Not Found") ->  | AZ7: =_xlfn.XLOOKUP($D7,INDIRECT("'"&$D7&"'!"&"$C$9"),INDIRECT("'"&$D7&"'!"&"$K$9"),"Not Found") ->  | BA7: =_xlfn.XLOOKUP($D7,INDIRECT("'"&$D7&"'!"&"$C$9"),INDIRECT("'"&$D7&"'!"&"$N$9"),"Not Found") ->  | BB7: =_xlfn.XLOOKUP($D7,INDIRECT("'"&$D7&"'!"&"$C$9"),INDIRECT("'"&$D7&"'!"&"$O$9"),"Not Found") ->  | BC7: =_xlfn.XLOOKUP($D7,INDIRECT("'"&$D7&"'!"&"$C$9"),INDIRECT("'"&$D7&"'!"&"$P$9"),"Not Found") ->  | BD7: =_xlfn.XLOOKUP($D7,INDIRECT("'"&$D7&"'!"&"$C$9"),INDIRECT("'"&$D7&"'!"&"$Q$9"),"Not Found") ->  | BE7: =_xlfn.XLOOKUP($D7,INDIRECT("'"&$D7&"'!"&"$C$9"),INDIRECT("'"&$D7&"'!"&"$K$10"),"Not Found") ->  | BF7: =_xlfn.XLOOKUP($D7,INDIRECT("'"&$D7&"'!"&"$C$9"),INDIRECT("'"&$D7&"'!"&"$N$10"),"Not Found") ->  | BG7: =_xlfn.XLOOKUP($D7,INDIRECT("'"&$D7&"'!"&"$C$9"),INDIRECT("'"&$D7&"'!"&"$O$10"),"Not Found") ->  | BH7: =_xlfn.XLOOKUP($D7,INDIRECT("'"&$D7&"'!"&"$C$9"),INDIRECT("'"&$D7&"'!"&"$P$10"),"Not Found") ->  | BI7: =_xlfn.XLOOKUP($D7,INDIRECT("'"&$D7&"'!"&"$C$9"),INDIRECT("'"&$D7&"'!"&"$Q$10"),"Not Found") ->  | BJ7: =_xlfn.XLOOKUP($D7,INDIRECT("'"&$D7&"'!"&"$C$9"),INDIRECT("'"&$D7&"'!"&"$K$11"),"Not Found") ->  | BK7: =_xlfn.XLOOKUP($D7,INDIRECT("'"&$D7&"'!"&"$C$9"),INDIRECT("'"&$D7&"'!"&"$N$11"),"Not Found") ->  | BL7: =_xlfn.XLOOKUP($D7,INDIRECT("'"&$D7&"'!"&"$C$9"),INDIRECT("'"&$D7&"'!"&"$O$11"),"Not Found") ->  | BM7: =_xlfn.XLOOKUP($D7,INDIRECT("'"&$D7&"'!"&"$C$9"),INDIRECT("'"&$D7&"'!"&"$P$11"),"Not Found") ->  | BN7: =_xlfn.XLOOKUP($D7,INDIRECT("'"&$D7&"'!"&"$C$9"),INDIRECT("'"&$D7&"'!"&"$Q$11"),"Not Found") ->  | BO7: =_xlfn.XLOOKUP($D7,INDIRECT("'"&$D7&"'!"&"$C$9"),INDIRECT("'"&$D7&"'!"&"$K$2"),"Not Found") ->  | BP7: =_xlfn.XLOOKUP($D7,INDIRECT("'"&$D7&"'!"&"$C$9"),INDIRECT("'"&$D7&"'!"&"$L$2"),"Not Found") ->  | BQ7: =_xlfn.XLOOKUP($D7,INDIRECT("'"&$D7&"'!"&"$C$9"),INDIRECT("'"&$D7&"'!"&"$K$3"),"Not Found") ->  | BR7: =_xlfn.XLOOKUP($D7,INDIRECT("'"&$D7&"'!"&"$C$9"),INDIRECT("'"&$D7&"'!"&"$L$3"),"Not Found") ->  | BS7: =_xlfn.XLOOKUP($D7,INDIRECT("'"&$D7&"'!"&"$C$9"),INDIRECT("'"&$D7&"'!"&"$J$1"),"Not Found") ->  | BT7: =VLOOKUP($D7,'Financial Summary'!$A$7:$O$19,3,FALSE) -> Select One | BU7: =VLOOKUP($D7,'Financial Summary'!$A$7:$O$19,4,FALSE) -> Select One | BV7: =VLOOKUP($D7,'Financial Summary'!$A$7:$O$19,5,FALSE) -> 0 | BW7: =VLOOKUP($D7,'Financial Summary'!$A$7:$O$19,6,FALSE) -> 0 | BX7: =VLOOKUP($D7,'Financial Summary'!$A$7:$O$19,7,FALSE) -> 0 | BY7: =VLOOKUP($D7,'Financial Summary'!$A$7:$O$19,8,FALSE) -> 0 | BZ7: =VLOOKUP($D7,'Financial Summary'!$A$7:$O$19,9,FALSE) -> 0 | CA7: =VLOOKUP($D7,'Financial Summary'!$A$7:$O$19,10,FALSE) -> 0 | CB7: =VLOOKUP($D7,'Financial Summary'!$A$7:$O$19,11,FALSE) ->  | CC7: =VLOOKUP($D7,'Financial Summary'!$A$7:$O$19,12,FALSE) -> 0 | CD7: =VLOOKUP($D7,'Financial Summary'!$A$7:$O$19,13,FALSE) -> 0 | CE7: =VLOOKUP($D7,'Financial Summary'!$A$7:$O$19,14,FALSE) ->  | CF7: =VLOOKUP($D7,'Financial Summary'!$A$7:$P$19,15,FALSE) -> 0 | CG7: =VLOOKUP($D7,'Financial Summary'!$A$7:$P$19,16,FALSE) -> 0 | CH7: =VLOOKUP($D7,'Financial Summary'!$A$7:$Q$19,17,FALSE) ->  | CI7: =_xlfn.XLOOKUP($D7,'Executed & Recorded Loan Docs'!$A$5:$A$14,$B$5:$B$14,"",0) -> Alameda Affordable Housing Corporation | CJ7: =_xlfn.XLOOKUP($D7,INDIRECT("'"&$D7&"'!"&"$C$9"),INDIRECT("'"&$D7&"'!"&"$F$6"),"Not Found") ->  | CK7: =_xlfn.XLOOKUP($D7,INDIRECT("'"&$D7&"'!"&"$C$9"),INDIRECT("'"&$D7&"'!"&"_6._Additional_Comments"),"Not Found") -> 
A8: ='Narrative Summary'!$B$12 -> 23-LHTFCOM-18007 | B8: ='Narrative Summary'!$F$12 -> Alameda Affordable Housing Corporation | C8: ='Summary Sheet'!$D$9 -> 0 | D8: ='Financial Summary'!$A16 -> Project 7 | E8: =_xlfn.XLOOKUP($D8,INDIRECT("'"&$D8&"'!"&"$C$9"),INDIRECT("'"&$D8&"'!"&"$E$9"),"Not Found") ->  | F8: =_xlfn.XLOOKUP($D8,INDIRECT("'"&$D8&"'!"&"$C$9"),INDIRECT("'"&$D8&"'!"&"$C$10"),"Not Found") ->  | G8: =VLOOKUP($D8,'Financial Summary'!$A$7:$O$19,2,FALSE) -> Select One | H8: =_xlfn.XLOOKUP($D8,INDIRECT("'"&$D8&"'!"&"$C$9"),INDIRECT("'"&$D8&"'!"&"$C$11"),"Not Found") ->  | I8: =_xlfn.XLOOKUP($D8,INDIRECT("'"&$D8&"'!"&"$C$9"),INDIRECT("'"&$D8&"'!"&"$E$11"),"Not Found") ->  | J8: =_xlfn.XLOOKUP($D8,INDIRECT("'"&$D8&"'!"&"$C$9"),INDIRECT("'"&$D8&"'!"&"$C$12"),"Not Found") ->  | K8: =_xlfn.XLOOKUP($D8,INDIRECT("'"&$D8&"'!"&"$C$9"),INDIRECT("'"&$D8&"'!"&"$E$12"),"Not Found") ->  | L8: =_xlfn.XLOOKUP($D8,INDIRECT("'"&$D8&"'!"&"$C$9"),INDIRECT("'"&$D8&"'!"&"$C$13"),"Not Found") ->  | M8: =_xlfn.XLOOKUP($D8,INDIRECT("'"&$D8&"'!"&"$C$9"),INDIRECT("'"&$D8&"'!"&"$E$13"),"Not Found") ->  | N8: =_xlfn.XLOOKUP($D8,INDIRECT("'"&$D8&"'!"&"$C$9"),INDIRECT("'"&$D8&"'!"&"$L$12"),"Not Found") ->  | O8: =_xlfn.XLOOKUP($D8,INDIRECT("'"&$D8&"'!"&"$C$9"),INDIRECT("'"&$D8&"'!"&"$M$12"),"Not Found") ->  | P8: =_xlfn.XLOOKUP($D8,INDIRECT("'"&$D8&"'!"&"$C$9"),INDIRECT("'"&$D8&"'!"&"$K$12"),"Not Found") ->  | Q8: =_xlfn.XLOOKUP($D8,INDIRECT("'"&$D8&"'!"&"$C$9"),INDIRECT("'"&$D8&"'!"&"$K$13"),"Not Found") ->  | R8: =_xlfn.XLOOKUP($D8,INDIRECT("'"&$D8&"'!"&"$C$9"),INDIRECT("'"&$D8&"'!"&"$L$13"),"Not Found") ->  | S8: =_xlfn.XLOOKUP($D8,INDIRECT("'"&$D8&"'!"&"$C$9"),INDIRECT("'"&$D8&"'!"&"$M$13"),"Not Found") ->  | T8: =_xlfn.XLOOKUP($D8,INDIRECT("'"&$D8&"'!"&"$C$9"),INDIRECT("'"&$D8&"'!"&"$K$14"),"Not Found") ->  | U8: =_xlfn.XLOOKUP($D8,INDIRECT("'"&$D8&"'!"&"$C$9"),INDIRECT("'"&$D8&"'!"&"$L$14"),"Not Found") ->  | V8: =_xlfn.XLOOKUP($D8,INDIRECT("'"&$D8&"'!"&"$C$9"),INDIRECT("'"&$D8&"'!"&"$M$14"),"Not Found") ->  | W8: =_xlfn.XLOOKUP($D8,INDIRECT("'"&$D8&"'!"&"$C$9"),INDIRECT("'"&$D8&"'!"&"$K$15"),"Not Found") ->  | X8: =_xlfn.XLOOKUP($D8,INDIRECT("'"&$D8&"'!"&"$C$9"),INDIRECT("'"&$D8&"'!"&"$L$15"),"Not Found") ->  | Y8: =_xlfn.XLOOKUP($D8,INDIRECT("'"&$D8&"'!"&"$C$9"),INDIRECT("'"&$D8&"'!"&"$M$15"),"Not Found") ->  | Z8: =_xlfn.XLOOKUP($D8,INDIRECT("'"&$D8&"'!"&"$C$9"),INDIRECT("'"&$D8&"'!"&"$K$16"),"Not Found") ->  | AA8: =_xlfn.XLOOKUP($D8,INDIRECT("'"&$D8&"'!"&"$C$9"),INDIRECT("'"&$D8&"'!"&"$L$16"),"Not Found") ->  | AB8: =_xlfn.XLOOKUP($D8,INDIRECT("'"&$D8&"'!"&"$C$9"),INDIRECT("'"&$D8&"'!"&"$M$16"),"Not Found") ->  | AC8: =_xlfn.XLOOKUP($D8,INDIRECT("'"&$D8&"'!"&"$C$9"),INDIRECT("'"&$D8&"'!"&"$K$17"),"Not Found") ->  | AD8: =_xlfn.XLOOKUP($D8,INDIRECT("'"&$D8&"'!"&"$C$9"),INDIRECT("'"&$D8&"'!"&"$L$17"),"Not Found") ->  | AE8: =_xlfn.XLOOKUP($D8,INDIRECT("'"&$D8&"'!"&"$C$9"),INDIRECT("'"&$D8&"'!"&"$M$17"),"Not Found") ->  | AF8: =_xlfn.XLOOKUP($D8,INDIRECT("'"&$D8&"'!"&"$C$9"),INDIRECT("'"&$D8&"'!"&"$K$5"),"Not Found") ->  | AG8: =_xlfn.XLOOKUP($D8,INDIRECT("'"&$D8&"'!"&"$C$9"),INDIRECT("'"&$D8&"'!"&"$N$5"),"Not Found") ->  | AH8: =_xlfn.XLOOKUP($D8,INDIRECT("'"&$D8&"'!"&"$C$9"),INDIRECT("'"&$D8&"'!"&"$O$5"),"Not Found") ->  | AI8: =_xlfn.XLOOKUP($D8,INDIRECT("'"&$D8&"'!"&"$C$9"),INDIRECT("'"&$D8&"'!"&"$P$5"),"Not Found") ->  | AJ8: =_xlfn.XLOOKUP($D8,INDIRECT("'"&$D8&"'!"&"$C$9"),INDIRECT("'"&$D8&"'!"&"$Q$5"),"Not Found") ->  | AK8: =_xlfn.XLOOKUP($D8,INDIRECT("'"&$D8&"'!"&"$C$9"),INDIRECT("'"&$D8&"'!"&"$K$6"),"Not Found") ->  | AL8: =_xlfn.XLOOKUP($D8,INDIRECT("'"&$D8&"'!"&"$C$9"),INDIRECT("'"&$D8&"'!"&"$N$6"),"Not Found") ->  | AM8: =_xlfn.XLOOKUP($D8,INDIRECT("'"&$D8&"'!"&"$C$9"),INDIRECT("'"&$D8&"'!"&"$O$6"),"Not Found") ->  | AN8: =_xlfn.XLOOKUP($D8,INDIRECT("'"&$D8&"'!"&"$C$9"),INDIRECT("'"&$D8&"'!"&"$P$6"),"Not Found") ->  | AO8: =_xlfn.XLOOKUP($D8,INDIRECT("'"&$D8&"'!"&"$C$9"),INDIRECT("'"&$D8&"'!"&"$Q$6"),"Not Found") ->  | AP8: =_xlfn.XLOOKUP($D8,INDIRECT("'"&$D8&"'!"&"$C$9"),INDIRECT("'"&$D8&"'!"&"$K$7"),"Not Found") ->  | AQ8: =_xlfn.XLOOKUP($D8,INDIRECT("'"&$D8&"'!"&"$C$9"),INDIRECT("'"&$D8&"'!"&"$N$7"),"Not Found") ->  | AR8: =_xlfn.XLOOKUP($D8,INDIRECT("'"&$D8&"'!"&"$C$9"),INDIRECT("'"&$D8&"'!"&"$O$7"),"Not Found") ->  | AS8: =_xlfn.XLOOKUP($D8,INDIRECT("'"&$D8&"'!"&"$C$9"),INDIRECT("'"&$D8&"'!"&"$P$7"),"Not Found") ->  | AT8: =_xlfn.XLOOKUP($D8,INDIRECT("'"&$D8&"'!"&"$C$9"),INDIRECT("'"&$D8&"'!"&"$Q$7"),"Not Found") ->  | AU8: =_xlfn.XLOOKUP($D8,INDIRECT("'"&$D8&"'!"&"$C$9"),INDIRECT("'"&$D8&"'!"&"$K$8"),"Not Found") ->  | AV8: =_xlfn.XLOOKUP($D8,INDIRECT("'"&$D8&"'!"&"$C$9"),INDIRECT("'"&$D8&"'!"&"$N$8"),"Not Found") ->  | AW8: =_xlfn.XLOOKUP($D8,INDIRECT("'"&$D8&"'!"&"$C$9"),INDIRECT("'"&$D8&"'!"&"$O$8"),"Not Found") ->  | AX8: =_xlfn.XLOOKUP($D8,INDIRECT("'"&$D8&"'!"&"$C$9"),INDIRECT("'"&$D8&"'!"&"$P$8"),"Not Found") ->  | AY8: =_xlfn.XLOOKUP($D8,INDIRECT("'"&$D8&"'!"&"$C$9"),INDIRECT("'"&$D8&"'!"&"$Q$8"),"Not Found") ->  | AZ8: =_xlfn.XLOOKUP($D8,INDIRECT("'"&$D8&"'!"&"$C$9"),INDIRECT("'"&$D8&"'!"&"$K$9"),"Not Found") ->  | BA8: =_xlfn.XLOOKUP($D8,INDIRECT("'"&$D8&"'!"&"$C$9"),INDIRECT("'"&$D8&"'!"&"$N$9"),"Not Found") ->  | BB8: =_xlfn.XLOOKUP($D8,INDIRECT("'"&$D8&"'!"&"$C$9"),INDIRECT("'"&$D8&"'!"&"$O$9"),"Not Found") ->  | BC8: =_xlfn.XLOOKUP($D8,INDIRECT("'"&$D8&"'!"&"$C$9"),INDIRECT("'"&$D8&"'!"&"$P$9"),"Not Found") ->  | BD8: =_xlfn.XLOOKUP($D8,INDIRECT("'"&$D8&"'!"&"$C$9"),INDIRECT("'"&$D8&"'!"&"$Q$9"),"Not Found") ->  | BE8: =_xlfn.XLOOKUP($D8,INDIRECT("'"&$D8&"'!"&"$C$9"),INDIRECT("'"&$D8&"'!"&"$K$10"),"Not Found") ->  | BF8: =_xlfn.XLOOKUP($D8,INDIRECT("'"&$D8&"'!"&"$C$9"),INDIRECT("'"&$D8&"'!"&"$N$10"),"Not Found") ->  | BG8: =_xlfn.XLOOKUP($D8,INDIRECT("'"&$D8&"'!"&"$C$9"),INDIRECT("'"&$D8&"'!"&"$O$10"),"Not Found") ->  | BH8: =_xlfn.XLOOKUP($D8,INDIRECT("'"&$D8&"'!"&"$C$9"),INDIRECT("'"&$D8&"'!"&"$P$10"),"Not Found") ->  | BI8: =_xlfn.XLOOKUP($D8,INDIRECT("'"&$D8&"'!"&"$C$9"),INDIRECT("'"&$D8&"'!"&"$Q$10"),"Not Found") ->  | BJ8: =_xlfn.XLOOKUP($D8,INDIRECT("'"&$D8&"'!"&"$C$9"),INDIRECT("'"&$D8&"'!"&"$K$11"),"Not Found") ->  | BK8: =_xlfn.XLOOKUP($D8,INDIRECT("'"&$D8&"'!"&"$C$9"),INDIRECT("'"&$D8&"'!"&"$N$11"),"Not Found") ->  | BL8: =_xlfn.XLOOKUP($D8,INDIRECT("'"&$D8&"'!"&"$C$9"),INDIRECT("'"&$D8&"'!"&"$O$11"),"Not Found") ->  | BM8: =_xlfn.XLOOKUP($D8,INDIRECT("'"&$D8&"'!"&"$C$9"),INDIRECT("'"&$D8&"'!"&"$P$11"),"Not Found") ->  | BN8: =_xlfn.XLOOKUP($D8,INDIRECT("'"&$D8&"'!"&"$C$9"),INDIRECT("'"&$D8&"'!"&"$Q$11"),"Not Found") ->  | BO8: =_xlfn.XLOOKUP($D8,INDIRECT("'"&$D8&"'!"&"$C$9"),INDIRECT("'"&$D8&"'!"&"$K$2"),"Not Found") ->  | BP8: =_xlfn.XLOOKUP($D8,INDIRECT("'"&$D8&"'!"&"$C$9"),INDIRECT("'"&$D8&"'!"&"$L$2"),"Not Found") ->  | BQ8: =_xlfn.XLOOKUP($D8,INDIRECT("'"&$D8&"'!"&"$C$9"),INDIRECT("'"&$D8&"'!"&"$K$3"),"Not Found") ->  | BR8: =_xlfn.XLOOKUP($D8,INDIRECT("'"&$D8&"'!"&"$C$9"),INDIRECT("'"&$D8&"'!"&"$L$3"),"Not Found") ->  | BS8: =_xlfn.XLOOKUP($D8,INDIRECT("'"&$D8&"'!"&"$C$9"),INDIRECT("'"&$D8&"'!"&"$J$1"),"Not Found") ->  | BT8: =VLOOKUP($D8,'Financial Summary'!$A$7:$O$19,3,FALSE) -> Select One | BU8: =VLOOKUP($D8,'Financial Summary'!$A$7:$O$19,4,FALSE) -> Select One | BV8: =VLOOKUP($D8,'Financial Summary'!$A$7:$O$19,5,FALSE) -> 0 | BW8: =VLOOKUP($D8,'Financial Summary'!$A$7:$O$19,6,FALSE) -> 0 | BX8: =VLOOKUP($D8,'Financial Summary'!$A$7:$O$19,7,FALSE) -> 0 | BY8: =VLOOKUP($D8,'Financial Summary'!$A$7:$O$19,8,FALSE) -> 0 | BZ8: =VLOOKUP($D8,'Financial Summary'!$A$7:$O$19,9,FALSE) -> 0 | CA8: =VLOOKUP($D8,'Financial Summary'!$A$7:$O$19,10,FALSE) -> 0 | CB8: =VLOOKUP($D8,'Financial Summary'!$A$7:$O$19,11,FALSE) ->  | CC8: =VLOOKUP($D8,'Financial Summary'!$A$7:$O$19,12,FALSE) -> 0 | CD8: =VLOOKUP($D8,'Financial Summary'!$A$7:$O$19,13,FALSE) -> 0 | CE8: =VLOOKUP($D8,'Financial Summary'!$A$7:$O$19,14,FALSE) ->  | CF8: =VLOOKUP($D8,'Financial Summary'!$A$7:$P$19,15,FALSE) -> 0 | CG8: =VLOOKUP($D8,'Financial Summary'!$A$7:$P$19,16,FALSE) -> 0 | CH8: =VLOOKUP($D8,'Financial Summary'!$A$7:$Q$19,17,FALSE) ->  | CI8: =_xlfn.XLOOKUP($D8,'Executed & Recorded Loan Docs'!$A$5:$A$14,$B$5:$B$14,"",0) -> Alameda Affordable Housing Corporation | CJ8: =_xlfn.XLOOKUP($D8,INDIRECT("'"&$D8&"'!"&"$C$9"),INDIRECT("'"&$D8&"'!"&"$F$6"),"Not Found") ->  | CK8: =_xlfn.XLOOKUP($D8,INDIRECT("'"&$D8&"'!"&"$C$9"),INDIRECT("'"&$D8&"'!"&"_6._Additional_Comments"),"Not Found") -> 
A9: ='Narrative Summary'!$B$12 -> 23-LHTFCOM-18007 | B9: ='Narrative Summary'!$F$12 -> Alameda Affordable Housing Corporation | C9: ='Summary Sheet'!$D$9 -> 0 | D9: ='Financial Summary'!$A17 -> Project 8 | E9: =_xlfn.XLOOKUP($D9,INDIRECT("'"&$D9&"'!"&"$C$9"),INDIRECT("'"&$D9&"'!"&"$E$9"),"Not Found") ->  | F9: =_xlfn.XLOOKUP($D9,INDIRECT("'"&$D9&"'!"&"$C$9"),INDIRECT("'"&$D9&"'!"&"$C$10"),"Not Found") ->  | G9: =VLOOKUP($D9,'Financial Summary'!$A$7:$O$19,2,FALSE) -> Select One | H9: =_xlfn.XLOOKUP($D9,INDIRECT("'"&$D9&"'!"&"$C$9"),INDIRECT("'"&$D9&"'!"&"$C$11"),"Not Found") ->  | I9: =_xlfn.XLOOKUP($D9,INDIRECT("'"&$D9&"'!"&"$C$9"),INDIRECT("'"&$D9&"'!"&"$E$11"),"Not Found") ->  | J9: =_xlfn.XLOOKUP($D9,INDIRECT("'"&$D9&"'!"&"$C$9"),INDIRECT("'"&$D9&"'!"&"$C$12"),"Not Found") ->  | K9: =_xlfn.XLOOKUP($D9,INDIRECT("'"&$D9&"'!"&"$C$9"),INDIRECT("'"&$D9&"'!"&"$E$12"),"Not Found") ->  | L9: =_xlfn.XLOOKUP($D9,INDIRECT("'"&$D9&"'!"&"$C$9"),INDIRECT("'"&$D9&"'!"&"$C$13"),"Not Found") ->  | M9: =_xlfn.XLOOKUP($D9,INDIRECT("'"&$D9&"'!"&"$C$9"),INDIRECT("'"&$D9&"'!"&"$E$13"),"Not Found") ->  | N9: =_xlfn.XLOOKUP($D9,INDIRECT("'"&$D9&"'!"&"$C$9"),INDIRECT("'"&$D9&"'!"&"$L$12"),"Not Found") ->  | O9: =_xlfn.XLOOKUP($D9,INDIRECT("'"&$D9&"'!"&"$C$9"),INDIRECT("'"&$D9&"'!"&"$M$12"),"Not Found") ->  | P9: =_xlfn.XLOOKUP($D9,INDIRECT("'"&$D9&"'!"&"$C$9"),INDIRECT("'"&$D9&"'!"&"$K$12"),"Not Found") ->  | Q9: =_xlfn.XLOOKUP($D9,INDIRECT("'"&$D9&"'!"&"$C$9"),INDIRECT("'"&$D9&"'!"&"$K$13"),"Not Found") ->  | R9: =_xlfn.XLOOKUP($D9,INDIRECT("'"&$D9&"'!"&"$C$9"),INDIRECT("'"&$D9&"'!"&"$L$13"),"Not Found") ->  | S9: =_xlfn.XLOOKUP($D9,INDIRECT("'"&$D9&"'!"&"$C$9"),INDIRECT("'"&$D9&"'!"&"$M$13"),"Not Found") ->  | T9: =_xlfn.XLOOKUP($D9,INDIRECT("'"&$D9&"'!"&"$C$9"),INDIRECT("'"&$D9&"'!"&"$K$14"),"Not Found") ->  | U9: =_xlfn.XLOOKUP($D9,INDIRECT("'"&$D9&"'!"&"$C$9"),INDIRECT("'"&$D9&"'!"&"$L$14"),"Not Found") ->  | V9: =_xlfn.XLOOKUP($D9,INDIRECT("'"&$D9&"'!"&"$C$9"),INDIRECT("'"&$D9&"'!"&"$M$14"),"Not Found") ->  | W9: =_xlfn.XLOOKUP($D9,INDIRECT("'"&$D9&"'!"&"$C$9"),INDIRECT("'"&$D9&"'!"&"$K$15"),"Not Found") ->  | X9: =_xlfn.XLOOKUP($D9,INDIRECT("'"&$D9&"'!"&"$C$9"),INDIRECT("'"&$D9&"'!"&"$L$15"),"Not Found") ->  | Y9: =_xlfn.XLOOKUP($D9,INDIRECT("'"&$D9&"'!"&"$C$9"),INDIRECT("'"&$D9&"'!"&"$M$15"),"Not Found") ->  | Z9: =_xlfn.XLOOKUP($D9,INDIRECT("'"&$D9&"'!"&"$C$9"),INDIRECT("'"&$D9&"'!"&"$K$16"),"Not Found") ->  | AA9: =_xlfn.XLOOKUP($D9,INDIRECT("'"&$D9&"'!"&"$C$9"),INDIRECT("'"&$D9&"'!"&"$L$16"),"Not Found") ->  | AB9: =_xlfn.XLOOKUP($D9,INDIRECT("'"&$D9&"'!"&"$C$9"),INDIRECT("'"&$D9&"'!"&"$M$16"),"Not Found") ->  | AC9: =_xlfn.XLOOKUP($D9,INDIRECT("'"&$D9&"'!"&"$C$9"),INDIRECT("'"&$D9&"'!"&"$K$17"),"Not Found") ->  | AD9: =_xlfn.XLOOKUP($D9,INDIRECT("'"&$D9&"'!"&"$C$9"),INDIRECT("'"&$D9&"'!"&"$L$17"),"Not Found") ->  | AE9: =_xlfn.XLOOKUP($D9,INDIRECT("'"&$D9&"'!"&"$C$9"),INDIRECT("'"&$D9&"'!"&"$M$17"),"Not Found") ->  | AF9: =_xlfn.XLOOKUP($D9,INDIRECT("'"&$D9&"'!"&"$C$9"),INDIRECT("'"&$D9&"'!"&"$K$5"),"Not Found") ->  | AG9: =_xlfn.XLOOKUP($D9,INDIRECT("'"&$D9&"'!"&"$C$9"),INDIRECT("'"&$D9&"'!"&"$N$5"),"Not Found") ->  | AH9: =_xlfn.XLOOKUP($D9,INDIRECT("'"&$D9&"'!"&"$C$9"),INDIRECT("'"&$D9&"'!"&"$O$5"),"Not Found") ->  | AI9: =_xlfn.XLOOKUP($D9,INDIRECT("'"&$D9&"'!"&"$C$9"),INDIRECT("'"&$D9&"'!"&"$P$5"),"Not Found") ->  | AJ9: =_xlfn.XLOOKUP($D9,INDIRECT("'"&$D9&"'!"&"$C$9"),INDIRECT("'"&$D9&"'!"&"$Q$5"),"Not Found") ->  | AK9: =_xlfn.XLOOKUP($D9,INDIRECT("'"&$D9&"'!"&"$C$9"),INDIRECT("'"&$D9&"'!"&"$K$6"),"Not Found") ->  | AL9: =_xlfn.XLOOKUP($D9,INDIRECT("'"&$D9&"'!"&"$C$9"),INDIRECT("'"&$D9&"'!"&"$N$6"),"Not Found") ->  | AM9: =_xlfn.XLOOKUP($D9,INDIRECT("'"&$D9&"'!"&"$C$9"),INDIRECT("'"&$D9&"'!"&"$O$6"),"Not Found") ->  | AN9: =_xlfn.XLOOKUP($D9,INDIRECT("'"&$D9&"'!"&"$C$9"),INDIRECT("'"&$D9&"'!"&"$P$6"),"Not Found") ->  | AO9: =_xlfn.XLOOKUP($D9,INDIRECT("'"&$D9&"'!"&"$C$9"),INDIRECT("'"&$D9&"'!"&"$Q$6"),"Not Found") ->  | AP9: =_xlfn.XLOOKUP($D9,INDIRECT("'"&$D9&"'!"&"$C$9"),INDIRECT("'"&$D9&"'!"&"$K$7"),"Not Found") ->  | AQ9: =_xlfn.XLOOKUP($D9,INDIRECT("'"&$D9&"'!"&"$C$9"),INDIRECT("'"&$D9&"'!"&"$N$7"),"Not Found") ->  | AR9: =_xlfn.XLOOKUP($D9,INDIRECT("'"&$D9&"'!"&"$C$9"),INDIRECT("'"&$D9&"'!"&"$O$7"),"Not Found") ->  | AS9: =_xlfn.XLOOKUP($D9,INDIRECT("'"&$D9&"'!"&"$C$9"),INDIRECT("'"&$D9&"'!"&"$P$7"),"Not Found") ->  | AT9: =_xlfn.XLOOKUP($D9,INDIRECT("'"&$D9&"'!"&"$C$9"),INDIRECT("'"&$D9&"'!"&"$Q$7"),"Not Found") ->  | AU9: =_xlfn.XLOOKUP($D9,INDIRECT("'"&$D9&"'!"&"$C$9"),INDIRECT("'"&$D9&"'!"&"$K$8"),"Not Found") ->  | AV9: =_xlfn.XLOOKUP($D9,INDIRECT("'"&$D9&"'!"&"$C$9"),INDIRECT("'"&$D9&"'!"&"$N$8"),"Not Found") ->  | AW9: =_xlfn.XLOOKUP($D9,INDIRECT("'"&$D9&"'!"&"$C$9"),INDIRECT("'"&$D9&"'!"&"$O$8"),"Not Found") ->  | AX9: =_xlfn.XLOOKUP($D9,INDIRECT("'"&$D9&"'!"&"$C$9"),INDIRECT("'"&$D9&"'!"&"$P$8"),"Not Found") ->  | AY9: =_xlfn.XLOOKUP($D9,INDIRECT("'"&$D9&"'!"&"$C$9"),INDIRECT("'"&$D9&"'!"&"$Q$8"),"Not Found") ->  | AZ9: =_xlfn.XLOOKUP($D9,INDIRECT("'"&$D9&"'!"&"$C$9"),INDIRECT("'"&$D9&"'!"&"$K$9"),"Not Found") ->  | BA9: =_xlfn.XLOOKUP($D9,INDIRECT("'"&$D9&"'!"&"$C$9"),INDIRECT("'"&$D9&"'!"&"$N$9"),"Not Found") ->  | BB9: =_xlfn.XLOOKUP($D9,INDIRECT("'"&$D9&"'!"&"$C$9"),INDIRECT("'"&$D9&"'!"&"$O$9"),"Not Found") ->  | BC9: =_xlfn.XLOOKUP($D9,INDIRECT("'"&$D9&"'!"&"$C$9"),INDIRECT("'"&$D9&"'!"&"$P$9"),"Not Found") ->  | BD9: =_xlfn.XLOOKUP($D9,INDIRECT("'"&$D9&"'!"&"$C$9"),INDIRECT("'"&$D9&"'!"&"$Q$9"),"Not Found") ->  | BE9: =_xlfn.XLOOKUP($D9,INDIRECT("'"&$D9&"'!"&"$C$9"),INDIRECT("'"&$D9&"'!"&"$K$10"),"Not Found") ->  | BF9: =_xlfn.XLOOKUP($D9,INDIRECT("'"&$D9&"'!"&"$C$9"),INDIRECT("'"&$D9&"'!"&"$N$10"),"Not Found") ->  | BG9: =_xlfn.XLOOKUP($D9,INDIRECT("'"&$D9&"'!"&"$C$9"),INDIRECT("'"&$D9&"'!"&"$O$10"),"Not Found") ->  | BH9: =_xlfn.XLOOKUP($D9,INDIRECT("'"&$D9&"'!"&"$C$9"),INDIRECT("'"&$D9&"'!"&"$P$10"),"Not Found") ->  | BI9: =_xlfn.XLOOKUP($D9,INDIRECT("'"&$D9&"'!"&"$C$9"),INDIRECT("'"&$D9&"'!"&"$Q$10"),"Not Found") ->  | BJ9: =_xlfn.XLOOKUP($D9,INDIRECT("'"&$D9&"'!"&"$C$9"),INDIRECT("'"&$D9&"'!"&"$K$11"),"Not Found") ->  | BK9: =_xlfn.XLOOKUP($D9,INDIRECT("'"&$D9&"'!"&"$C$9"),INDIRECT("'"&$D9&"'!"&"$N$11"),"Not Found") ->  | BL9: =_xlfn.XLOOKUP($D9,INDIRECT("'"&$D9&"'!"&"$C$9"),INDIRECT("'"&$D9&"'!"&"$O$11"),"Not Found") ->  | BM9: =_xlfn.XLOOKUP($D9,INDIRECT("'"&$D9&"'!"&"$C$9"),INDIRECT("'"&$D9&"'!"&"$P$11"),"Not Found") ->  | BN9: =_xlfn.XLOOKUP($D9,INDIRECT("'"&$D9&"'!"&"$C$9"),INDIRECT("'"&$D9&"'!"&"$Q$11"),"Not Found") ->  | BO9: =_xlfn.XLOOKUP($D9,INDIRECT("'"&$D9&"'!"&"$C$9"),INDIRECT("'"&$D9&"'!"&"$K$2"),"Not Found") ->  | BP9: =_xlfn.XLOOKUP($D9,INDIRECT("'"&$D9&"'!"&"$C$9"),INDIRECT("'"&$D9&"'!"&"$L$2"),"Not Found") ->  | BQ9: =_xlfn.XLOOKUP($D9,INDIRECT("'"&$D9&"'!"&"$C$9"),INDIRECT("'"&$D9&"'!"&"$K$3"),"Not Found") ->  | BR9: =_xlfn.XLOOKUP($D9,INDIRECT("'"&$D9&"'!"&"$C$9"),INDIRECT("'"&$D9&"'!"&"$L$3"),"Not Found") ->  | BS9: =_xlfn.XLOOKUP($D9,INDIRECT("'"&$D9&"'!"&"$C$9"),INDIRECT("'"&$D9&"'!"&"$J$1"),"Not Found") ->  | BT9: =VLOOKUP($D9,'Financial Summary'!$A$7:$O$19,3,FALSE) -> Select One | BU9: =VLOOKUP($D9,'Financial Summary'!$A$7:$O$19,4,FALSE) -> Select One | BV9: =VLOOKUP($D9,'Financial Summary'!$A$7:$O$19,5,FALSE) -> 0 | BW9: =VLOOKUP($D9,'Financial Summary'!$A$7:$O$19,6,FALSE) -> 0 | BX9: =VLOOKUP($D9,'Financial Summary'!$A$7:$O$19,7,FALSE) -> 0 | BY9: =VLOOKUP($D9,'Financial Summary'!$A$7:$O$19,8,FALSE) -> 0 | BZ9: =VLOOKUP($D9,'Financial Summary'!$A$7:$O$19,9,FALSE) -> 0 | CA9: =VLOOKUP($D9,'Financial Summary'!$A$7:$O$19,10,FALSE) -> 0 | CB9: =VLOOKUP($D9,'Financial Summary'!$A$7:$O$19,11,FALSE) ->  | CC9: =VLOOKUP($D9,'Financial Summary'!$A$7:$O$19,12,FALSE) -> 0 | CD9: =VLOOKUP($D9,'Financial Summary'!$A$7:$O$19,13,FALSE) -> 0 | CE9: =VLOOKUP($D9,'Financial Summary'!$A$7:$O$19,14,FALSE) ->  | CF9: =VLOOKUP($D9,'Financial Summary'!$A$7:$P$19,15,FALSE) -> 0 | CG9: =VLOOKUP($D9,'Financial Summary'!$A$7:$P$19,16,FALSE) -> 0 | CH9: =VLOOKUP($D9,'Financial Summary'!$A$7:$Q$19,17,FALSE) ->  | CI9: =_xlfn.XLOOKUP($D9,'Executed & Recorded Loan Docs'!$A$5:$A$14,$B$5:$B$14,"",0) -> 0 | CJ9: =_xlfn.XLOOKUP($D9,INDIRECT("'"&$D9&"'!"&"$C$9"),INDIRECT("'"&$D9&"'!"&"$F$6"),"Not Found") ->  | CK9: =_xlfn.XLOOKUP($D9,INDIRECT("'"&$D9&"'!"&"$C$9"),INDIRECT("'"&$D9&"'!"&"_6._Additional_Comments"),"Not Found") -> 
A10: ='Narrative Summary'!$B$12 -> 23-LHTFCOM-18007 | B10: ='Narrative Summary'!$F$12 -> Alameda Affordable Housing Corporation | C10: ='Summary Sheet'!$D$9 -> 0 | D10: ='Financial Summary'!$A18 -> Project 9 | E10: =_xlfn.XLOOKUP($D10,INDIRECT("'"&$D10&"'!"&"$C$9"),INDIRECT("'"&$D10&"'!"&"$E$9"),"Not Found") ->  | F10: =_xlfn.XLOOKUP($D10,INDIRECT("'"&$D10&"'!"&"$C$9"),INDIRECT("'"&$D10&"'!"&"$C$10"),"Not Found") ->  | G10: =VLOOKUP($D10,'Financial Summary'!$A$7:$O$19,2,FALSE) -> Select One | H10: =_xlfn.XLOOKUP($D10,INDIRECT("'"&$D10&"'!"&"$C$9"),INDIRECT("'"&$D10&"'!"&"$C$11"),"Not Found") ->  | I10: =_xlfn.XLOOKUP($D10,INDIRECT("'"&$D10&"'!"&"$C$9"),INDIRECT("'"&$D10&"'!"&"$E$11"),"Not Found") ->  | J10: =_xlfn.XLOOKUP($D10,INDIRECT("'"&$D10&"'!"&"$C$9"),INDIRECT("'"&$D10&"'!"&"$C$12"),"Not Found") ->  | K10: =_xlfn.XLOOKUP($D10,INDIRECT("'"&$D10&"'!"&"$C$9"),INDIRECT("'"&$D10&"'!"&"$E$12"),"Not Found") ->  | L10: =_xlfn.XLOOKUP($D10,INDIRECT("'"&$D10&"'!"&"$C$9"),INDIRECT("'"&$D10&"'!"&"$C$13"),"Not Found") ->  | M10: =_xlfn.XLOOKUP($D10,INDIRECT("'"&$D10&"'!"&"$C$9"),INDIRECT("'"&$D10&"'!"&"$E$13"),"Not Found") ->  | N10: =_xlfn.XLOOKUP($D10,INDIRECT("'"&$D10&"'!"&"$C$9"),INDIRECT("'"&$D10&"'!"&"$L$12"),"Not Found") ->  | O10: =_xlfn.XLOOKUP($D10,INDIRECT("'"&$D10&"'!"&"$C$9"),INDIRECT("'"&$D10&"'!"&"$M$12"),"Not Found") ->  | P10: =_xlfn.XLOOKUP($D10,INDIRECT("'"&$D10&"'!"&"$C$9"),INDIRECT("'"&$D10&"'!"&"$K$12"),"Not Found") ->  | Q10: =_xlfn.XLOOKUP($D10,INDIRECT("'"&$D10&"'!"&"$C$9"),INDIRECT("'"&$D10&"'!"&"$K$13"),"Not Found") ->  | R10: =_xlfn.XLOOKUP($D10,INDIRECT("'"&$D10&"'!"&"$C$9"),INDIRECT("'"&$D10&"'!"&"$L$13"),"Not Found") ->  | S10: =_xlfn.XLOOKUP($D10,INDIRECT("'"&$D10&"'!"&"$C$9"),INDIRECT("'"&$D10&"'!"&"$M$13"),"Not Found") ->  | T10: =_xlfn.XLOOKUP($D10,INDIRECT("'"&$D10&"'!"&"$C$9"),INDIRECT("'"&$D10&"'!"&"$K$14"),"Not Found") ->  | U10: =_xlfn.XLOOKUP($D10,INDIRECT("'"&$D10&"'!"&"$C$9"),INDIRECT("'"&$D10&"'!"&"$L$14"),"Not Found") ->  | V10: =_xlfn.XLOOKUP($D10,INDIRECT("'"&$D10&"'!"&"$C$9"),INDIRECT("'"&$D10&"'!"&"$M$14"),"Not Found") ->  | W10: =_xlfn.XLOOKUP($D10,INDIRECT("'"&$D10&"'!"&"$C$9"),INDIRECT("'"&$D10&"'!"&"$K$15"),"Not Found") ->  | X10: =_xlfn.XLOOKUP($D10,INDIRECT("'"&$D10&"'!"&"$C$9"),INDIRECT("'"&$D10&"'!"&"$L$15"),"Not Found") ->  | Y10: =_xlfn.XLOOKUP($D10,INDIRECT("'"&$D10&"'!"&"$C$9"),INDIRECT("'"&$D10&"'!"&"$M$15"),"Not Found") ->  | Z10: =_xlfn.XLOOKUP($D10,INDIRECT("'"&$D10&"'!"&"$C$9"),INDIRECT("'"&$D10&"'!"&"$K$16"),"Not Found") ->  | AA10: =_xlfn.XLOOKUP($D10,INDIRECT("'"&$D10&"'!"&"$C$9"),INDIRECT("'"&$D10&"'!"&"$L$16"),"Not Found") ->  | AB10: =_xlfn.XLOOKUP($D10,INDIRECT("'"&$D10&"'!"&"$C$9"),INDIRECT("'"&$D10&"'!"&"$M$16"),"Not Found") ->  | AC10: =_xlfn.XLOOKUP($D10,INDIRECT("'"&$D10&"'!"&"$C$9"),INDIRECT("'"&$D10&"'!"&"$K$17"),"Not Found") ->  | AD10: =_xlfn.XLOOKUP($D10,INDIRECT("'"&$D10&"'!"&"$C$9"),INDIRECT("'"&$D10&"'!"&"$L$17"),"Not Found") ->  | AE10: =_xlfn.XLOOKUP($D10,INDIRECT("'"&$D10&"'!"&"$C$9"),INDIRECT("'"&$D10&"'!"&"$M$17"),"Not Found") ->  | AF10: =_xlfn.XLOOKUP($D10,INDIRECT("'"&$D10&"'!"&"$C$9"),INDIRECT("'"&$D10&"'!"&"$K$5"),"Not Found") ->  | AG10: =_xlfn.XLOOKUP($D10,INDIRECT("'"&$D10&"'!"&"$C$9"),INDIRECT("'"&$D10&"'!"&"$N$5"),"Not Found") ->  | AH10: =_xlfn.XLOOKUP($D10,INDIRECT("'"&$D10&"'!"&"$C$9"),INDIRECT("'"&$D10&"'!"&"$O$5"),"Not Found") ->  | AI10: =_xlfn.XLOOKUP($D10,INDIRECT("'"&$D10&"'!"&"$C$9"),INDIRECT("'"&$D10&"'!"&"$P$5"),"Not Found") ->  | AJ10: =_xlfn.XLOOKUP($D10,INDIRECT("'"&$D10&"'!"&"$C$9"),INDIRECT("'"&$D10&"'!"&"$Q$5"),"Not Found") ->  | AK10: =_xlfn.XLOOKUP($D10,INDIRECT("'"&$D10&"'!"&"$C$9"),INDIRECT("'"&$D10&"'!"&"$K$6"),"Not Found") ->  | AL10: =_xlfn.XLOOKUP($D10,INDIRECT("'"&$D10&"'!"&"$C$9"),INDIRECT("'"&$D10&"'!"&"$N$6"),"Not Found") ->  | AM10: =_xlfn.XLOOKUP($D10,INDIRECT("'"&$D10&"'!"&"$C$9"),INDIRECT("'"&$D10&"'!"&"$O$6"),"Not Found") ->  | AN10: =_xlfn.XLOOKUP($D10,INDIRECT("'"&$D10&"'!"&"$C$9"),INDIRECT("'"&$D10&"'!"&"$P$6"),"Not Found") ->  | AO10: =_xlfn.XLOOKUP($D10,INDIRECT("'"&$D10&"'!"&"$C$9"),INDIRECT("'"&$D10&"'!"&"$Q$6"),"Not Found") ->  | AP10: =_xlfn.XLOOKUP($D10,INDIRECT("'"&$D10&"'!"&"$C$9"),INDIRECT("'"&$D10&"'!"&"$K$7"),"Not Found") ->  | AQ10: =_xlfn.XLOOKUP($D10,INDIRECT("'"&$D10&"'!"&"$C$9"),INDIRECT("'"&$D10&"'!"&"$N$7"),"Not Found") ->  | AR10: =_xlfn.XLOOKUP($D10,INDIRECT("'"&$D10&"'!"&"$C$9"),INDIRECT("'"&$D10&"'!"&"$O$7"),"Not Found") ->  | AS10: =_xlfn.XLOOKUP($D10,INDIRECT("'"&$D10&"'!"&"$C$9"),INDIRECT("'"&$D10&"'!"&"$P$7"),"Not Found") ->  | AT10: =_xlfn.XLOOKUP($D10,INDIRECT("'"&$D10&"'!"&"$C$9"),INDIRECT("'"&$D10&"'!"&"$Q$7"),"Not Found") ->  | AU10: =_xlfn.XLOOKUP($D10,INDIRECT("'"&$D10&"'!"&"$C$9"),INDIRECT("'"&$D10&"'!"&"$K$8"),"Not Found") ->  | AV10: =_xlfn.XLOOKUP($D10,INDIRECT("'"&$D10&"'!"&"$C$9"),INDIRECT("'"&$D10&"'!"&"$N$8"),"Not Found") ->  | AW10: =_xlfn.XLOOKUP($D10,INDIRECT("'"&$D10&"'!"&"$C$9"),INDIRECT("'"&$D10&"'!"&"$O$8"),"Not Found") ->  | AX10: =_xlfn.XLOOKUP($D10,INDIRECT("'"&$D10&"'!"&"$C$9"),INDIRECT("'"&$D10&"'!"&"$P$8"),"Not Found") ->  | AY10: =_xlfn.XLOOKUP($D10,INDIRECT("'"&$D10&"'!"&"$C$9"),INDIRECT("'"&$D10&"'!"&"$Q$8"),"Not Found") ->  | AZ10: =_xlfn.XLOOKUP($D10,INDIRECT("'"&$D10&"'!"&"$C$9"),INDIRECT("'"&$D10&"'!"&"$K$9"),"Not Found") ->  | BA10: =_xlfn.XLOOKUP($D10,INDIRECT("'"&$D10&"'!"&"$C$9"),INDIRECT("'"&$D10&"'!"&"$N$9"),"Not Found") ->  | BB10: =_xlfn.XLOOKUP($D10,INDIRECT("'"&$D10&"'!"&"$C$9"),INDIRECT("'"&$D10&"'!"&"$O$9"),"Not Found") ->  | BC10: =_xlfn.XLOOKUP($D10,INDIRECT("'"&$D10&"'!"&"$C$9"),INDIRECT("'"&$D10&"'!"&"$P$9"),"Not Found") ->  | BD10: =_xlfn.XLOOKUP($D10,INDIRECT("'"&$D10&"'!"&"$C$9"),INDIRECT("'"&$D10&"'!"&"$Q$9"),"Not Found") ->  | BE10: =_xlfn.XLOOKUP($D10,INDIRECT("'"&$D10&"'!"&"$C$9"),INDIRECT("'"&$D10&"'!"&"$K$10"),"Not Found") ->  | BF10: =_xlfn.XLOOKUP($D10,INDIRECT("'"&$D10&"'!"&"$C$9"),INDIRECT("'"&$D10&"'!"&"$N$10"),"Not Found") ->  | BG10: =_xlfn.XLOOKUP($D10,INDIRECT("'"&$D10&"'!"&"$C$9"),INDIRECT("'"&$D10&"'!"&"$O$10"),"Not Found") ->  | BH10: =_xlfn.XLOOKUP($D10,INDIRECT("'"&$D10&"'!"&"$C$9"),INDIRECT("'"&$D10&"'!"&"$P$10"),"Not Found") ->  | BI10: =_xlfn.XLOOKUP($D10,INDIRECT("'"&$D10&"'!"&"$C$9"),INDIRECT("'"&$D10&"'!"&"$Q$10"),"Not Found") ->  | BJ10: =_xlfn.XLOOKUP($D10,INDIRECT("'"&$D10&"'!"&"$C$9"),INDIRECT("'"&$D10&"'!"&"$K$11"),"Not Found") ->  | BK10: =_xlfn.XLOOKUP($D10,INDIRECT("'"&$D10&"'!"&"$C$9"),INDIRECT("'"&$D10&"'!"&"$N$11"),"Not Found") ->  | BL10: =_xlfn.XLOOKUP($D10,INDIRECT("'"&$D10&"'!"&"$C$9"),INDIRECT("'"&$D10&"'!"&"$O$11"),"Not Found") ->  | BM10: =_xlfn.XLOOKUP($D10,INDIRECT("'"&$D10&"'!"&"$C$9"),INDIRECT("'"&$D10&"'!"&"$P$11"),"Not Found") ->  | BN10: =_xlfn.XLOOKUP($D10,INDIRECT("'"&$D10&"'!"&"$C$9"),INDIRECT("'"&$D10&"'!"&"$Q$11"),"Not Found") ->  | BO10: =_xlfn.XLOOKUP($D10,INDIRECT("'"&$D10&"'!"&"$C$9"),INDIRECT("'"&$D10&"'!"&"$K$2"),"Not Found") ->  | BP10: =_xlfn.XLOOKUP($D10,INDIRECT("'"&$D10&"'!"&"$C$9"),INDIRECT("'"&$D10&"'!"&"$L$2"),"Not Found") ->  | BQ10: =_xlfn.XLOOKUP($D10,INDIRECT("'"&$D10&"'!"&"$C$9"),INDIRECT("'"&$D10&"'!"&"$K$3"),"Not Found") ->  | BR10: =_xlfn.XLOOKUP($D10,INDIRECT("'"&$D10&"'!"&"$C$9"),INDIRECT("'"&$D10&"'!"&"$L$3"),"Not Found") ->  | BS10: =_xlfn.XLOOKUP($D10,INDIRECT("'"&$D10&"'!"&"$C$9"),INDIRECT("'"&$D10&"'!"&"$J$1"),"Not Found") ->  | BT10: =VLOOKUP($D10,'Financial Summary'!$A$7:$O$19,3,FALSE) -> Select One | BU10: =VLOOKUP($D10,'Financial Summary'!$A$7:$O$19,4,FALSE) -> Select One | BV10: =VLOOKUP($D10,'Financial Summary'!$A$7:$O$19,5,FALSE) -> 0 | BW10: =VLOOKUP($D10,'Financial Summary'!$A$7:$O$19,6,FALSE) -> 0 | BX10: =VLOOKUP($D10,'Financial Summary'!$A$7:$O$19,7,FALSE) -> 0 | BY10: =VLOOKUP($D10,'Financial Summary'!$A$7:$O$19,8,FALSE) -> 0 | BZ10: =VLOOKUP($D10,'Financial Summary'!$A$7:$O$19,9,FALSE) -> 0 | CA10: =VLOOKUP($D10,'Financial Summary'!$A$7:$O$19,10,FALSE) -> 0 | CB10: =VLOOKUP($D10,'Financial Summary'!$A$7:$O$19,11,FALSE) ->  | CC10: =VLOOKUP($D10,'Financial Summary'!$A$7:$O$19,12,FALSE) -> 0 | CD10: =VLOOKUP($D10,'Financial Summary'!$A$7:$O$19,13,FALSE) -> 0 | CE10: =VLOOKUP($D10,'Financial Summary'!$A$7:$O$19,14,FALSE) ->  | CF10: =VLOOKUP($D10,'Financial Summary'!$A$7:$P$19,15,FALSE) -> 0 | CG10: =VLOOKUP($D10,'Financial Summary'!$A$7:$P$19,16,FALSE) -> 0 | CH10: =VLOOKUP($D10,'Financial Summary'!$A$7:$Q$19,17,FALSE) ->  | CI10: =_xlfn.XLOOKUP($D10,'Executed & Recorded Loan Docs'!$A$5:$A$14,$B$5:$B$14,"",0) -> 0 | CJ10: =_xlfn.XLOOKUP($D10,INDIRECT("'"&$D10&"'!"&"$C$9"),INDIRECT("'"&$D10&"'!"&"$F$6"),"Not Found") ->  | CK10: =_xlfn.XLOOKUP($D10,INDIRECT("'"&$D10&"'!"&"$C$9"),INDIRECT("'"&$D10&"'!"&"_6._Additional_Comments"),"Not Found") -> 
A11: ='Narrative Summary'!$B$12 -> 23-LHTFCOM-18007 | B11: ='Narrative Summary'!$F$12 -> Alameda Affordable Housing Corporation | C11: ='Summary Sheet'!$D$9 -> 0 | D11: ='Financial Summary'!$A19 -> Project 10 | E11: =_xlfn.XLOOKUP($D11,INDIRECT("'"&$D11&"'!"&"$C$9"),INDIRECT("'"&$D11&"'!"&"$E$9"),"Not Found") ->  | F11: =_xlfn.XLOOKUP($D11,INDIRECT("'"&$D11&"'!"&"$C$9"),INDIRECT("'"&$D11&"'!"&"$C$10"),"Not Found") ->  | G11: =VLOOKUP($D11,'Financial Summary'!$A$7:$O$19,2,FALSE) -> Select One | H11: =_xlfn.XLOOKUP($D11,INDIRECT("'"&$D11&"'!"&"$C$9"),INDIRECT("'"&$D11&"'!"&"$C$11"),"Not Found") ->  | I11: =_xlfn.XLOOKUP($D11,INDIRECT("'"&$D11&"'!"&"$C$9"),INDIRECT("'"&$D11&"'!"&"$E$11"),"Not Found") ->  | J11: =_xlfn.XLOOKUP($D11,INDIRECT("'"&$D11&"'!"&"$C$9"),INDIRECT("'"&$D11&"'!"&"$C$12"),"Not Found") ->  | K11: =_xlfn.XLOOKUP($D11,INDIRECT("'"&$D11&"'!"&"$C$9"),INDIRECT("'"&$D11&"'!"&"$E$12"),"Not Found") ->  | L11: =_xlfn.XLOOKUP($D11,INDIRECT("'"&$D11&"'!"&"$C$9"),INDIRECT("'"&$D11&"'!"&"$C$13"),"Not Found") ->  | M11: =_xlfn.XLOOKUP($D11,INDIRECT("'"&$D11&"'!"&"$C$9"),INDIRECT("'"&$D11&"'!"&"$E$13"),"Not Found") ->  | N11: =_xlfn.XLOOKUP($D11,INDIRECT("'"&$D11&"'!"&"$C$9"),INDIRECT("'"&$D11&"'!"&"$L$12"),"Not Found") ->  | O11: =_xlfn.XLOOKUP($D11,INDIRECT("'"&$D11&"'!"&"$C$9"),INDIRECT("'"&$D11&"'!"&"$M$12"),"Not Found") ->  | P11: =_xlfn.XLOOKUP($D11,INDIRECT("'"&$D11&"'!"&"$C$9"),INDIRECT("'"&$D11&"'!"&"$K$12"),"Not Found") ->  | Q11: =_xlfn.XLOOKUP($D11,INDIRECT("'"&$D11&"'!"&"$C$9"),INDIRECT("'"&$D11&"'!"&"$K$13"),"Not Found") ->  | R11: =_xlfn.XLOOKUP($D11,INDIRECT("'"&$D11&"'!"&"$C$9"),INDIRECT("'"&$D11&"'!"&"$L$13"),"Not Found") ->  | S11: =_xlfn.XLOOKUP($D11,INDIRECT("'"&$D11&"'!"&"$C$9"),INDIRECT("'"&$D11&"'!"&"$M$13"),"Not Found") ->  | T11: =_xlfn.XLOOKUP($D11,INDIRECT("'"&$D11&"'!"&"$C$9"),INDIRECT("'"&$D11&"'!"&"$K$14"),"Not Found") ->  | U11: =_xlfn.XLOOKUP($D11,INDIRECT("'"&$D11&"'!"&"$C$9"),INDIRECT("'"&$D11&"'!"&"$L$14"),"Not Found") ->  | V11: =_xlfn.XLOOKUP($D11,INDIRECT("'"&$D11&"'!"&"$C$9"),INDIRECT("'"&$D11&"'!"&"$M$14"),"Not Found") ->  | W11: =_xlfn.XLOOKUP($D11,INDIRECT("'"&$D11&"'!"&"$C$9"),INDIRECT("'"&$D11&"'!"&"$K$15"),"Not Found") ->  | X11: =_xlfn.XLOOKUP($D11,INDIRECT("'"&$D11&"'!"&"$C$9"),INDIRECT("'"&$D11&"'!"&"$L$15"),"Not Found") ->  | Y11: =_xlfn.XLOOKUP($D11,INDIRECT("'"&$D11&"'!"&"$C$9"),INDIRECT("'"&$D11&"'!"&"$M$15"),"Not Found") ->  | Z11: =_xlfn.XLOOKUP($D11,INDIRECT("'"&$D11&"'!"&"$C$9"),INDIRECT("'"&$D11&"'!"&"$K$16"),"Not Found") ->  | AA11: =_xlfn.XLOOKUP($D11,INDIRECT("'"&$D11&"'!"&"$C$9"),INDIRECT("'"&$D11&"'!"&"$L$16"),"Not Found") ->  | AB11: =_xlfn.XLOOKUP($D11,INDIRECT("'"&$D11&"'!"&"$C$9"),INDIRECT("'"&$D11&"'!"&"$M$16"),"Not Found") ->  | AC11: =_xlfn.XLOOKUP($D11,INDIRECT("'"&$D11&"'!"&"$C$9"),INDIRECT("'"&$D11&"'!"&"$K$17"),"Not Found") ->  | AD11: =_xlfn.XLOOKUP($D11,INDIRECT("'"&$D11&"'!"&"$C$9"),INDIRECT("'"&$D11&"'!"&"$L$17"),"Not Found") ->  | AE11: =_xlfn.XLOOKUP($D11,INDIRECT("'"&$D11&"'!"&"$C$9"),INDIRECT("'"&$D11&"'!"&"$M$17"),"Not Found") ->  | AF11: =_xlfn.XLOOKUP($D11,INDIRECT("'"&$D11&"'!"&"$C$9"),INDIRECT("'"&$D11&"'!"&"$K$5"),"Not Found") ->  | AG11: =_xlfn.XLOOKUP($D11,INDIRECT("'"&$D11&"'!"&"$C$9"),INDIRECT("'"&$D11&"'!"&"$N$5"),"Not Found") ->  | AH11: =_xlfn.XLOOKUP($D11,INDIRECT("'"&$D11&"'!"&"$C$9"),INDIRECT("'"&$D11&"'!"&"$O$5"),"Not Found") ->  | AI11: =_xlfn.XLOOKUP($D11,INDIRECT("'"&$D11&"'!"&"$C$9"),INDIRECT("'"&$D11&"'!"&"$P$5"),"Not Found") ->  | AJ11: =_xlfn.XLOOKUP($D11,INDIRECT("'"&$D11&"'!"&"$C$9"),INDIRECT("'"&$D11&"'!"&"$Q$5"),"Not Found") ->  | AK11: =_xlfn.XLOOKUP($D11,INDIRECT("'"&$D11&"'!"&"$C$9"),INDIRECT("'"&$D11&"'!"&"$K$6"),"Not Found") ->  | AL11: =_xlfn.XLOOKUP($D11,INDIRECT("'"&$D11&"'!"&"$C$9"),INDIRECT("'"&$D11&"'!"&"$N$6"),"Not Found") ->  | AM11: =_xlfn.XLOOKUP($D11,INDIRECT("'"&$D11&"'!"&"$C$9"),INDIRECT("'"&$D11&"'!"&"$O$6"),"Not Found") ->  | AN11: =_xlfn.XLOOKUP($D11,INDIRECT("'"&$D11&"'!"&"$C$9"),INDIRECT("'"&$D11&"'!"&"$P$6"),"Not Found") ->  | AO11: =_xlfn.XLOOKUP($D11,INDIRECT("'"&$D11&"'!"&"$C$9"),INDIRECT("'"&$D11&"'!"&"$Q$6"),"Not Found") ->  | AP11: =_xlfn.XLOOKUP($D11,INDIRECT("'"&$D11&"'!"&"$C$9"),INDIRECT("'"&$D11&"'!"&"$K$7"),"Not Found") ->  | AQ11: =_xlfn.XLOOKUP($D11,INDIRECT("'"&$D11&"'!"&"$C$9"),INDIRECT("'"&$D11&"'!"&"$N$7"),"Not Found") ->  | AR11: =_xlfn.XLOOKUP($D11,INDIRECT("'"&$D11&"'!"&"$C$9"),INDIRECT("'"&$D11&"'!"&"$O$7"),"Not Found") ->  | AS11: =_xlfn.XLOOKUP($D11,INDIRECT("'"&$D11&"'!"&"$C$9"),INDIRECT("'"&$D11&"'!"&"$P$7"),"Not Found") ->  | AT11: =_xlfn.XLOOKUP($D11,INDIRECT("'"&$D11&"'!"&"$C$9"),INDIRECT("'"&$D11&"'!"&"$Q$7"),"Not Found") ->  | AU11: =_xlfn.XLOOKUP($D11,INDIRECT("'"&$D11&"'!"&"$C$9"),INDIRECT("'"&$D11&"'!"&"$K$8"),"Not Found") ->  | AV11: =_xlfn.XLOOKUP($D11,INDIRECT("'"&$D11&"'!"&"$C$9"),INDIRECT("'"&$D11&"'!"&"$N$8"),"Not Found") ->  | AW11: =_xlfn.XLOOKUP($D11,INDIRECT("'"&$D11&"'!"&"$C$9"),INDIRECT("'"&$D11&"'!"&"$O$8"),"Not Found") ->  | AX11: =_xlfn.XLOOKUP($D11,INDIRECT("'"&$D11&"'!"&"$C$9"),INDIRECT("'"&$D11&"'!"&"$P$8"),"Not Found") ->  | AY11: =_xlfn.XLOOKUP($D11,INDIRECT("'"&$D11&"'!"&"$C$9"),INDIRECT("'"&$D11&"'!"&"$Q$8"),"Not Found") ->  | AZ11: =_xlfn.XLOOKUP($D11,INDIRECT("'"&$D11&"'!"&"$C$9"),INDIRECT("'"&$D11&"'!"&"$K$9"),"Not Found") ->  | BA11: =_xlfn.XLOOKUP($D11,INDIRECT("'"&$D11&"'!"&"$C$9"),INDIRECT("'"&$D11&"'!"&"$N$9"),"Not Found") ->  | BB11: =_xlfn.XLOOKUP($D11,INDIRECT("'"&$D11&"'!"&"$C$9"),INDIRECT("'"&$D11&"'!"&"$O$9"),"Not Found") ->  | BC11: =_xlfn.XLOOKUP($D11,INDIRECT("'"&$D11&"'!"&"$C$9"),INDIRECT("'"&$D11&"'!"&"$P$9"),"Not Found") ->  | BD11: =_xlfn.XLOOKUP($D11,INDIRECT("'"&$D11&"'!"&"$C$9"),INDIRECT("'"&$D11&"'!"&"$Q$9"),"Not Found") ->  | BE11: =_xlfn.XLOOKUP($D11,INDIRECT("'"&$D11&"'!"&"$C$9"),INDIRECT("'"&$D11&"'!"&"$K$10"),"Not Found") ->  | BF11: =_xlfn.XLOOKUP($D11,INDIRECT("'"&$D11&"'!"&"$C$9"),INDIRECT("'"&$D11&"'!"&"$N$10"),"Not Found") ->  | BG11: =_xlfn.XLOOKUP($D11,INDIRECT("'"&$D11&"'!"&"$C$9"),INDIRECT("'"&$D11&"'!"&"$O$10"),"Not Found") ->  | BH11: =_xlfn.XLOOKUP($D11,INDIRECT("'"&$D11&"'!"&"$C$9"),INDIRECT("'"&$D11&"'!"&"$P$10"),"Not Found") ->  | BI11: =_xlfn.XLOOKUP($D11,INDIRECT("'"&$D11&"'!"&"$C$9"),INDIRECT("'"&$D11&"'!"&"$Q$10"),"Not Found") ->  | BJ11: =_xlfn.XLOOKUP($D11,INDIRECT("'"&$D11&"'!"&"$C$9"),INDIRECT("'"&$D11&"'!"&"$K$11"),"Not Found") ->  | BK11: =_xlfn.XLOOKUP($D11,INDIRECT("'"&$D11&"'!"&"$C$9"),INDIRECT("'"&$D11&"'!"&"$N$11"),"Not Found") ->  | BL11: =_xlfn.XLOOKUP($D11,INDIRECT("'"&$D11&"'!"&"$C$9"),INDIRECT("'"&$D11&"'!"&"$O$11"),"Not Found") ->  | BM11: =_xlfn.XLOOKUP($D11,INDIRECT("'"&$D11&"'!"&"$C$9"),INDIRECT("'"&$D11&"'!"&"$P$11"),"Not Found") ->  | BN11: =_xlfn.XLOOKUP($D11,INDIRECT("'"&$D11&"'!"&"$C$9"),INDIRECT("'"&$D11&"'!"&"$Q$11"),"Not Found") ->  | BO11: =_xlfn.XLOOKUP($D11,INDIRECT("'"&$D11&"'!"&"$C$9"),INDIRECT("'"&$D11&"'!"&"$K$2"),"Not Found") ->  | BP11: =_xlfn.XLOOKUP($D11,INDIRECT("'"&$D11&"'!"&"$C$9"),INDIRECT("'"&$D11&"'!"&"$L$2"),"Not Found") ->  | BQ11: =_xlfn.XLOOKUP($D11,INDIRECT("'"&$D11&"'!"&"$C$9"),INDIRECT("'"&$D11&"'!"&"$K$3"),"Not Found") ->  | BR11: =_xlfn.XLOOKUP($D11,INDIRECT("'"&$D11&"'!"&"$C$9"),INDIRECT("'"&$D11&"'!"&"$L$3"),"Not Found") ->  | BS11: =_xlfn.XLOOKUP($D11,INDIRECT("'"&$D11&"'!"&"$C$9"),INDIRECT("'"&$D11&"'!"&"$J$1"),"Not Found") ->  | BT11: =VLOOKUP($D11,'Financial Summary'!$A$7:$O$19,3,FALSE) -> Select One | BU11: =VLOOKUP($D11,'Financial Summary'!$A$7:$O$19,4,FALSE) -> Select One | BV11: =VLOOKUP($D11,'Financial Summary'!$A$7:$O$19,5,FALSE) -> 0 | BW11: =VLOOKUP($D11,'Financial Summary'!$A$7:$O$19,6,FALSE) -> 0 | BX11: =VLOOKUP($D11,'Financial Summary'!$A$7:$O$19,7,FALSE) -> 0 | BY11: =VLOOKUP($D11,'Financial Summary'!$A$7:$O$19,8,FALSE) -> 0 | BZ11: =VLOOKUP($D11,'Financial Summary'!$A$7:$O$19,9,FALSE) -> 0 | CA11: =VLOOKUP($D11,'Financial Summary'!$A$7:$O$19,10,FALSE) -> 0 | CB11: =VLOOKUP($D11,'Financial Summary'!$A$7:$O$19,11,FALSE) ->  | CC11: =VLOOKUP($D11,'Financial Summary'!$A$7:$O$19,12,FALSE) -> 0 | CD11: =VLOOKUP($D11,'Financial Summary'!$A$7:$O$19,13,FALSE) -> 0 | CE11: =VLOOKUP($D11,'Financial Summary'!$A$7:$O$19,14,FALSE) ->  | CF11: =VLOOKUP($D11,'Financial Summary'!$A$7:$P$19,15,FALSE) -> 0 | CG11: =VLOOKUP($D11,'Financial Summary'!$A$7:$P$19,16,FALSE) -> 0 | CH11: =VLOOKUP($D11,'Financial Summary'!$A$7:$Q$19,17,FALSE) ->  | CI11: =_xlfn.XLOOKUP($D11,'Executed & Recorded Loan Docs'!$A$5:$A$14,$B$5:$B$14,"",0) -> 0 | CJ11: =_xlfn.XLOOKUP($D11,INDIRECT("'"&$D11&"'!"&"$C$9"),INDIRECT("'"&$D11&"'!"&"$F$6"),"Not Found") ->  | CK11: =_xlfn.XLOOKUP($D11,INDIRECT("'"&$D11&"'!"&"$C$9"),INDIRECT("'"&$D11&"'!"&"_6._Additional_Comments"),"Not Found") -> 

Sheet Grantee Data (hidden)
A1: Grantee Name | B1: HCD Contract | C1: Total LHTF Award | D1: Match on Deposit | E1: LHTF Expended to Date | F1: Program Admin Expended to Date | G1: Matching Admin Expended to Date | H1: PI generated this period | I1: Total PI Balance | J1: Appx. Households Assisted w PI | K1: Reporting Period | L1: 1. Please summarize the work undertaken or completed in the reporting period, including the number, type, and unit count of Eligible Projects receiving Program Funds | M1: 2. Please summarize the activities planned to be undertaken in the next reporting period | N1: 3. Please describe any problems encountered in Program implementation. Include a description of the solution and when it will be implemented | O1: 4. Please describe how the problems described in question #3 above may impact the ability to complete or fulfill obligations under the Standard Agreement | P1: 5. Please describe additional revenue generated from program funding (e.g. loan repayments, interest, fees) in this reporting period | Q1: 6. Please outline the steps for completing your public noticing and hearing process. Attach required documentation of the website posting and any relevant records of the public hearing | R1: 7. Please share any success stories you've had from HCD LHTF-funded projects. | S1: 8. We attest that the Ongoing Revenues identified in the LHTF application based on the definitions below are still ongoing as of the signature date of this annual report. | T1: 9. Cumulative Rental Housing Projects (including permanent supportive housing) for ELI up to 30% AMI | U1: 9. Cumulative Rental Housing Projects (including permanent supportive housing) for LI up to 60% AMI | V1: 9. Cumulative Rental Housing Projects (including permanent supportive housing) for LI up to 80% AMI | W1: 9. Cumulative Rental Housing Projects (including permanent supportive housing) for MI up to 120% AMI | X1: 9. Cumulative Emergency Shelter or Transitional Housing for ELI up to 30% AMI | Y1: 9. Cumulative Emergency Shelter or Transitional Housing for LI up to 60% AMI | Z1: 9. Cumulative Emergency Shelter or Transitional Housing for LI up to 80% AMI | AA1: 9. Cumulative Emergency Shelter or Transitional Housing for MI up to 120% AMI | AB1: 9. Cumulative Homeownership Projects for ELI up to 30% AMI | AC1: 9. Cumulative Homeownership Projects for LI up to 60% AMI | AD1: 9. Cumulative Homeownership Projects for LI up to 80% AMI | AE1: 9. Cumulative Homeownership Projects for MI up to 120% AMI | AF1: 9. Cumulative ADU/JADU for ELI up to 30% AMI | AG1: 9. Cumulative ADU/JADU for LI up to 60% AMI | AH1: 9. Cumulative ADU/JADU for LI up to 80% AMI | AI1: 9. Cumulative ADU/JADU for MI up to 120% AMI | AJ1: Additional Comments for Financial Summary
A2: ='Narrative Summary'!$F$12 -> Alameda Affordable Housing Corporation | B2: ='Narrative Summary'!$B$12 -> 23-LHTFCOM-18007 | C2: ='Financial Summary'!A5 -> 1000000 | D2: ='Financial Summary'!J5 -> 2438000 | E2: ='Financial Summary'!E5 -> 1000000 | F2: ='Financial Summary'!C5 -> 0 | G2: ='Financial Summary'!D5 -> 0 | H2: ='Narrative Summary'!C75 -> 0 | I2: ='Narrative Summary'!C76 -> 0 | J2: ='Narrative Summary'!G75 -> 0 | K2: ='Narrative Summary'!F14 -> 7/1/24 - 6/30/25 | L2: ='Narrative Summary'!A18 -> From July 1, 2024 through June 30, 2025, the Alameda Affordable Housing Corporation (AAHC) utilized Program Funds for the North Housing Senior Apartments (Linnet Corner) project. Linnet Corner is a new construction of a single, four (4) story residential building, with 64 units. The 64 units will include 40 studio units and 23 one-bedroom units targeting seniors aged 62 and over. There will also be one two-bedroom dedicated as a manager’s unit. Affordability levels will range between 30% and 40% of the Area Median Income (AMI) The project will also have 25% or 16 units serving formerly homeless/homeless senior veterans. Amenities will include a community room, dedicated property management and service provider offices, shared parking, a laundry room, a resident garden, and roof terrace. Throughout the entirety the reporting period, Linnet Corner was under construction. Construction activities during the reporting period include: rough and structural framing; roof, flooring, and window installation; plumbing, electrical, heatpump, and waterline installation; pavement and completion of a shared parking lot; exterior and interior painting; cabinet installation; building and unit meter energization; landscaping; and soil offhaul. The remaining LHTF funds were used on hard costs including erosion control, vertical construction of the building, finishes, and mechincal and electrical items. As of June 30, 2025, construction is approximately 91% complete. Additionally, Linnet Corner entered into contracts with a variety of vendors, including an interior furnishings vendor, and received a $200,000 grant from the Home Depot Foundation for construction costs. Lastly, Linnet Corner has been undergoing lease-up activities during the reporting period. A public lottery for 23 studio units was opened from April 4 - April 18 and received 2,200 applications and as of June 30, 2025, 1 has been approved for move-in. Outreach efforts for both the public lottery and units reserved for veterans have included social media campaigns and lease-up presentations at City Board Meetings and community organizations in Alameda and extensive in-person outreach with various veterans organizations such as Swords, the Veterans Affairs, etc. 16 units that are a mix of studios and one-bedrooms will be leased through the County's Coordinated Entry System. As of June 30, 2025, 5 applicants have been received and 1 has been approved for move-in. 24 units that are a mix of studios and one-bedrooms will be filled through AHA’s existing Project-Based Voucher (PBV) waitlist. As of June 30, 2025, no applicants have been approved for move-in. | M2: ='Narrative Summary'!A31 -> During the next reporting period, the Project will finish construction, lease-up and move tenants in, and participate in community outreach. The Project is expected to receive its temporary certificate of occupancy (TCO) at the end of September 2025. By 6/30/2026, the Project will have been Placed-In-Service. | N2: ='Narrative Summary'!A44 -> Linnet Corner does not anticipate any future problems in Program implementation and anticipates the project will be completed according to the above timeline. | O2: ='Narrative Summary'!A59 -> The problems referenced in question #3 will not impact our ability to fulfill obligations under the Standard Agreement for Linnet Corner. | P2: ='Narrative Summary'!A74 -> No additional revenue has been generated from program funding to date. | Q2: ='Narrative Summary'!A78 -> The Housing Authority of the City of Alameda's (AHA) website (https://www.alamedahsg.org/about-us/alameda-affordable-housing-corporation/) contains the information for our public hearings and notices. We held our annual public hearing on March 19, 2025 within the Alameda Affordable Housing Corporation Board of Commisioners Meeting. The meeting was advertised for 30 days on AHA's website and through social media and received written comments until 5:00 PM on 3/19/25. The agenda for the meeting was published 72 hours in advance. Additionally, there was time for public comment at the meeting. The meeting packet can be found at this link on AHA's website: https://www.alamedahsg.org/meetings/?month=3&yr=. The minutes for this meeting can be found in the same location. The Alameda Affordable Housing Corporation is subject to the Brown Act. The relevant section of the Brown Act, as applied to a public agency like AHA whose board is not elected, provides that a nonprofit is covered by the Act if both of the following are true (Government Code Section 54952(c)(1)(B)): a) Test 1: The nonprofit board of directors includes one member of the AHA Board of Commissioners appointed (or elected or selected) by the AHA Board to the nonprofit board as a full voting member; and b) Test 2: The nonprofit receives funds from AHA. AAHC's nonprofit Board includes an AHA commissioner and receives funds from AHA and thus is subject to the Brown Act. | R2: ='Narrative Summary'!A93 -> During the reporting period, ICD had two LHTF-funded projects (North Housing PSH-I and Linnet Corner) in construction, with both over 90% complete as of 6/30/25. Both projects were ahead of schedule, exceeding expectations for the pace of the project. A third LHTF-funded project, North Housing PSH-II, has submitted competitive applications to numerous funding sources, such as the SuperNOFA, first round 4% tax-credits and first and second round 9% tax-credits. PSH-II has conditionally received an award of approximately $700,000 in City of Alameda HOME funding and a loan of $500,000 from the Housing Authority of the City of Alameda. | S2: ='Narrative Summary'!H96 -> Yes | T2: ='Narrative Summary'!B103 -> 19 | U2: ='Narrative Summary'!D103 -> 44 | V2: ='Narrative Summary'!F103 -> 0 | W2: ='Narrative Summary'!H103 -> 0 | X2: ='Narrative Summary'!B105 -> 0 | Y2: ='Narrative Summary'!D105 -> 0 | Z2: ='Narrative Summary'!F105 -> 0 | AA2: ='Narrative Summary'!H105 -> 0 | AB2: ='Narrative Summary'!B107 -> 0 | AC2: ='Narrative Summary'!D107 -> 0 | AD2: ='Narrative Summary'!F107 -> 0 | AE2: ='Narrative Summary'!H107 -> 0 | AF2: ='Narrative Summary'!B109 -> 0 | AG2: ='Narrative Summary'!D109 -> 0 | AH2: ='Narrative Summary'!F109 -> 0 | AI2: ='Narrative Summary'!H109 -> 0 | AJ2: ='Financial Summary'!A22 -> 0

Sheet Drop Down Box (hidden)
A1: Reporting Period Due Date | I1: Description | J1: I2
A2: July 1, 2020- June 30, 2021, Due July 31, 2021 | I2: Please list which appropriate evidence of completion is attached to this report
A3: July 1, 2021- June 30, 2022, Due July 31, 2022 | I3: Submitted with this report
A4: July 1, 2022- June 30, 2023, Due July 31, 2023 | I4: Not submitted with this report
A5: July 1, 2023- June 30, 2024, Due July 31, 2024
A6: July 1, 2024- June 30, 2025, Due July 31, 2025
A8: Number of Bedrooms
A9: Select One
A10: Single Family Residence
A11: Emergency Shelter
A12: Studio
A13: One-bedroom
A14: Two-bedroom
A15: Three-bedroom
A16: Four-bedroom
A17: Manager Studio
A18: Manager One-bedroom
A19: Manager Two-bedroom
A20: Manager Three-bedroom
A21: Manager Four-bedroom
A22: Restricted Income Level
A23: Select One
A24: Extremely Low Income (up to 30% AMI)
A25: Lower Income (up to 60% AMI)
A26: Lower Income (up to 80% AMI)
A27: Moderate Income (up to 120% AMI)
A28: Unrestricted
A29: Documentation Attached of Matching Funds, including amount by source
A30: Yes
A31: No
A33: Project Type
A34: Select One
A35: Rental Housing Project with No Permanent Supportive Housing Units
A36: Rental Housing Project with All Permanent Supportive Housing Units
A37: Rental Housing Project with Mixed Permanent Supportive Housing Units
A38: Emergency Shelter or Transitional Housing
A39: Homeownership Projects
A40: ADU/JADU
A42: Project Status
A43: Select One
A44: Trust Fund Loan Committed
A45: Under Construction
A46: Construction Completed
A47: Permanent Loan Closed
A49: Type of Loan
A50: Select One
A51: Construction Loan
A52: Permanent Financing Loan
A53: Both Const/Perm
A56: Activity | B56: Evidence of Completion
A57: Select One
A58: New Construction | B58: Certificate of Occupancy
A59: Rehabilitation | B59: Certificate of Completion
A60: Conversion | B60: Certificate of Completion
A61: Repair | B61: Certificate of Completion
A62: Reconstruction | B62: Certificate of Completion
A63: Purchase | B63: Recorded Deed of Trust
A65: Match Source
A66: Select One
A67: Tax
A68: Residential Impact Fees
A69: Residential In-Lieu Fees
A70: Loan Repayments
A71: Interest Repayments
A72: Loan and Interest Repayments
A73: Land Donation
A74: One Time Donation
A75: Public Contributions
A76: Private Contributions
A77: Commercial Fees
A78: PLHA Funds (RHTF Only)
A79: Proof of Completion
A80: Select One
A81: Certificate of Occupancy
A82: Certificate of Completion
A83: Recorded Deed of Trust
A84: Recorded Regulatory Agreement
A85: Other Evidence of Completion
